Workbook

Sheet Общая информация
D1: Приложение А
A2: Общая информация о регулируемой организации
A4: Фирменное наименование регулируемой организации (согласно Уставу) | B4: БЕЙСУЖЕКСКОЕ МНОГООТРАСЛЕВОЕ МУНИЦИПАЛЬНОЕ УНИТАРНОЕ ПРЕДПРИЯТИЕ ЖИЛИЩНО-КОММУНАЛЬНОГО ХОЗЯЙСТВА
A5: Сокращенное фирменное наименование | B5: Бейсужекское ММУП ЖКХ
A6: Муниципальный район | B6: Выселковский
A7: Муниципальное образование | B7: Бейсужекское
A8: Адрес | B8: Юридический | C8: 353136 Краснодарский край,, Выселковский район, хутор Бейсужек Второй,ул. Октябрьская, дом№20
B9: Фактический | C9: 353136 Краснодарский край,, Выселковский район, хутор Бейсужек Второй,ул. Октябрьская, дом№20
B10: Почтовый | C10: 353136 Краснодарский край,, Выселковский район, хутор Бейсужек Второй,ул. Октябрьская, дом№20
A11: Телефон организации (с кодом) | B11: 89002774581 | C11: Факс (с кодом)
A12: Адрес электронной почты (e-mail) | B12: jkcha@mail.ru | C12: Адрес WEB-сайта (при наличии)
A13: Реквизиты утверждения устава | B13: Утверждено Постановлением главы Бейсужекского сельского поселения Выселкоского района от 29.01.2013 №3
A14: ИНН | B14: 2328016005 | C14: КПП | D14: 232801001
A15: Код налогового органа | B15: 2328 | C15: Наименование налогового органа
A16: ОГРН (форма Р51001) | B16: 1052315826914 | C16: Дата присвоения ОГРН | D16: 27.12.2005г
A17: Наименование регистрирующего органа, выдавшего свидетельство о государственной регистрации юридического лица | C17: Инспекция Федеральной налоговой службы Выселковского района Краснодарского края
A18: ФИО руководителя регулируемой организации (полностью) | B18: Белозерский Сергей Анатольевич
A19: Должность руководителя | B19: Директор | C19: Контактный телефон руководителя | D19: 89615969804
A20: Банковские реквизиты | B20: Расчетный счет * | C20: 4.07028107e+19
B21: Кор. Счет * | C21: 3.01018105e+19
B22: БИК | C22: 40349516
B23: Наименование банка | C23: ПАО "Крайивест" г. Краснодар
A24: Доля участия государства (РФ, субъекта, МО) в уставном капитале | C24: 100
A25: Субъект предпринимательства | B25: малый | G25: малый
A26: * Перед номерами счетов ставим значок № для корректного отображения всех цифр | G26: средний
G27: крупный
A28: Руководитель организации | B28: ______________________________________
A30: Ответственный за составление формы | B30: ______________________________________

Sheet Информация для регулирования
E1: Приложение Б
A2: Информация для расчета тарифа
A4: Является ли организация гарантирующей | B4: нет | C4: реквизиты документа | I4: да
A5: Утверждены ли схемы водоснабжения | B5: да | C5: реквизиты документа | I5: нет
A6: Источник с размещением схем водоснабжения | B6: Приложение №3 к лицензии КРД 04091 ВЭ
A7: Основной вид деятельности организации | B7: Распределение воды
A8: Количество видов деятельности (всех), ед. | B8: 1
A9: Применяемая система налогообложения | B9: Упрощенная система налогообложения (доходы-расходы) | I9: Общая система налогообложения
A10: Право владения объектами водоснабжения | B10: Хозяйственное ведение | I10: Общая система налогообложения (освобождение от уплаты НДС в соответствии со ст. 145 НК РФ)
A11: Реквизиты документов (наименование, № и дата), подтверждающие право владения объектами коммунальной инфраструктуры | B11: Договора о закреплении муниципального имущества администрации Бейсужекского сельского поселения на праве хозяйственного ведения за Бейсужекским многоотраслевым муниципальным унитарным предприятием Жилищно-коммунального хозяйства от27.01.2007г и от 25.03.2015г | I11: Упрощенная система налогообложения (доходы)
A12: Срок владения объектами (с-по) | B12: бессрочно | I12: Упрощенная система налогообложения (доходы-расходы)
A13: Поверхностные источники водозабора | I13: Единый сельскохозяйственный налог
A14: Подземные источники водозабора (количество артезианских скважин), ед. | B14: 3 | C14: из них действующих | D14: 3 | I14: Единый налог на вмененный доход
A15: Суммарная установленная производственная мощность водозабора, куб.м/час | B15: 57
A16: Количество водонапорных башен, ед. | B16: 3
A17: Протяженность сетей водоснабжения, км. | B17: 32.15
A18: Суммарная установленная производственная мощность транспортирования воды, куб.м/час | B18: 57
A19: Количество очистных сооружений для водоподготовки, ед.
A20: Суммарная установленная производственная мощность очистных сооружений водоподготовки, куб.м/час
A21: Наименование обслуживаемых МО (населенных пунктов)
A22: Планируемый объем отпуска воды, тыс. куб.м | B22: 119.45
A23: в том числе населению, исполнителям коммунальных услуг (УК, ТСЖ и пр.) | B23: 97.43
A24: Наличие приборов учета у потребителей, % | B24: 100
A25: Наличие приборов учета у организации | B25: да
A26: Действующие тарифы без НДС, руб./куб.м. | B26: с 01.01.16 по 30.06.16 | C26: 22.76 | D26: с НДС | E26: 22.76
B27: с 01.07.16 по 31.12.16 | C27: 23.68 | E27: 23.68
A28: Реквизиты нормативного акта по установлению тарифов на 2016-2018 год, корректировка 2017-2018 год | B28: Приказ №32/2015-ОКК от20.11.2015 РЕГИОНАЛЬНОЙ ЭНЕРГЕТИЧЕСКОЙ КОМИССИИ- ДЕПАРТАМЕНТ ЦЕН И ТАИФОВ КРАСНОДАРСКОГО КРАЯ
A29: Заявленный метод регулирования | B29: метод индексации | I29: метод экономическм обоснованных расходов (затрат)
A30: Тарифы, руб./куб.м. | B30: с 01.01.17 по 30.06.17 | C30: 23.68 | D30: с НДС | E30: 23.68 | I30: метод индексации
B31: с 01.07.17 по 31.12.17 | C31: 24.44 | E31: 24.44 | I31: метод сравнения аналогов
B32: план ОКК на 2018 без НДС | C32: =корректировка!O43 -> 32.81210783 | I32: метод доходности инвестированного капитала
A33: Наличие инвестиционной программы (период действия) | B33: Нет
A34: Ответственный за работу с РЭК | B34: Суменко Лидия Евгеньевна
A35: Контактный телефон ответственного | B35: 89002774581
A38: Руководитель организации | B38: ______________________________________
A40: Ответственный за составление формы | B40: ______________________________________

Sheet корректировка
I1: Приложение 7
A2: Расчет тарифа методом индексации на питьевую воду | G2: Бейсужекское ММУП ЖКХ
A4: № п/п | B4: Наименование | C4: Ед. изм. | D4: 2014 | F4: 2014 факт РЭК | G4: 2015 | I4: 2015 ожид РЭК | J4: 2016 | K4: 2016 | L4: 2017 | M4: 2017 план РЭК первоначальный | N4: 2017 план РЭК корректировка | O4: 2018 | P4: 2018 план РЭК первоначальный | Q4: 2018 план РЭК корректировка
D5: утверждено | E5: факт | G5: утверждено РЭК | H5: ожид | J5: план | K5: утверждено РЭК | L5: утверждено РЭК | O5: план ОКК
A6: 1 | B6: 2 | C6: 3 | D6: 4 | E6: 5 | F6: 5* | G6: 6 | H6: 7 | I6: 7* | J6: 8 | K6: 8* | L6: 9 | M6: 9* | N6: 9** | O6: 10 | P6: 10* | Q6: 10**
A7: 1 | B7: Необходимая валовая выручка | C7: тыс. руб. | D7: =D8+D17+D18+D19+D22 ->  | E7: =E8+E17+E18+E19+E22 -> 0 | F7: 0 | H7: 0 | I7: 0 | K7: 3039.449404 | L7: 3233.414125 | O7: 3493.943819 | P7: 3357.174239 | Q7: 3352.816549 | R7: =Q7-O7 -> -141.1272699
A8: 1.1 | B8: Текущие расходы | C8: тыс. руб. | D8: =D9+D13+D14 ->  | E8: 0 | F8: 0 | H8: 0 | I8: 0 | J8: =J9+J13+J14 ->  | K8: 3039.449404 | L8: 3233.414125 | O8: 3493.943819 | P8: 3357.174239 | Q8: 3352.816549 | R8: =Q8-O8 -> -141.1272699
A9: 1.1.1 | B9: Операционные расходы | C9: тыс. руб. | D9: ='Текущие расходы'!D6 ->  | G9: ='Текущие расходы'!G6 ->  | J9: ='Текущие расходы'!J6 ->  | K9: ='Текущие расходы'!K6 -> 2221.399404 | L9: =K9*(1-L10)*(1+L11%)*(1+L12) -> 2302.547125 | M9: =K9*(1-M10)*(1+M11%)*(1+M12) -> 2221.399404 | N9: =K9*(1-N10)*(1+N11%)*(1+N12) -> 2221.399404 | O9: =L9*(1-O10)*(1+O11%)*(1+O12) -> 2507.473819 | P9: =L9*(1-P10)*(1+P11%)*(1+P12) -> 2370.705939 | Q9: =L9*(1-Q10)*(1+Q11%)*(1+Q12) -> 2363.863955 | R9: -143.6098642
A10: 1.1.1.1 | B10: индекс эффективности расходов | L10: 0.01 | M10: 0 | N10: 0 | O10: 0.01 | P10: 0.01 | Q10: 0.01 | R10: 0
A11: 1.1.1.2 | B11: индекс потребительских цен | L11: 4.7 | O11: 10 | P11: 4.00015 | Q11: 3.7 | R11: -6.3
A12: 1.1.1.3 | B12: индекс количества активов | L12: 0 | M12: 0 | N12: 0 | O12: 0 | P12: 0 | Q12: 0 | R12: 0
A13: 1.1.2 | B13: Расходы на электрическую энергию | C13: тыс. руб. | D13: ='Текущие расходы'!D7 ->  | G13: ='Текущие расходы'!G7 ->  | J13: ='Текущие расходы'!J7 ->  | K13: ='Текущие расходы'!K7 -> 776.71 | L13: ='Текущие расходы'!L7 -> 883.257 | M13: ='Текущие расходы'!M7 ->  | N13: ='Текущие расходы'!N7 ->  | O13: ='Текущие расходы'!O7 -> 931.83 | P13: ='Текущие расходы'!P7 -> 931.8283 | Q13: ='Текущие расходы'!Q7 -> 946.4819872 | R13: 14.65198722
A14: 1.1.3 | B14: Неподконтрольные расходы, в том числе | C14: тыс. руб. | D14: ='Текущие расходы'!D8 ->  | G14: ='Текущие расходы'!G8 ->  | J14: ='Текущие расходы'!J8 ->  | K14: ='Текущие расходы'!K8 -> 41.34 | L14: ='Текущие расходы'!L8 -> 47.61 | M14: ='Текущие расходы'!M8 ->  | N14: ='Текущие расходы'!N8 ->  | O14: ='Текущие расходы'!O8 -> 54.64 | P14: ='Текущие расходы'!P8 -> 54.64 | Q14: ='Текущие расходы'!Q8 -> 42.47060708 | R14: -12.16939292
A15: 1.1.3.1 | B15: возврат займов и кредитов | C15: тыс. руб. | D15: ='Текущие расходы'!D59 ->  | G15: ='Текущие расходы'!G59 ->  | J15: ='Текущие расходы'!J59 ->  | K15: ='Текущие расходы'!K59 -> 0 | L15: ='Текущие расходы'!L59 -> 0 | M15: ='Текущие расходы'!M59 ->  | N15: ='Текущие расходы'!N59 ->  | O15: ='Текущие расходы'!O59 -> 0 | P15: ='Текущие расходы'!P59 -> 0 | Q15: ='Текущие расходы'!Q59 -> 0 | R15: 0
A16: 1.1.3.2 | B16: проценты по займам и кредитам | C16: тыс. руб. | D16: ='Текущие расходы'!D60 ->  | G16: ='Текущие расходы'!G60 ->  | J16: ='Текущие расходы'!J60 ->  | K16: ='Текущие расходы'!K60 -> 0 | L16: ='Текущие расходы'!L60 -> 0 | M16: ='Текущие расходы'!M60 ->  | N16: ='Текущие расходы'!N60 ->  | O16: ='Текущие расходы'!O60 -> 0 | P16: ='Текущие расходы'!P60 -> 0 | Q16: ='Текущие расходы'!Q60 -> 0 | R16: 0
A17: 1.2 | B17: Амортизация | C17: тыс. руб. | D17: ='Смета расходов'!D71*'Текущие расходы'!$D$68 ->  | G17: ='Смета расходов'!H71*'Текущие расходы'!$G$68 ->  | J17: ='Смета расходов'!K71*'Текущие расходы'!$J$68 ->  | K17: ='Смета расходов'!L71*'Текущие расходы'!$K$68 -> 0 | L17: ='Смета расходов'!Q71*'Текущие расходы'!$L$68 -> 0 | M17: ='Смета расходов'!R71*'Текущие расходы'!$M$68 ->  | N17: ='Смета расходов'!S71*'Текущие расходы'!$N$68 ->  | O17: ='Смета расходов'!T71*'Текущие расходы'!$O$68 -> 0 | P17: ='Смета расходов'!U71*'Текущие расходы'!$P$68 -> 0 | Q17: ='Смета расходов'!V71*'Текущие расходы'!$Q$68 -> 0 | R17: 0
A18: 1.3 | B18: Ремонтные расходы | C18: тыс. руб. | D18: 0 | G18: 0 | J18: 0 | K18: 0 | L18: 0 | M18: 0 | N18: 0 | O18: 0 | P18: 0 | Q18: 0 | R18: 0
A19: 1.3 | B19: Нормативная прибыль | C19: тыс. руб. | D19: =D20+D21 -> 0 | E19: =E20+E21 -> 0 | F19: 0 | G19: 0 | H19: 0 | I19: 0 | K19: 0 | L19: 0 | M19: 0 | N19: 0 | O19: 0 | P19: 0 | Q19: 0 | R19: 0
A20: 1.3.1 | B20: Капитальные расходы | C20: тыс. руб. | D20: ='Смета расходов'!D92 -> 0 | G20: ='Смета расходов'!H92 -> 0 | J20: ='Смета расходов'!K92 ->  | K20: ='Смета расходов'!L92 -> 0 | L20: ='Смета расходов'!Q92 -> 0 | M20: ='Смета расходов'!R92 -> 0 | N20: ='Смета расходов'!S92 -> 0 | O20: ='Смета расходов'!T92 -> 0 | P20: ='Смета расходов'!U92 -> 0 | Q20: ='Смета расходов'!V92 -> 0 | R20: 0
A21: 1.3.2 | B21: Иные экономически обоснованные расходы на социальные нужды, в соответствии с пунктом 86 методических указаний | C21: тыс. руб. | D21: ='Смета расходов'!D93 -> 0 | G21: ='Смета расходов'!H93 -> 0 | J21: ='Смета расходов'!K93 ->  | K21: ='Смета расходов'!L93 -> 0 | L21: ='Смета расходов'!Q93 -> 0 | M21: ='Смета расходов'!R93 -> 0 | N21: ='Смета расходов'!S93 -> 0 | O21: ='Смета расходов'!T93 -> 0 | P21: ='Смета расходов'!U93 -> 0 | Q21: ='Смета расходов'!V93 -> 0 | R21: 0
A22: 1.4 | B22: Расчетная предпринимательская прибыль гарантирующей организации | C22: тыс. руб. | D22: ='Смета расходов'!D94 -> 0 | G22: ='Смета расходов'!H94 -> 0 | J22: ='Смета расходов'!K94 -> 0 | K22: ='Смета расходов'!L94 -> 0 | L22: ='Смета расходов'!Q94 -> 0 | M22: =U22%*(M8-M15-M16+M17+M18) ->  | N22: ='Смета расходов'!S94 -> 0 | O22: ='Смета расходов'!T94 -> 0 | P22: =U22%*(P8-P15-P16+P17+P18) -> 0 | Q22: ='Смета расходов'!V94 -> 0 | R22: 0 | T22: процент прибыли ГО, %
A23: 2 | B23: Корректировка НВВ | C23: тыс. руб. | D23: =D24+D25+D26+D27+D28+D29+D30+D34+D35+D36-D37 -> 0 | E23: 0 | F23: 0 | G23: 0 | H23: 0 | I23: 0 | J23: =J24+J25+J26+J27+J28+J29+J30+J34+J35+J36-J37 -> 0 | K23: -296.34 | L23: 0 | M23: 0 | N23: 0 | O23: 0 | P23: 0 | Q23: -612.4658996 | R23: -612.4658996
A24: 2.1 | B24: Отклонение фактически достигнутого объема поданной воды (выпадающие доходы за отчетные периоды регулирования, связанные с изменением объемов реализации) | R24: 0
A25: 2.2 | B25: Отклонение фактических значений индекса потребительских цен и других индексов, предусмотренных прогнозом социально-экономического развития РФ | R25: 0
A26: 2.3 | B26: Отклонение фактически достигнутого уровня неподконтрольных расходов | Q26: ='Текущие расходы'!S39 -> -16.36189963 | R26: -16.36189963
A27: 2.4 | B27: Ввод объектов системы водоснабжения в эксплуатацию и изменение утвержденной инвестиционной программы | R27: 0
A28: 2.5 | B28: Степень исполнения регулируемой организацией обязательств по созданию и (или) реконструкции объектов концессионного соглашения, по эксплуатации объектов по договору аренды централизованных систем холодного водоснабжения, отдельных объектов таких систем, находящихся в государственной или муниципальной собственности, по реализации инвестиционной программы, производственной программы при недостижении регулируемой организацией утвержденных плановых значений показателей надежности и качества объектов централизованных систем водоснабжения | R28: 0
A29: 2.6 | B29: Изменение доходности долгосрочных государственных обязательств | R29: 0
A30: 2.7 | B30: Экономически обоснованные расходы, не учтенные органом регулирования тарифов при установлении тарифов на ее товары (работы, услуги) в прошлом периоде | C30: тыс. руб. | D30: =SUM(D31:D33) -> 0 | E30: =SUM(E31:E33) -> 0 | F30: 0 | G30: 0 | H30: 0 | I30: 0 | J30: 0 | K30: 0 | L30: 0 | M30: 0 | N30: 0 | O30: 0 | P30: 0 | Q30: 0 | R30: 0
A31: 2.7.1 | B31: экономически обоснованные расходы, понесенные за отчетные периоды | C31: тыс. руб. | R31: 0
A32: 2.7.2 | B32: по результатам рассмотрения ФСТ | C32: тыс. руб. | R32: 0
A33: 2.7.3 | B33: по решению суда | C33: тыс. руб. | R33: 0
A34: 2.8 | B34: Недополученные доходы прошлых периодов регулирования | C34: тыс. руб. | R34: 0
A35: 2.9 | B35: Экономически не обоснованные доходы прошлых периодов регулирования, включая доходы, связанные с нарушениями законодательства РФ при установлении и применении регулируемых тарифов | C35: тыс. руб. | R35: 0
A36: 2.10 | B36: Расходы, связанные с приобретением регулируемой организацией товаров (работ, услуг), используемых при осуществлении регулируемых видов деятельности, по завышенным ценам и в завышенных объемах | C36: тыс. руб. | D36: ='Смета расходов'!D98 -> 0 | G36: ='Смета расходов'!H98 -> 0 | J36: ='Смета расходов'!K98 -> 0 | K36: ='Смета расходов'!L98 -> -296.34 | Q36: ='Смета расходов'!N98 -> -596.104 | R36: -596.104
A37: 2.11 | B37: Субсидии из бюджета | C37: тыс. руб. | D37: ='Смета расходов'!D99 -> 0 | G37: ='Смета расходов'!H99 -> 0 | J37: ='Смета расходов'!K99 -> 0 | K37: ='Смета расходов'!L99 -> 0 | L37: ='Смета расходов'!Q99 -> 0 | M37: ='Смета расходов'!R99 -> 0 | N37: ='Смета расходов'!S99 -> 0 | O37: ='Смета расходов'!T99 -> 0 | P37: ='Смета расходов'!U99 -> 0 | Q37: ='Смета расходов'!V99 -> 0 | R37: 0
A38: 3 | B38: Налог на прибыль | C38: тыс. руб. | D38: ='Смета расходов'!D96 -> 0 | G38: ='Смета расходов'!H96 -> 0 | J38: ='Смета расходов'!K96 -> 0 | K38: ='Смета расходов'!L96 -> 0 | R38: 0
A39: 4 | B39: Налог, уплачиваемый в связи с применением упрощенной системы налогообложения | C39: тыс. руб. | D39: ='Смета расходов'!D97 -> 0 | G39: ='Смета расходов'!H97 -> 0 | J39: ='Смета расходов'!K97 -> 0 | K39: ='Смета расходов'!L97 -> 30.39 | L39: 32.332 | O39: 33.57 | P39: 33.57 | Q39: 27.68 | R39: -5.89
A40: 5 | B40: Итого НВВ | D40: =D7+D23+D38+D39 ->  | E40: =E7+E23+E38+E39 -> 0 | F40: 0 | H40: 0 | I40: 0 | K40: 2773.499404 | L40: 3265.746125 | O40: 3527.513819 | P40: 3390.744239 | Q40: 2768.030649 | R40: -759.4831695
A41: 6 | B41: ΔНВВ | L41: -391.89 | O41: 391.89 | P41: 391.89 | Q41: =391.89-182.14 -> 209.75 | R41: -182.14 | S41: На сл. период 182,14
A42: 7 | B42: Итого НВВ для расчета тарифа | C42: тыс. руб. | D42: =D40 ->  | E42: =E7+E23+E38+E39 -> 0 | F42: =F7+F23+F38+F39 -> 0 | G42: =G40 ->  | H42: =H7+H23+H38+H39 -> 0 | I42: =I7+I23+I38+I39 -> 0 | J42: =J40+J41 ->  | K42: 2773.499404 | L42: 2873.856125 | O42: 3919.403819 | P42: 3782.634239 | Q42: 2977.780649 | R42: -941.6231695 | U42: 2016 средний | V42: с 01.01.16 | W42: с 01.07.16 | X42: 2017 средний | Y42: с 01.01.17 | Z42: с 01.07.17 | AA42: 2018 средний | AB42: с 01.01.18 | AC42: с 01.07.18
A43: 8 | B43: Тариф на водоснабжение | C43: руб. /куб. м | D43: =D42/D46 ->  | J43: =J42/J46 ->  | K43: 23.21892964 | L43: 24.05908689 | O43: 32.81210783 | P43: 31.66711272 | Q43: 24.92911276 | R43: -7.882995067 | T43: Объем реализации | U43: =K46 -> 119.449925 | V43: =U43/2 -> 59.7249625 | W43: =U43-V43 -> 59.7249625 | X43: =L46 -> 119.449925 | Y43: =X43/2 -> 59.7249625 | Z43: =X43-Y43 -> 59.7249625 | AA43: =P46 -> 119.449925 | AB43: =AA43/2 -> 59.7249625 | AC43: =AA43-AB43 -> 59.7249625
B44: с 01.01.ХХ до 30.06.ХХ | C44: руб. /куб. м | D44: ='Расчет тарифа методом ЭОТ'!D27 -> 0 | G44: 0 | K44: =V45 -> 22.76 | L44: =Y45 -> 23.67785929 | M44: =Y45 -> 23.67785929 | N44: =Y54 -> 23.67785929 | P44: =AB45 -> 24.4403145 | Q44: =AB54 -> 24.4403145 | R44: 24.4403145 | T44: НВВ | U44: =K42 -> 2773.499404 | V44: =V45*V43 -> 1359.340147 | W44: =U44-V44 -> 1414.159258 | X44: =L42 -> 2873.856125 | Y44: =Y45*Y43 -> 1414.159258 | Z44: =X44-Y44 -> 1459.696867 | AA44: =P42 -> 3782.634239 | AB44: =AB45*AB43 -> 1459.696867 | AC44: =AA44-AB44 -> 2322.937372
B45: с 01.07.ХХ до 31.12.ХХ | C45: руб. /куб. м | D45: ='Расчет тарифа методом ЭОТ'!D28 -> 0 | G45: 0 | K45: =W45 -> 23.67785929 | L45: =Z45 -> 24.4403145 | M45: =Z45 -> 24.4403145 | N45: =Z54 -> 24.4403145 | P45: =AC45 -> 38.89391094 | Q45: =AC54 -> 25.41791102 | R45: 25.41791102 | T45: тариф | U45: =K43 -> 23.21892964 | V45: 22.76 | W45: =W44/W43 -> 23.67785929 | X45: =L43 -> 24.05908689 | Y45: =W45 -> 23.67785929 | Z45: =Z44/Z43 -> 24.4403145 | AA45: =P43 -> 31.66711272 | AB45: =Z45 -> 24.4403145 | AC45: =AC44/AC43 -> 38.89391094
A46: 9 | B46: Объем водоснабжения (реализация) | C46: тыс. куб. м. | D46: ='Смета расходов'!D121 -> 0 | E46: ='Смета расходов'!E121 -> 0 | F46: ='Смета расходов'!F121 -> 0 | G46: ='Смета расходов'!H121 -> 0 | H46: ='Смета расходов'!I121 -> 0 | I46: ='Смета расходов'!J121 -> 0 | J46: ='Смета расходов'!K121 -> 0 | K46: ='Смета расходов'!L121 -> 119.449925 | L46: ='Смета расходов'!Q121 -> 119.449925 | M46: ='Смета расходов'!R121 -> 0 | N46: ='Смета расходов'!S121 -> 0 | O46: ='Смета расходов'!T121 -> 119.449925 | P46: ='Смета расходов'!U121 -> 119.449925 | Q46: ='Смета расходов'!V121 -> 119.449925 | R46: 0 | T46: тариф с НДС | V46: =V45 -> 22.76 | W46: =W45 -> 23.67785929 | Y46: =Y45 -> 23.67785929 | Z46: =Z45 -> 24.4403145 | AB46: =AB45 -> 24.4403145 | AC46: =AC45 -> 38.89391094
A47: 10 | B47: Темп роста тарифа | C47: % | D47: =D45/D44*100 ->  | G47: =G45/D45*100 ->  | K47: =K45/K44*100 -> 104.0327737 | L47: =L45/K45*100 -> 103.2201188 | M47: =M45/K45*100 -> 103.2201188 | N47: =N45/N44*100 -> 103.2201188 | P47: =P45/M45*100 -> 159.1383406 | Q47: =Q45/Q44*100 -> 103.9999343 | R47: 103.9999343 | T47: Рост,%
B50: Ведущий консультант | L50: Н.Н.Потапова | Z50: после корректировки
U51: 2016 средний | V51: с 01.01.16 | W51: с 01.07.16 | X51: 2017 средний | Y51: с 01.01.17 | Z51: с 01.07.17 | AA51: 2018 средний | AB51: с 01.01.18 | AC51: с 01.07.18
T52: Объем реализации | U52: =U43 -> 119.449925 | V52: 59.7249625 | W52: 59.7249625 | X52: =X43 -> 119.449925 | Y52: =X52/2 -> 59.7249625 | Z52: =X52-Y52 -> 59.7249625 | AA52: =Q46 -> 119.449925 | AB52: =AA52/2 -> 59.7249625 | AC52: =AA52-AB52 -> 59.7249625
T53: НВВ | U53: 2773.499404 | V53: 1359.340147 | W53: 1414.159258 | X53: =X44 -> 2873.856125 | Y53: =Y54*Y52 -> 1414.159258 | Z53: =X53-Y53 -> 1459.696867 | AA53: =Q42 -> 2977.780649 | AB53: =AB54*AB52 -> 1459.696867 | AC53: =AA53-AB53 -> 1518.083783
T54: тариф | U54: 23.21892964 | V54: 22.76 | W54: 23.67785929 | X54: =X45 -> 24.05908689 | Y54: =W54 -> 23.67785929 | Z54: =Z53/Z52 -> 24.4403145 | AA54: =Q43 -> 24.92911276 | AB54: =Z54 -> 24.4403145 | AC54: =AC53/AC52 -> 25.41791102
T55: тариф с НДС | V55: =V46 -> 22.76 | W55: =W46 -> 23.67785929 | Y55: =Y54 -> 23.67785929 | Z55: =Z54 -> 24.4403145 | AB55: =AB54 -> 24.4403145 | AC55: =AC54 -> 25.41791102
T56: Рост,%
AB58: =AB54*1.04*AB52-AC53 -> 0.0009588598039

Sheet Текущие расходы
C1: Приложение В
A2: Составляющие текущих расходов
A4: № п/п | B4: Виды расходов | C4: ед. изм. | D4: утверждено на 2014 | G4: утверждено РЭК на 2015 | J4: план ОКК на 2016 | K4: утверждено РЭК на 2016 | L4: утверждено РЭК на 2017 | M4: план РЭК на 2017 первоначальный | N4: план РЭК на 2017 корректировка | O4: план ОКК на 2018 | P4: план РЭК на 2018 первоначальный | Q4: план РЭК на 2018 корректировка
A5: 1 | B5: Текущие расходы | C5: тыс. руб. | D5: =SUM(D6:D8) ->  | E5: 0 | F5: 0 | H5: 0 | I5: 0 | J5: =SUM(J6:J8) ->  | K5: 3039.449404 | L5: 3233.414125 | O5: 3493.943819 | P5: 3357.174239 | Q5: 3352.816549
A6: 1.1 | B6: Операционные расходы | C6: тыс. руб. | D6: =D15 ->  | G6: =G15 ->  | J6: =J15 ->  | K6: =K15 -> 2221.399404 | L6: =корректировка!L9 -> 2302.547125 | M6: =корректировка!M9 -> 2221.399404 | N6: =корректировка!N9 -> 2221.399404 | O6: =корректировка!O9 -> 2507.473819 | P6: =корректировка!P9 -> 2370.705939 | Q6: =корректировка!Q9 -> 2363.863955
A7: 1.2 | B7: Расходы на электрическую энергию | C7: тыс. руб. | D7: ='Смета расходов'!D14*'Текущие расходы'!$D$68 ->  | G7: ='Смета расходов'!H14*'Текущие расходы'!$G$68 ->  | J7: ='Смета расходов'!K14*'Текущие расходы'!$J$68 ->  | K7: ='Смета расходов'!L14*'Текущие расходы'!$K$68 -> 776.71 | L7: ='Смета расходов'!Q14*'Текущие расходы'!$L$68 -> 883.257 | M7: ='Смета расходов'!R14*'Текущие расходы'!$M$68 ->  | N7: ='Смета расходов'!S14*'Текущие расходы'!$N$68 ->  | O7: ='Смета расходов'!T14*'Текущие расходы'!$O$68 -> 931.83 | P7: ='Смета расходов'!U14*'Текущие расходы'!$P$68 -> 931.8283 | Q7: ='Смета расходов'!V14*'Текущие расходы'!$Q$68 -> 946.4819872
A8: 1.3 | B8: Неподконтрольные расходы | C8: тыс. руб. | D8: =D39 ->  | G8: =G39 ->  | J8: =J39 ->  | K8: 41.34 | L8: 47.61 | O8: 54.64 | P8: 54.64 | Q8: 42.47060708
A10: 1.1 Базовый уровень операционных расходов
A12: № п/п | B12: Наименование | C12: Ед. изм. | D12: 2014 | F12: 2014 факт РЭК | G12: 2015 утверждено РЭК | I12: 2015 ожид РЭК | J12: 2016 | K12: 2016 утверждено РЭК
D13: утверждено | E13: факт | J13: план
A14: 1 | B14: 2 | C14: 3 | D14: 4 | E14: 5 | F14: 5* | G14: 6 | H14: 7 | I14: 7* | J14: 8 | K14: 8*
B15: Операционные расходы | C15: тыс. руб. | D15: =D16+D31+D32 ->  | E15: =E16+E31+E32 -> 0 | F15: 0 | H15: 0 | I15: 0 | K15: 2221.399404
A16: 1 | B16: Производственные расходы | C16: тыс. руб. | D16: =SUM(D17:D19,D22:D23) ->  | E16: 0 | F16: 0 | H16: 0 | I16: 0 | K16: 985.3598
A17: 1.1 | B17: Расходы на приобретение сырья и материалов и их хранение | C17: тыс. руб. | D17: ='Смета расходов'!D8*'Текущие расходы'!$D$68 ->  | G17: ='Смета расходов'!H8*'Текущие расходы'!$G$68 ->  | J17: ='Смета расходов'!K8*'Текущие расходы'!$J$68 ->  | K17: ='Смета расходов'!L8*'Текущие расходы'!$K$68 -> 75.57
A18: 1.2 | B18: Расходы на оплату регулируемыми организациями выполняемых сторонними организациями работ и (или) услуг | C18: тыс. руб. | D18: ='Смета расходов'!D19*'Текущие расходы'!$D$68 ->  | G18: ='Смета расходов'!H19*'Текущие расходы'!$G$68 ->  | J18: ='Смета расходов'!K19*'Текущие расходы'!$J$68 ->  | K18: ='Смета расходов'!L19*'Текущие расходы'!$K$68 -> 22.09
A19: 1.3 | B19: Расходы на оплату труда и отчисления на социальные нужды основного производственного персонала, в том числе : | C19: тыс. руб. | D19: =D20+D21 ->  | E19: =E20+E21 -> 0 | F19: 0 | H19: 0 | I19: 0 | K19: 787.5798
A20: 1.3.1 | B20: расходы на оплату труда основного производственного персонала | C20: тыс. руб. | D20: ='Смета расходов'!D21*'Текущие расходы'!$D$68 ->  | G20: ='Смета расходов'!H21*'Текущие расходы'!$G$68 ->  | J20: ='Смета расходов'!K21*'Текущие расходы'!$J$68 ->  | K20: ='Смета расходов'!L21*'Текущие расходы'!$K$68 -> 604.9
A21: 1.3.2 | B21: налоги и сборы с ФОТ | C21: тыс. руб. | D21: ='Смета расходов'!D22*'Текущие расходы'!$D$68 ->  | G21: ='Смета расходов'!H22*'Текущие расходы'!$G$68 ->  | J21: ='Смета расходов'!K22*'Текущие расходы'!$J$68 ->  | K21: ='Смета расходов'!L22*'Текущие расходы'!$K$68 -> 182.6798
A22: 1.4 | B22: Общехозяйственные расходы | C22: тыс. руб. | D22: ='Смета расходов'!D25*'Текущие расходы'!$D$68 ->  | G22: ='Смета расходов'!H25*'Текущие расходы'!$G$68 ->  | J22: ='Смета расходов'!K25*'Текущие расходы'!$J$68 ->  | K22: ='Смета расходов'!L25*'Текущие расходы'!$K$68 -> 0
A23: 1.5 | B23: Прочие производственные расходы | C23: тыс. руб. | D23: =SUM(D24:D30) ->  | E23: =SUM(E24:E30) -> 0 | F23: 0 | H23: 0 | I23: 0 | K23: 100.12
A24: 1.5.1 | B24: расходы на амортизацию автотранспорта | C24: тыс. руб. | D24: ='Смета расходов'!D31*'Текущие расходы'!$D$68 ->  | G24: ='Смета расходов'!H31*'Текущие расходы'!$G$68 ->  | J24: ='Смета расходов'!K31*'Текущие расходы'!$J$68 ->  | K24: ='Смета расходов'!L31*'Текущие расходы'!$K$68 -> 0
A25: 1.5.2 | B25: контроль качества воды | C25: тыс. руб. | D25: ='Смета расходов'!D32*'Текущие расходы'!$D$68 ->  | G25: ='Смета расходов'!H32*'Текущие расходы'!$G$68 ->  | J25: ='Смета расходов'!K32*'Текущие расходы'!$J$68 ->  | K25: ='Смета расходов'!L32*'Текущие расходы'!$K$68 -> 78.57
A26: 1.5.3 | B26: расходы на аварийно-диспетчерское обслуживание | C26: тыс. руб. | D26: ='Смета расходов'!D33*'Текущие расходы'!$D$68 ->  | G26: ='Смета расходов'!H33*'Текущие расходы'!$G$68 ->  | J26: ='Смета расходов'!K33*'Текущие расходы'!$J$68 ->  | K26: ='Смета расходов'!L33*'Текущие расходы'!$K$68 -> 0
A27: 1.5.4 | B27: расходы на приобретение (использование) вспомогательных материалов, запасных частей | C27: тыс. руб. | D27: ='Смета расходов'!D34*'Текущие расходы'!$D$68 ->  | G27: ='Смета расходов'!H34*'Текущие расходы'!$G$68 ->  | J27: ='Смета расходов'!K34*'Текущие расходы'!$J$68 ->  | K27: ='Смета расходов'!L34*'Текущие расходы'!$K$68 -> 0
A28: 1.5.5 | B28: расходы на эксплуатацию, техническое обслуживание и ремонт автотранспорта | C28: тыс. руб. | D28: ='Смета расходов'!D35*'Текущие расходы'!$D$68 ->  | G28: ='Смета расходов'!H35*'Текущие расходы'!$G$68 ->  | J28: ='Смета расходов'!K35*'Текущие расходы'!$J$68 ->  | K28: ='Смета расходов'!L35*'Текущие расходы'!$K$68 -> 0
A29: 1.5.6 | B29: расходы на охрану труда ОПП | C29: тыс. руб. | D29: ='Смета расходов'!D36*'Текущие расходы'!$D$68 ->  | G29: ='Смета расходов'!H36*'Текущие расходы'!$G$68 ->  | J29: ='Смета расходов'!K36*'Текущие расходы'!$J$68 ->  | K29: ='Смета расходов'!L36*'Текущие расходы'!$K$68 -> 21.55
A30: 1.5.7 | B30: расходы головной организации | C30: тыс. руб. | D30: ='Смета расходов'!D40*'Текущие расходы'!$D$68 ->  | G30: ='Смета расходов'!H40*'Текущие расходы'!$G$68 ->  | J30: ='Смета расходов'!K40*'Текущие расходы'!$J$68 ->  | K30: ='Смета расходов'!L40*'Текущие расходы'!$K$68 -> 0
A31: 2 | B31: Административные расходы | C31: тыс. руб. | D31: ='Смета расходов'!D51*'Текущие расходы'!$D$68 ->  | G31: ='Смета расходов'!H51*'Текущие расходы'!$G$68 ->  | J31: ='Смета расходов'!K51*'Текущие расходы'!$J$68 ->  | K31: ='Смета расходов'!L51*'Текущие расходы'!$K$68 -> 424.3996044
A32: 3 | B32: Ремонтные расходы | C32: тыс. руб. | D32: ='Смета расходов'!D41*'Текущие расходы'!$D$68 ->  | G32: ='Смета расходов'!H41*'Текущие расходы'!$G$68 ->  | J32: ='Смета расходов'!K41*'Текущие расходы'!$J$68 ->  | K32: ='Смета расходов'!L41*'Текущие расходы'!$K$68 -> 811.64
A34: 1.3 Неподконтрольные расходы
A36: № п/п | B36: Наименование | C36: Ед. изм. | D36: 2014 | F36: 2014 факт РЭК | G36: 2015 утверждено РЭК | I36: 2015 ожид РЭК | J36: 2016 | K36: 2016 утвержденоРЭК | L36: 2017 утверждено РЭК | M36: план РЭК на 2017 первоначальный | N36: план РЭК на 2017 корректировка | O36: план ОКК на 2018 | P36: план РЭК на 2018 первоначальный | Q36: план РЭК на 2018 корректировка
D37: утверждено | E37: факт | J37: план | R37: Факт 2016 | S37: Корр.
A38: 1 | B38: 2 | C38: 3 | D38: 4 | E38: 5 | F38: 5* | G38: 6 | H38: 7 | I38: 7* | J38: 8 | K38: 8* | L38: 9 | M38: 9* | O38: 10 | P38: 10*
B39: Неподконтрольные расходы | C39: тыс. руб. | D39: =D40+D46+D54+D55+D57+D58 ->  | E39: 0 | F39: 0 | H39: 0 | I39: 0 | J39: =J40+J46+J54+J55+J57+J58 ->  | K39: 41.34 | L39: 47.61 | O39: 54.64 | P39: 54.64 | Q39: 42.47060708 | R39: =R49 -> 24.97810037 | S39: =R39-K39 -> -16.36189963
A40: 1 | B40: Расходы на оплату товаров (услуг, работ), приобретаемых у других организаций | C40: тыс. руб. | D40: =SUM(D41:D45) ->  | E40: 0 | F40: 0 | H40: 0 | I40: 0 | K40: 0 | L40: 0 | O40: 0 | P40: 0 | Q40: 0
A41: 1.1 | B41: Расходы на тепловую энергию | C41: тыс. руб. | D41: ='Смета расходов'!D15*'Текущие расходы'!$D$68 ->  | G41: ='Смета расходов'!H15*'Текущие расходы'!$G$68 ->  | J41: ='Смета расходов'!K15*'Текущие расходы'!$J$68 ->  | K41: ='Смета расходов'!L15*'Текущие расходы'!$K$68 -> 0 | L41: ='Смета расходов'!Q15*'Текущие расходы'!$L$68 -> 0 | M41: ='Смета расходов'!R15*'Текущие расходы'!$M$68 ->  | N41: ='Смета расходов'!S15*'Текущие расходы'!$N$68 ->  | O41: ='Смета расходов'!T15*'Текущие расходы'!$O$68 -> 0 | P41: ='Смета расходов'!U15*'Текущие расходы'!$P$68 -> 0 | Q41: ='Смета расходов'!V15*'Текущие расходы'!$Q$68 -> 0
A42: 1.2 | B42: Расходы на теплоноситель | C42: тыс. руб. | D42: ='Смета расходов'!D16*'Текущие расходы'!$D$68 ->  | G42: ='Смета расходов'!H16*'Текущие расходы'!$G$68 ->  | J42: ='Смета расходов'!K16*'Текущие расходы'!$J$68 ->  | K42: ='Смета расходов'!L16*'Текущие расходы'!$K$68 -> 0 | L42: ='Смета расходов'!Q16*'Текущие расходы'!$L$68 -> 0 | M42: ='Смета расходов'!R16*'Текущие расходы'!$M$68 ->  | N42: ='Смета расходов'!S16*'Текущие расходы'!$N$68 ->  | O42: ='Смета расходов'!T16*'Текущие расходы'!$O$68 -> 0 | P42: ='Смета расходов'!U16*'Текущие расходы'!$P$68 -> 0 | Q42: ='Смета расходов'!V16*'Текущие расходы'!$Q$68 -> 0
A43: 1.3 | B43: Расходы на топливо | C43: тыс. руб. | D43: ='Смета расходов'!D17*'Текущие расходы'!$D$68 ->  | G43: ='Смета расходов'!H17*'Текущие расходы'!$G$68 ->  | J43: ='Смета расходов'!K17*'Текущие расходы'!$J$68 ->  | K43: ='Смета расходов'!L17*'Текущие расходы'!$K$68 -> 0 | L43: ='Смета расходов'!Q17*'Текущие расходы'!$L$68 -> 0 | M43: ='Смета расходов'!R17*'Текущие расходы'!$M$68 ->  | N43: ='Смета расходов'!S17*'Текущие расходы'!$N$68 ->  | O43: ='Смета расходов'!T17*'Текущие расходы'!$O$68 -> 0 | P43: ='Смета расходов'!U17*'Текущие расходы'!$P$68 -> 0 | Q43: ='Смета расходов'!V17*'Текущие расходы'!$Q$68 -> 0
A44: 1.4 | B44: Расходы на покупку воды | C44: тыс. руб. | D44: ='Смета расходов'!D18*'Текущие расходы'!$D$68 ->  | G44: ='Смета расходов'!H18*'Текущие расходы'!$G$68 ->  | J44: ='Смета расходов'!K18*'Текущие расходы'!$J$68 ->  | K44: ='Смета расходов'!L18*'Текущие расходы'!$K$68 -> 0 | L44: ='Смета расходов'!Q18*'Текущие расходы'!$L$68 -> 0 | M44: ='Смета расходов'!R18*'Текущие расходы'!$M$68 ->  | N44: ='Смета расходов'!S18*'Текущие расходы'!$N$68 ->  | O44: ='Смета расходов'!T18*'Текущие расходы'!$O$68 -> 0 | P44: ='Смета расходов'!U18*'Текущие расходы'!$P$68 -> 0 | Q44: ='Смета расходов'!V18*'Текущие расходы'!$Q$68 -> 0
A45: 1.5 | B45: Расходы на транспортировку воды | C45: тыс. руб. | D45: ='Смета расходов'!D38*'Текущие расходы'!$D$68 ->  | G45: ='Смета расходов'!H38*'Текущие расходы'!$G$68 ->  | J45: ='Смета расходов'!K38*'Текущие расходы'!$J$68 ->  | K45: ='Смета расходов'!L38*'Текущие расходы'!$K$68 -> 0 | L45: ='Смета расходов'!Q38*'Текущие расходы'!$L$68 -> 0 | M45: ='Смета расходов'!R38*'Текущие расходы'!$M$68 ->  | N45: ='Смета расходов'!S38*'Текущие расходы'!$N$68 ->  | O45: ='Смета расходов'!T38*'Текущие расходы'!$O$68 -> 0 | P45: ='Смета расходов'!U38*'Текущие расходы'!$P$68 -> 0 | Q45: ='Смета расходов'!V38*'Текущие расходы'!$Q$68 -> 0
A46: 2 | B46: Налоги и сборы | C46: тыс. руб. | D46: =SUM(D47:D52) ->  | E46: 0 | F46: 0 | H46: 0 | I46: 0 | K46: 41.34 | L46: 47.61 | O46: 54.64 | P46: 54.64 | Q46: =SUM(Q47:Q52) -> 42.47060708
A47: 2.1 | B47: Налог на имущество организаций | C47: тыс. руб. | D47: ='Смета расходов'!D79*'Текущие расходы'!$D$68 ->  | G47: ='Смета расходов'!H79*'Текущие расходы'!$G$68 ->  | J47: ='Смета расходов'!K79*'Текущие расходы'!$J$68 ->  | K47: ='Смета расходов'!L79*'Текущие расходы'!$K$68 -> 0 | L47: ='Смета расходов'!Q79*'Текущие расходы'!$L$68 -> 0 | M47: ='Смета расходов'!R79*'Текущие расходы'!$M$68 ->  | N47: ='Смета расходов'!S79*'Текущие расходы'!$N$68 ->  | O47: ='Смета расходов'!T79*'Текущие расходы'!$O$68 -> 0 | P47: ='Смета расходов'!U79*'Текущие расходы'!$P$68 -> 0 | Q47: ='Смета расходов'!V79*'Текущие расходы'!$Q$68 -> 0
A48: 2.2 | B48: Земельный налог и арендная плата за землю | C48: тыс. руб. | D48: ='Смета расходов'!D82*'Текущие расходы'!$D$68 ->  | G48: ='Смета расходов'!H82*'Текущие расходы'!$G$68 ->  | J48: ='Смета расходов'!K82*'Текущие расходы'!$J$68 ->  | K48: ='Смета расходов'!L82*'Текущие расходы'!$K$68 -> 0 | L48: ='Смета расходов'!Q82*'Текущие расходы'!$L$68 -> 0 | M48: ='Смета расходов'!R82*'Текущие расходы'!$M$68 ->  | N48: ='Смета расходов'!S82*'Текущие расходы'!$N$68 ->  | O48: ='Смета расходов'!T82*'Текущие расходы'!$O$68 -> 0 | P48: ='Смета расходов'!U82*'Текущие расходы'!$P$68 -> 0 | Q48: ='Смета расходов'!V82*'Текущие расходы'!$Q$68 -> 0
A49: 2.3 | B49: Водный налог и плата за пользование водным объектом | C49: тыс. руб. | D49: ='Смета расходов'!D81*'Текущие расходы'!$D$68 ->  | G49: ='Смета расходов'!H81*'Текущие расходы'!$G$68 ->  | J49: ='Смета расходов'!K81*'Текущие расходы'!$J$68 ->  | K49: ='Смета расходов'!L81*'Текущие расходы'!$K$68 -> 41.34 | L49: ='Смета расходов'!Q81*'Текущие расходы'!$L$68 -> 47.61 | M49: ='Смета расходов'!R81*'Текущие расходы'!$M$68 ->  | N49: ='Смета расходов'!S81*'Текущие расходы'!$N$68 ->  | O49: ='Смета расходов'!T81*'Текущие расходы'!$O$68 -> 54.64 | P49: ='Смета расходов'!U81*'Текущие расходы'!$P$68 -> 54.64 | Q49: ='Смета расходов'!V81*'Текущие расходы'!$Q$68 -> 42.47060708 | R49: ='Смета расходов'!N81/'Смета расходов'!N114*'Смета расходов'!L114 -> 24.97810037 | S49: В пересчете на объемы
A50: 2.4 | B50: Транспортный налог | C50: тыс. руб. | D50: ='Смета расходов'!D83*'Текущие расходы'!$D$68 ->  | G50: ='Смета расходов'!H83*'Текущие расходы'!$G$68 ->  | J50: ='Смета расходов'!K83*'Текущие расходы'!$J$68 ->  | K50: ='Смета расходов'!L83*'Текущие расходы'!$K$68 -> 0 | L50: ='Смета расходов'!Q83*'Текущие расходы'!$L$68 -> 0 | M50: ='Смета расходов'!R83*'Текущие расходы'!$M$68 ->  | N50: ='Смета расходов'!S83*'Текущие расходы'!$N$68 ->  | O50: ='Смета расходов'!T83*'Текущие расходы'!$O$68 -> 0 | P50: ='Смета расходов'!U83*'Текущие расходы'!$P$68 -> 0 | Q50: ='Смета расходов'!V83*'Текущие расходы'!$Q$68 -> 0
A51: 2.5 | B51: Плата за негативное воздействие на окружающую среду | C51: тыс. руб. | D51: ='Смета расходов'!D80*'Текущие расходы'!$D$68 ->  | G51: ='Смета расходов'!H80*'Текущие расходы'!$G$68 ->  | J51: ='Смета расходов'!K80*'Текущие расходы'!$J$68 ->  | K51: ='Смета расходов'!L80*'Текущие расходы'!$K$68 -> 0 | L51: ='Смета расходов'!Q80*'Текущие расходы'!$L$68 -> 0 | M51: ='Смета расходов'!R80*'Текущие расходы'!$M$68 ->  | N51: ='Смета расходов'!S80*'Текущие расходы'!$N$68 ->  | O51: ='Смета расходов'!T80*'Текущие расходы'!$O$68 -> 0 | P51: ='Смета расходов'!U80*'Текущие расходы'!$P$68 -> 0 | Q51: ='Смета расходов'!V80*'Текущие расходы'!$Q$68 -> 0
A52: 2.6 | B52: Прочие налоги и сборы | C52: тыс. руб. | D52: ='Смета расходов'!D84*'Текущие расходы'!$D$68 ->  | G52: ='Смета расходов'!H84*'Текущие расходы'!$G$68 ->  | J52: ='Смета расходов'!K84*'Текущие расходы'!$J$68 ->  | K52: ='Смета расходов'!L84*'Текущие расходы'!$K$68 -> 0 | L52: ='Смета расходов'!Q84*'Текущие расходы'!$L$68 -> 0 | M52: ='Смета расходов'!R84*'Текущие расходы'!$M$68 ->  | N52: ='Смета расходов'!S84*'Текущие расходы'!$N$68 ->  | O52: ='Смета расходов'!T84*'Текущие расходы'!$O$68 -> 0 | P52: ='Смета расходов'!U84*'Текущие расходы'!$P$68 -> 0 | Q52: ='Смета расходов'!V84*'Текущие расходы'!$Q$68 -> 0
A53: 3 | B53: Обязательное страхование объектов ВКХ | C53: тыс. руб. | D53: ='Смета расходов'!D37*'Текущие расходы'!$D$68 ->  | G53: ='Смета расходов'!H37*'Текущие расходы'!$G$68 ->  | J53: ='Смета расходов'!K37*'Текущие расходы'!$J$68 ->  | K53: ='Смета расходов'!L37*'Текущие расходы'!$K$68 -> 0 | L53: ='Смета расходов'!Q37*'Текущие расходы'!$L$68 -> 0 | M53: ='Смета расходов'!R37*'Текущие расходы'!$M$68 ->  | N53: ='Смета расходов'!S37*'Текущие расходы'!$N$68 ->  | O53: ='Смета расходов'!T37*'Текущие расходы'!$O$68 -> 0 | P53: ='Смета расходов'!U37*'Текущие расходы'!$P$68 -> 0 | Q53: ='Смета расходов'!V37*'Текущие расходы'!$Q$68 -> 0
A54: 4 | B54: Арендная и концессионная плата, лизинговые платежи | C54: тыс. руб. | D54: ='Смета расходов'!D73*'Текущие расходы'!$D$68 ->  | G54: ='Смета расходов'!H73*'Текущие расходы'!$G$68 ->  | J54: ='Смета расходов'!K73*'Текущие расходы'!$J$68 ->  | K54: ='Смета расходов'!L73*'Текущие расходы'!$K$68 -> 0 | L54: ='Смета расходов'!Q73*'Текущие расходы'!$L$68 -> 0 | M54: ='Смета расходов'!R73*'Текущие расходы'!$M$68 ->  | N54: ='Смета расходов'!S73*'Текущие расходы'!$N$68 ->  | O54: ='Смета расходов'!T73*'Текущие расходы'!$O$68 -> 0 | P54: ='Смета расходов'!U73*'Текущие расходы'!$P$68 -> 0 | Q54: ='Смета расходов'!V73*'Текущие расходы'!$Q$68 -> 0
A55: 5 | B55: Резерв по сомнительным долгам гарантирующей организации | C55: тыс. руб. | D55: =D56 ->  | E55: 0 | F55: 0 | H55: 0 | I55: 0 | J55: =J56 ->  | K55: 0 | L55: 0 | O55: 0 | P55: 0 | Q55: 0
A56: 5.1 | B56: Сбытовые расходы гарантирующей организации | C56: тыс. руб. | D56: ='Смета расходов'!D70*'Текущие расходы'!$D$68 ->  | G56: ='Смета расходов'!H70*'Текущие расходы'!$G$68 ->  | J56: ='Смета расходов'!K70*'Текущие расходы'!$J$68 ->  | K56: ='Смета расходов'!L70*'Текущие расходы'!$K$68 -> 0 | L56: ='Смета расходов'!Q70*'Текущие расходы'!$L$68 -> 0 | M56: ='Смета расходов'!R70*'Текущие расходы'!$M$68 ->  | N56: ='Смета расходов'!S70*'Текущие расходы'!$N$68 ->  | O56: ='Смета расходов'!T70*'Текущие расходы'!$O$68 -> 0 | P56: ='Смета расходов'!U70*'Текущие расходы'!$P$68 -> 0 | Q56: ='Смета расходов'!V70*'Текущие расходы'!$Q$68 -> 0
A57: 6 | B57: Расходы на обслуживание бесхозяйных сетей | C57: тыс. руб. | D57: ='Смета расходов'!D39*'Текущие расходы'!$D$68 ->  | G57: ='Смета расходов'!H39*'Текущие расходы'!$G$68 ->  | J57: ='Смета расходов'!K39*'Текущие расходы'!$J$68 ->  | K57: ='Смета расходов'!L39*'Текущие расходы'!$K$68 -> 0 | L57: ='Смета расходов'!Q39*'Текущие расходы'!$L$68 -> 0 | M57: ='Смета расходов'!R39*'Текущие расходы'!$M$68 ->  | N57: ='Смета расходов'!S39*'Текущие расходы'!$N$68 ->  | O57: ='Смета расходов'!T39*'Текущие расходы'!$O$68 -> 0 | P57: ='Смета расходов'!U39*'Текущие расходы'!$P$68 -> 0 | Q57: ='Смета расходов'!V39*'Текущие расходы'!$Q$68 -> 0
A58: 7 | B58: Займы и кредиты (для метода индексации) | C58: тыс. руб. | D58: =D59+D60 ->  | E58: 0 | F58: 0 | H58: 0 | I58: 0 | J58: =J59+J60 ->  | K58: 0 | L58: 0 | O58: 0 | P58: 0 | Q58: =Q59+Q60 -> 0
A59: 7.1 | B59: Возврат займов и кредитов | C59: тыс. руб. | D59: ='Смета расходов'!D90*'Текущие расходы'!$D$68 ->  | G59: ='Смета расходов'!H90*'Текущие расходы'!$G$68 ->  | J59: ='Смета расходов'!K90*'Текущие расходы'!$J$68 ->  | K59: ='Смета расходов'!L90*'Текущие расходы'!$K$68 -> 0 | L59: ='Смета расходов'!Q90*'Текущие расходы'!$L$68 -> 0 | M59: ='Смета расходов'!R90*'Текущие расходы'!$M$68 ->  | N59: ='Смета расходов'!S90*'Текущие расходы'!$N$68 ->  | O59: ='Смета расходов'!T90*'Текущие расходы'!$O$68 -> 0 | P59: ='Смета расходов'!U90*'Текущие расходы'!$P$68 -> 0 | Q59: ='Смета расходов'!V90*'Текущие расходы'!$Q$68 -> 0
A60: 7.2 | B60: Проценты по займам и кредитам | C60: тыс. руб. | D60: ='Смета расходов'!D91*'Текущие расходы'!$D$68 ->  | G60: ='Смета расходов'!H91*'Текущие расходы'!$G$68 ->  | J60: ='Смета расходов'!K91*'Текущие расходы'!$J$68 ->  | K60: ='Смета расходов'!L91*'Текущие расходы'!$K$68 -> 0 | L60: ='Смета расходов'!Q91*'Текущие расходы'!$L$68 -> 0 | M60: ='Смета расходов'!R91*'Текущие расходы'!$M$68 ->  | N60: ='Смета расходов'!S91*'Текущие расходы'!$N$68 ->  | O60: ='Смета расходов'!T91*'Текущие расходы'!$O$68 -> 0 | P60: ='Смета расходов'!U91*'Текущие расходы'!$P$68 -> 0 | Q60: ='Смета расходов'!V91*'Текущие расходы'!$Q$68 -> 0
D62: утверждено на 2014 | E62: утверждено на 2015 | F62: утверждено на 2016 | G62: утверждено РЭК на 2015 | J62: план ОКК на 2016 | K62: утверждено РЭК на 2016 | L62: утверждено РЭК на 2017 | M62: план РЭК на 2017 первоначальный | N62: план РЭК на 2017 корректировка | O62: план ОКК на 2018 | P62: план РЭК на 2018 первоначальный | Q62: план РЭК на 2018 корректировка
A63: полезный отпуск | D63: ='Смета расходов'!D119 -> 0 | G63: ='Смета расходов'!H119 -> 0 | J63: ='Смета расходов'!K119 -> 0 | K63: ='Смета расходов'!L119 -> 119.449925 | L63: ='Смета расходов'!Q119 -> 119.449925 | M63: ='Смета расходов'!R119 -> 0 | N63: ='Смета расходов'!S119 -> 0 | O63: ='Смета расходов'!T119 -> 119.449925 | P63: ='Смета расходов'!U119 -> 119.449925 | Q63: ='Смета расходов'!V119 -> 119.449925
A64: внутрихозяйственный оборот | D64: ='Смета расходов'!D120 -> 0 | G64: ='Смета расходов'!H120 -> 0 | J64: ='Смета расходов'!K120 -> 0 | K64: ='Смета расходов'!L120 -> 0 | L64: ='Смета расходов'!Q120 -> 0 | M64: ='Смета расходов'!R120 -> 0 | N64: ='Смета расходов'!S120 -> 0 | O64: ='Смета расходов'!T120 -> 0 | P64: ='Смета расходов'!U120 -> 0 | Q64: ='Смета расходов'!V120 -> 0
A65: реализация | D65: ='Смета расходов'!D121 -> 0 | G65: ='Смета расходов'!H121 -> 0 | J65: ='Смета расходов'!K121 -> 0 | K65: ='Смета расходов'!L121 -> 119.449925 | L65: ='Смета расходов'!Q121 -> 119.449925 | M65: ='Смета расходов'!R121 -> 0 | N65: ='Смета расходов'!S121 -> 0 | O65: ='Смета расходов'!T121 -> 119.449925 | P65: ='Смета расходов'!U121 -> 119.449925 | Q65: ='Смета расходов'!V121 -> 119.449925
D66: коэф. распр. | G66: коэф. распр. | J66: коэф. распр. | K66: коэф. распр. | L66: коэф. распр. | M66: коэф. распр. | N66: коэф. распр. | O66: коэф. распр. | P66: коэф. распр. | Q66: коэф. распр.
A67: внутрихозяйственный оборот | D67: =D64/D63 ->  | G67: =G64/G63 ->  | J67: =J64/J63 ->  | K67: 0 | L67: 0 | O67: 0 | P67: 0 | Q67: 0
A68: реализация | D68: =D65/D63 ->  | G68: =G65/G63 ->  | J68: =J65/J63 ->  | K68: 1 | L68: 1 | O68: 1 | P68: 1 | Q68: 1
A70: Руководитель организации ____________________________________
A72: Ответственный за составление формы ______________________________________

Sheet Расчет тарифа методом ЭОТ (hidden)
G1: Приложение 4
A2: Расчет тарифа на услуги холодного водоснабжения методом экономически обоснованных расходов (затрат)
A4: № п/п | B4: Наименование | C4: Ед. изм. | D4: 2014 | F4: 2014 факт РЭК | G4: 2015 | I4: 2015 ожид РЭК | J4: 2016 | K4: 2016 план РЭК | L4: Отклонение
D5: план | E5: факт | G5: план | H5: ожид | J5: план
A6: 1 | B6: 2 | C6: 3 | D6: 4 | E6: 5 | F6: 5* | G6: 6 | H6: 7 | I6: 7* | J6: 8 | K6: 8* | L6: 8**
A7: 1 | B7: Необходимая валовая выручка | C7: тыс. руб. | D7: =SUM(D8:D16) ->  | K7: 3069.839404 | L7: =K7-J7 -> 
A8: 1.1 | B8: Производственные расходы | C8: тыс. руб. | D8: ='Смета расходов'!D7*'Смета расходов'!D131% ->  | E8: ='Смета расходов'!E7*'Смета расходов'!E131% ->  | F8: ='Смета расходов'!F7*'Смета расходов'!F131% ->  | G8: ='Смета расходов'!H7*'Смета расходов'!H131% ->  | H8: ='Смета расходов'!I7*'Смета расходов'!I131% ->  | I8: ='Смета расходов'!J7*'Смета расходов'!J131% ->  | J8: ='Смета расходов'!K7*'Смета расходов'!K131% ->  | K8: ='Смета расходов'!L7*'Смета расходов'!L131% -> 1762.0698 | L8: =K8-J8 -> 
A9: 1.2 | B9: Ремонтные расходы | C9: тыс. руб. | D9: ='Смета расходов'!D41*'Смета расходов'!D131% ->  | E9: ='Смета расходов'!E41*'Смета расходов'!E131% ->  | F9: ='Смета расходов'!F41*'Смета расходов'!F131% ->  | G9: ='Смета расходов'!H41*'Смета расходов'!H131% ->  | H9: ='Смета расходов'!I41*'Смета расходов'!I131% ->  | I9: ='Смета расходов'!J41*'Смета расходов'!J131% ->  | J9: ='Смета расходов'!K41*'Смета расходов'!K131% ->  | K9: ='Смета расходов'!L41*'Смета расходов'!L131% -> 811.64
A10: 1.3 | B10: Административные расходы | C10: тыс. руб. | D10: ='Смета расходов'!D51*'Смета расходов'!D131% ->  | E10: ='Смета расходов'!E51*'Смета расходов'!E131% ->  | F10: ='Смета расходов'!F51*'Смета расходов'!F131% ->  | G10: ='Смета расходов'!H51*'Смета расходов'!H131% ->  | H10: ='Смета расходов'!I51*'Смета расходов'!I131% ->  | I10: ='Смета расходов'!J51*'Смета расходов'!J131% ->  | J10: ='Смета расходов'!K51*'Смета расходов'!K131% ->  | K10: ='Смета расходов'!L51*'Смета расходов'!L131% -> 424.3996044
A11: 1.4 | B11: Сбытовые расходы | C11: тыс. руб. | D11: ='Смета расходов'!D69*'Смета расходов'!D131% ->  | E11: ='Смета расходов'!E69*'Смета расходов'!E131% ->  | F11: ='Смета расходов'!F69*'Смета расходов'!F131% ->  | G11: ='Смета расходов'!H69*'Смета расходов'!H131% ->  | H11: ='Смета расходов'!I69*'Смета расходов'!I131% ->  | I11: ='Смета расходов'!J69*'Смета расходов'!J131% ->  | J11: ='Смета расходов'!K69*'Смета расходов'!K131% ->  | K11: ='Смета расходов'!L69*'Смета расходов'!L131% -> 0
A12: 1.5 | B12: Амортизация | C12: тыс. руб. | D12: ='Смета расходов'!D71*'Смета расходов'!D131% ->  | E12: ='Смета расходов'!E71*'Смета расходов'!E131% ->  | F12: ='Смета расходов'!F71*'Смета расходов'!F131% ->  | G12: ='Смета расходов'!H71*'Смета расходов'!H131% ->  | H12: ='Смета расходов'!I71*'Смета расходов'!I131% ->  | I12: ='Смета расходов'!J71*'Смета расходов'!J131% ->  | J12: ='Смета расходов'!K71*'Смета расходов'!K131% ->  | K12: ='Смета расходов'!L71*'Смета расходов'!L131% -> 0
A13: 1.6 | B13: Арендная и концессионная плата, лизинговые платежи | C13: тыс. руб. | D13: ='Смета расходов'!D73*'Смета расходов'!D131% ->  | E13: ='Смета расходов'!E73*'Смета расходов'!E131% ->  | F13: ='Смета расходов'!F73*'Смета расходов'!F131% ->  | G13: ='Смета расходов'!H73*'Смета расходов'!H131% ->  | H13: ='Смета расходов'!I73*'Смета расходов'!I131% ->  | I13: ='Смета расходов'!J73*'Смета расходов'!J131% ->  | J13: ='Смета расходов'!K73*'Смета расходов'!K131% ->  | K13: ='Смета расходов'!L73*'Смета расходов'!L131% -> 0
A14: 1.7 | B14: Налоги и сборы | C14: тыс. руб. | D14: ='Смета расходов'!D78*'Смета расходов'!D131%+'Смета расходов'!D96+'Смета расходов'!D97 ->  | E14: ='Смета расходов'!E78*'Смета расходов'!E131%+'Смета расходов'!E96+'Смета расходов'!E97 ->  | F14: ='Смета расходов'!F78*'Смета расходов'!F131%+'Смета расходов'!F96+'Смета расходов'!F97 ->  | G14: ='Смета расходов'!H78*'Смета расходов'!H131%+'Смета расходов'!H96+'Смета расходов'!H97 ->  | H14: ='Смета расходов'!I78*'Смета расходов'!I131%+'Смета расходов'!I96+'Смета расходов'!I97 ->  | I14: ='Смета расходов'!J78*'Смета расходов'!J131%+'Смета расходов'!J96+'Смета расходов'!J97 ->  | J14: ='Смета расходов'!K78*'Смета расходов'!K131%+'Смета расходов'!K96+'Смета расходов'!K97 ->  | K14: ='Смета расходов'!L78*'Смета расходов'!L131%+'Смета расходов'!L96+'Смета расходов'!L97 -> 71.73
A15: 1.8 | B15: Нормативная прибыль | C15: тыс. руб. | D15: ='Смета расходов'!D88 -> 0 | E15: ='Смета расходов'!E95 -> 0 | F15: ='Смета расходов'!F95 -> 0 | G15: ='Смета расходов'!H88 -> 0 | H15: ='Смета расходов'!I95 -> 0 | I15: ='Смета расходов'!J95 -> -1055.72779 | J15: ='Смета расходов'!K88 ->  | K15: ='Смета расходов'!L88 -> 0
A16: 1.9 | B16: Расчетная предпринимательская прибыль гарантирующей организации | C16: тыс. руб. | D16: ='Смета расходов'!D94 -> 0 | E16: ='Смета расходов'!E94 -> 0 | F16: ='Смета расходов'!F94 -> 0 | G16: ='Смета расходов'!H94 -> 0 | H16: ='Смета расходов'!I94 -> 0 | I16: ='Смета расходов'!J94 -> 0 | J16: ='Смета расходов'!K94 -> 0 | K16: ='Смета расходов'!L94 -> 0 | L16: 0
A17: 2 | B17: Недополученные доходы/ расходы прошлых периодов | C17: тыс. руб. | D17: =SUM(D18:D20) -> 0 | E17: =SUM(E18:E20) -> 0 | F17: 0 | G17: 0 | H17: 0 | I17: 0 | J17: 0 | K17: 0 | L17: 0
A18: 2.1 | B18: Экономически обоснованные расходы, не учтенные органом регулирования тарифов при установлении тарифов на ее товары (работы, услуги) в прошлом периоде | C18: тыс. руб. | L18: 0
A19: 2.2 | B19: Недополученные доходы прошлых периодов регулирования | C19: тыс. руб. | L19: 0
A20: 2.3 | B20: Расходы, связанные с обслуживанием заемных средств и собственных средств, направляемых на покрытие недостатка средств | C20: тыс. руб. | L20: 0
A21: 3 | B21: Экономически не обоснованные доходы прошлых периодов регулирования, включая доходы, связанные с нарушениями законодательства РФ при установлении и применении регулируемых тарифов | C21: тыс. руб. | L21: 0
A22: 4 | B22: Расходы, связанные с приобретением регулируемой организацией товаров (работ, услуг), используемых при осуществлении регулируемых видов деятельности, по завышенным ценам и в завышенных объемах | C22: тыс. руб. | D22: ='Смета расходов'!D98 -> 0 | E22: ='Смета расходов'!E98 -> 0 | F22: ='Смета расходов'!F98 -> 0 | G22: ='Смета расходов'!H98 -> 0 | H22: ='Смета расходов'!I98 -> 0 | I22: ='Смета расходов'!J98 -> 0 | J22: ='Смета расходов'!K98 -> 0 | K22: ='Смета расходов'!L98 -> -296.34 | L22: -296.34
A23: 5 | B23: Субсидии из бюджета | C23: тыс. руб. | D23: ='Смета расходов'!D99 -> 0 | E23: ='Смета расходов'!E99 -> 0 | F23: ='Смета расходов'!F99 -> 0 | G23: ='Смета расходов'!H99 -> 0 | H23: ='Смета расходов'!I99 -> 0 | I23: ='Смета расходов'!J99 -> 0 | J23: ='Смета расходов'!K99 -> 0 | K23: ='Смета расходов'!L99 -> 0 | L23: 0
A24: 6 | B24: Итого НВВ | C24: тыс. руб. | D24: =D7+D17+D21+D22-D23 ->  | E24: =E7+E17+E21+E22-E23 ->  | K24: 2773.499404 | O24: 2016 средний | P24: с 01.01.16 | Q24: с 01.07.16
A25: 7 | B25: Объем реализации водоснабжения | C25: тыс. куб.м | D25: ='Смета расходов'!D121 -> 0 | E25: ='Смета расходов'!E121 -> 0 | F25: ='Смета расходов'!F121 -> 0 | G25: ='Смета расходов'!H121 -> 0 | H25: ='Смета расходов'!I121 -> 0 | I25: ='Смета расходов'!J121 -> 0 | J25: ='Смета расходов'!K121 -> 0 | K25: ='Смета расходов'!L121 -> 119.449925 | L25: 119.449925 | N25: Объем реализации | O25: =K25 -> 119.449925 | P25: =O25/2 -> 59.7249625 | Q25: =O25-P25 -> 59.7249625
A26: 8 | B26: Тариф на водоснабжение среднегодовой | C26: руб./куб.м. | D26: =D24/D25 ->  | E26: =E24/E25 ->  | K26: 23.21892964 | L26: =K26-J26 ->  | N26: НВВ | O26: =K24 -> 2773.499404 | P26: =P27*P25 -> 0 | Q26: =O26-P26 -> 2773.499404
A27: 8.1 | B27: с 01.01.ХХ по 30.06.ХХ | C27: руб./куб.м. | K27: =P27 -> 0 | N27: тариф | O27: =K26 -> 23.21892964 | Q27: =Q26/Q25 -> 46.43785929
A28: 8.2 | B28: с 01.07.ХХ по 31.12.ХХ | C28: руб./куб.м. | K28: =Q27 -> 46.43785929 | N28: тариф с НДС | P28: =P27*1.18 -> 0 | Q28: =Q27*1.18 -> 54.79667396
A29: 8.3 | B29: Темп роста тарифа | C29: % | D29: =D28/D27*100 ->  | G29: =G26/D26*100 ->  | J29: =J26/G26*100 ->  | K29: =K28/G28*100 ->  | N29: Рост,% | Q29: =Q27/P27*100 -> 
B32: Руководитель организации | C32: ______________________________________
B34: Ответственный за составление формы | C34: ______________________________________
C35: МП

Sheet Смета расходов
H1: Приложение 2
A2: Смета расходов на услуги холодного водоснабжения | D2: Бейсужекское ММУП ЖКХ
A4: № п/п | B4: Наименование | C4: Ед. изм. | D4: 2014 | F4: 2014 факт РЭК | G4: Отклонение | H4: 2015 | I4: 2016 | J4: 2016 | K4: Отклонение факт РЭК от факт ОКК | L4: 2016 | M4: 2016 | N4: 2016 | O4: Отклонение факт РЭК от факт ОКК | P4: Отклонение факт РЭК от утверждено РЭК | Q4: 2017 | R4: 2017 план РЭК первоначальный | S4: 2017 план РЭК корректировка | T4: 2018 | U4: 2018 план РЭК перв-ый | V4: 2018 план РЭК кор-ка | W4: Отклонение утверждено РЭК от план ОКК | X4: Рост утверждено РЭК 2018/2017
D5: план | E5: факт | H5: утверждено РЭК | I5: факт ОКК | J5: факт РЭК | L5: утверждено РЭК | M5: факт ОКК | N5: факт РЭК | Q5: утверждено РЭК | T5: план ОКК
A6: 1 | B6: 2 | C6: 3 | D6: 4 | E6: 5 | F6: 5* | G6: 5** | H6: 6 | I6: 7 | J6: 7* | K6: 8 | L6: 8* | P6: 8** | Q6: 9 | R6: 9* | S6: 9** | T6: 10 | U6: 10* | V6: 10**
A7: 1 | B7: Производственные расходы | C7: тыс. руб. | D7: =D8+D12+D19+D20+D25+D30 ->  | E7: =E8+E12+E19+E20+E25+E30 ->  | F7: 0 | G7: =F7-E7 ->  | I7: 1829.552224 | J7: 1229.567112 | K7: =J7-I7 -> -599.9851119 | L7: 1762.0698 | M7: 1885.802224 | N7: 1428.264112 | O7: =N7-M7 -> -457.5381119 | P7: =N7-L7 -> -333.8056877
A8: 1.1 | B8: Расходы на приобретение сырья и материалов и их хранение | C8: тыс. руб. | D8: =D9+D10+D11 -> 0 | E8: =E9+E10+E11 -> 0 | F8: 0 | G8: 0 | H8: 0 | I8: 57.5156242 | J8: 53.637 | K8: =J8-I8 -> -3.8786242 | L8: 75.57 | M8: 57.5156242 | N8: 53.637 | O8: =N8-M8 -> -3.8786242 | P8: =N8-L8 -> -21.933
A9: 1.1.1 | B9: Реагенты | C9: тыс. руб. | D9: ='Сырье и материалы'!D7 -> 0 | E9: ='Сырье и материалы'!E7 -> 0 | F9: ='Сырье и материалы'!F7 -> 0 | G9: 0 | H9: ='Сырье и материалы'!G7 -> 0 | I9: ='Сырье и материалы'!H7 -> 0 | J9: ='Сырье и материалы'!I7 -> 0 | K9: 0 | L9: ='Сырье и материалы'!L7 -> 0.32 | M9: =I9 -> 0 | N9: 0 | O9: 0 | P9: -0.32
A10: 1.1.2 | B10: ГСМ | C10: тыс. руб. | D10: ='Сырье и материалы'!D8 -> 0 | E10: ='Сырье и материалы'!E8 -> 0 | F10: ='Сырье и материалы'!F8 -> 0 | G10: 0 | H10: ='Сырье и материалы'!G8 -> 0 | I10: ='Сырье и материалы'!H8 -> 46.8256242 | J10: ='Сырье и материалы'!I8 -> 46.83 | K10: 0.0043758 | L10: ='Сырье и материалы'!L8 -> 65.26 | M10: 46.8256242 | N10: 46.83 | O10: 0.0043758 | P10: -18.43
A11: 1.1.3 | B11: Материалы и малоценные основные средства | C11: тыс. руб. | D11: ='Сырье и материалы'!D9 -> 0 | E11: ='Сырье и материалы'!E9 -> 0 | F11: ='Сырье и материалы'!F9 -> 0 | G11: 0 | H11: ='Сырье и материалы'!G9 -> 0 | I11: ='Сырье и материалы'!H9 -> 10.69 | J11: ='Сырье и материалы'!I9 -> 6.807 | K11: -3.883 | L11: ='Сырье и материалы'!L9 -> 9.99 | M11: 10.69 | N11: 6.807 | O11: -3.883 | P11: -3.183
A12: 1.2 | B12: Расходы на энергетические ресурсы и холодную воду | C12: тыс. руб. | D12: =D14+D15+D16+D17+D18 -> 0 | E12: =E14+E15+E16+E17+E18 -> 0 | F12: 0 | G12: 0 | H12: 0 | I12: 1132.095 | J12: 535.991 | K12: -596.104 | L12: 776.71 | M12: 1132.095 | N12: 535.991 | O12: -596.104 | P12: -240.719 | Q12: 883.257 | R12: 0 | S12: 0 | T12: 931.83 | U12: 931.8283 | V12: 946.4819872 | W12: =V12-T12 -> 14.65198722 | X12: =V12/Q12*100 -> 107.1581643
A13: 1.2.1 | B13: электроэнергия | C13: тыс. кВт/ч | G13: 0 | K13: 0 | M13: 145.02 | N13: 69.357 | O13: -75.663 | P13: 69.357 | V13: 107.391 | W13: 107.391
C14: тыс. руб. | D14: =' ЭЭ'!D53 -> 0 | E14: =' ЭЭ'!E53 -> 0 | F14: =' ЭЭ'!F53 -> 0 | G14: 0 | H14: =' ЭЭ'!G53 -> 0 | I14: =' ЭЭ'!H53 -> 1132.095 | J14: =' ЭЭ'!I53 -> 535.991 | K14: -596.104 | L14: =' ЭЭ'!L53 -> 776.71 | M14: =I14 -> 1132.095 | N14: 535.991 | O14: -596.104 | P14: -240.719 | Q14: 883.257 | T14: 931.83 | U14: 931.8283 | V14: =V13*7.469*1.18 -> 946.4819872 | W14: 14.65198722 | X14: 107.1581643
A15: 1.2.2 | B15: теплоэнергия | C15: тыс. руб. | D15: =ТЭ!D16 -> 0 | E15: =ТЭ!E16 -> 0 | F15: =ТЭ!F16 -> 0 | G15: 0 | H15: =ТЭ!G16 -> 0 | I15: =ТЭ!H16 -> 0 | J15: =ТЭ!I16 -> 0 | K15: 0 | L15: =ТЭ!L16 -> 0 | M15: 0 | N15: 0 | O15: 0 | P15: 0 | W15: 0
A16: 1.2.3 | B16: теплоноситель | C16: тыс. руб. | D16: =ТН!D12 -> 0 | E16: =ТН!E12 -> 0 | F16: =ТН!F12 -> 0 | G16: 0 | H16: =ТН!G12 -> 0 | I16: =ТН!H12 -> 0 | J16: =ТН!I12 -> 0 | K16: 0 | L16: =ТН!L12 -> 0 | M16: 0 | N16: 0 | O16: 0 | P16: 0 | W16: 0
A17: 1.2.4 | B17: топливо | C17: тыс. руб. | D17: =Топливо!D20 -> 0 | E17: =Топливо!E20 -> 0 | F17: =Топливо!F20 -> 0 | G17: 0 | H17: =Топливо!G20 -> 0 | I17: =Топливо!H20 -> 0 | J17: =Топливо!I20 -> 0 | K17: 0 | L17: =Топливо!L20 -> 0 | M17: 0 | N17: 0 | O17: 0 | P17: 0 | W17: 0
A18: 1.2.5 | B18: холодная вода | C18: тыс. руб. | D18: ='Покупная вода'!D12 -> 0 | E18: ='Покупная вода'!E12 -> 0 | F18: ='Покупная вода'!F12 -> 0 | G18: 0 | H18: ='Покупная вода'!G12 -> 0 | I18: ='Покупная вода'!H12 -> 0 | J18: ='Покупная вода'!I12 -> 0 | K18: 0 | L18: ='Покупная вода'!L12 -> 0 | M18: 0 | N18: 0 | O18: 0 | P18: 0 | W18: 0
A19: 1.3 | B19: Расходы на оплату работ и услуг, выполняемых сторонними организациями и ИП, связанные с эксплуатацией централизованных систем, либо объектов в составе таких систем | C19: тыс. руб. | D19: ='Услуги сторонних организаций'!F10 -> 0 | E19: ='Услуги сторонних организаций'!G10 -> 0 | F19: ='Услуги сторонних организаций'!H10 -> 0 | G19: 0 | H19: ='Услуги сторонних организаций'!I10 -> 0 | I19: ='Услуги сторонних организаций'!J10 -> 44.14 | J19: ='Услуги сторонних организаций'!K10 -> 44.137 | K19: -0.003 | L19: ='Услуги сторонних организаций'!M10 -> 22.09 | M19: 44.14 | N19: 44.137 | O19: -0.003 | P19: 22.047
A20: 1.4 | B20: Расходы на оплату труда и отчисления на социальные нужды основного производственного персонала, в том числе налоги и сборы: | C20: тыс. руб. | D20: =D21+D22 -> 0 | E20: =E21+E22 -> 0 | F20: 0 | G20: 0 | H20: 0 | I20: 593.4516 | J20: 593.4521123 | K20: 0.0005123412001 | L20: 787.5798 | M20: 593.4516 | N20: 593.4521123 | O20: 0.0005123412001 | P20: -194.1276877
A21: 1.4.1 | B21: расходы на оплату труда основного производственного персонала | C21: тыс. руб. | D21: ='Оплата труда'!D8 -> 0 | E21: ='Оплата труда'!E8 -> 0 | F21: ='Оплата труда'!F8 -> 0 | G21: 0 | H21: ='Оплата труда'!G8 -> 0 | I21: ='Оплата труда'!H8 -> 455.8 | J21: ='Оплата труда'!I8 -> 455.8001123 | K21: 0.0001123412 | L21: ='Оплата труда'!K8 -> 604.9 | M21: =I21 -> 455.8 | N21: 455.8001123 | O21: 0.0001123412 | P21: -149.0998877
A22: 1.4.2 | B22: отчисления на социальные нужды основного производственного персонала, в том числе налоги и сборы | C22: тыс. руб. | D22: =D21*'Оплата труда'!D58% -> 0 | E22: =E21*'Оплата труда'!E58% -> 0 | F22: =F21*'Оплата труда'!F58% -> 0 | G22: 0 | H22: =H21*'Оплата труда'!G58% -> 0 | I22: =I21*'Оплата труда'!H58% -> 137.6516 | J22: =J21*'Оплата труда'!I58% -> 137.652 | K22: 0.0004 | L22: =L21*'Оплата труда'!K58% -> 182.6798 | M22: 137.6516 | N22: 137.652 | O22: 0.0004 | P22: -45.0278
A23: 1.4.3 | B23: численность основного производственного персонала, распределяемого на регулируемый вид деятельности | C23: чел. | D23: ='Оплата труда'!D32 -> 0 | E23: ='Оплата труда'!E32 -> 0 | F23: ='Оплата труда'!F32 -> 0 | G23: 0 | H23: ='Оплата труда'!G32 -> 0 | I23: ='Оплата труда'!H32 -> 3 | J23: ='Оплата труда'!I32 -> 3 | K23: 0 | L23: ='Оплата труда'!K32 -> 4 | M23: 3 | N23: 3 | O23: 0 | P23: -1
A24: 1.4.4 | B24: среднемесячная оплата труда ОПП | C24: руб./чел. в мес. | D24: =D21/D23/12*1000 ->  | E24: =E21/E23/12*1000 ->  | I24: 12661.11111 | J24: 12661.11423 | K24: 0.003120588888 | L24: 12602.08333 | M24: 12661.11111 | N24: 12661.11423 | O24: 0.003120588888 | P24: 59.03089837
A25: 1.5 | B25: Общехозяйственные расходы | C25: тыс. руб. | D25: ='Цех и Администр расх'!D14*'Цех и Администр расх'!H81% ->  | E25: ='Цех и Администр расх'!E14*'Цех и Администр расх'!I81% ->  | H25: ='Цех и Администр расх'!G14*'Цех и Администр расх'!K81% ->  | I25: ='Цех и Администр расх'!H14*'Цех и Администр расх'!L81% -> 0 | K25: 0 | L25: ='Цех и Администр расх'!M14 -> 0 | M25: =I25 -> 0 | O25: 0 | P25: 0
A26: 1.5.1 | B26: расходы на оплату труда цех. персонала | C26: тыс. руб. | D26: ='Цех и Администр расх'!D7*'Цех и Администр расх'!$H$81% ->  | E26: ='Цех и Администр расх'!E7*'Цех и Администр расх'!$I$81% ->  | H26: ='Цех и Администр расх'!G7*'Цех и Администр расх'!$K$81% ->  | I26: ='Цех и Администр расх'!H7*'Цех и Администр расх'!$L$81% -> 0 | K26: 0 | L26: ='Цех и Администр расх'!M7 -> 0 | M26: =I26 -> 0 | O26: 0 | P26: 0
A27: 1.5.2 | B27: отчисления на социальные нужды цех. персонала, в том числе налоги и сборы | C27: тыс. руб. | D27: ='Цех и Администр расх'!D8*'Цех и Администр расх'!$H$81% ->  | E27: ='Цех и Администр расх'!E8*'Цех и Администр расх'!$I$81% ->  | H27: ='Цех и Администр расх'!G8*'Цех и Администр расх'!$K$81% ->  | I27: ='Цех и Администр расх'!H8*'Цех и Администр расх'!$L$81% -> 0 | K27: 0 | L27: ='Цех и Администр расх'!M8 -> 0 | M27: =I27 -> 0 | O27: 0 | P27: 0
A28: 1.5.3 | B28: численность цех. персонала, распределяемого на регулируемый вид деятельности | C28: чел. | D28: ='Цех и Администр расх'!D9*'Цех и Администр расх'!$H$81% ->  | E28: ='Цех и Администр расх'!E9*'Цех и Администр расх'!$I$81% ->  | H28: ='Цех и Администр расх'!G9*'Цех и Администр расх'!$K$81% ->  | I28: ='Цех и Администр расх'!H9*'Цех и Администр расх'!$L$81% -> 0 | K28: 0 | L28: ='Цех и Администр расх'!M9 -> 0 | M28: =I28 -> 0 | O28: 0 | P28: 0
A29: 1.5.4 | B29: среднемесячная оплата труда цех. персонала | C29: руб./чел. в мес. | D29: =D26/D28/12*1000 ->  | E29: =E26/E28/12*1000 ->  | H29: =H26/H28/12*1000 ->  | I29: =I26/I28/12*1000 ->  | L29: =L26/L28/12*1000 ->  | M29: =I29 -> 
A30: 1.6 | B30: Прочие производственные расходы | C30: тыс. руб. | D30: =D31+D32+D33+D34+D35+D36+D37+D40 -> 0 | E30: =E31+E32+E33+E34+E35+E36+E37+E40 -> 0 | F30: =F31+F32+F33+F34+F35+F36+F37+F40 -> 0 | G30: 0 | H30: =H31+H32+H33+H34+H35+H36+H37+H40 -> 0 | I30: =I31+I32+I33+I34+I35+I36+I37+I40 -> 2.35 | J30: =J31+J32+J33+J34+J35+J36+J37+J40 -> 2.35 | K30: 0 | L30: =L31+L32+L33+L34+L35+L36+L37+L40 -> 100.12 | M30: =M31+M32+M33+M34+M35+M36+M37+M40 -> 58.6 | N30: =N31+N32+N33+N34+N35+N36+N37+N40 -> 201.047 | O30: 142.447 | P30: 100.927
A31: 1.6.1 | B31: расходы на амортизацию автотранспорта | C31: тыс. руб. | E31: ='Амортизация 2'!K15 -> 0 | F31: ='Амортизация 2'!L15 -> 0 | G31: 0 | I31: ='Амортизация 2'!K87 -> 0 | J31: ='Амортизация 2'!L87 -> 0 | K31: 0 | L31: ='Амортизация 2'!L160 -> 0 | M31: =I31 -> 0 | N31: =J31 -> 0 | O31: 0 | P31: 0
A32: 1.6.2 | B32: контроль качества воды | C32: тыс. руб. | G32: 0 | K32: 0 | L32: 78.57 | M32: 56.25 | N32: 56.251 | O32: 0.001 | P32: -22.319
A33: 1.6.3 | B33: прочие расходы | C33: тыс. руб. | G33: 0 | K33: 0 | N33: 7.957 | O33: 7.957 | P33: 7.957
A34: 1.6.4 | B34: расходы на приобретение (использование) вспомогательных материалов, запасных частей | C34: тыс. руб. | G34: 0 | K34: 0 | N34: 134.489 | O34: 134.489 | P34: 134.489
A35: 1.6.5 | B35: расходы на эксплуатацию, техническое обслуживание и ремонт автотранспорта | C35: тыс. руб. | D35: ='Охр.труда и Авто'!D30 -> 0 | E35: ='Охр.труда и Авто'!E30 -> 0 | F35: ='Охр.труда и Авто'!F30 -> 0 | G35: 0 | H35: ='Охр.труда и Авто'!G30 -> 0 | I35: ='Охр.труда и Авто'!H30 -> 0 | J35: ='Охр.труда и Авто'!I30 -> 0 | K35: 0 | L35: ='Охр.труда и Авто'!K30 -> 0 | M35: =I35 -> 0 | N35: =J35 -> 0 | O35: 0 | P35: 0
A36: 1.6.6 | B36: расходы на охрану труда ОПП | C36: тыс. руб. | D36: ='Охр.труда и Авто'!D13 -> 0 | E36: ='Охр.труда и Авто'!E13 -> 0 | F36: ='Охр.труда и Авто'!F13 -> 0 | G36: 0 | H36: ='Охр.труда и Авто'!G13 -> 0 | I36: ='Охр.труда и Авто'!H13 -> 2.35 | J36: ='Охр.труда и Авто'!I13 -> 2.35 | K36: 0 | L36: ='Охр.труда и Авто'!K13 -> 21.55 | M36: =I36 -> 2.35 | N36: =J36 -> 2.35 | O36: 0 | P36: -19.2
A37: 1.6.7 | B37: обязательное страхование объектов ВКХ | C37: тыс. руб. | G37: 0 | K37: 0 | O37: 0 | P37: 0 | W37: =V37-T37 -> 0 | X37: =V37/Q37*100 -> 
A38: 1.6.8 | B38: расходы на транспортировку воды | C38: тыс. руб. | K38: 0 | O38: 0 | P38: 0 | W38: =V38-T38 -> 0 | X38: =V38/Q38*100 -> 
A39: 1.6.9 | B39: расходы на обслуживание бесхозяйных сетей | C39: тыс. руб. | K39: 0 | O39: 0 | P39: 0 | W39: =V39-T39 -> 0 | X39: =V39/Q39*100 -> 
A40: 1.6.10 | B40: расходы головной организации | C40: тыс. руб. | G40: 0 | K40: 0 | O40: 0 | P40: 0
A41: 2 | B41: Ремонтные расходы | C41: тыс. руб. | D41: =D42+D43+D44+D45+D50 -> 0 | E41: =E42+E43+E44+E45+E50 -> 0 | F41: 0 | G41: 0 | H41: 0 | I41: 0 | J41: 0 | K41: 0 | L41: 811.64 | M41: 134.49 | N41: 1.53 | O41: -132.96 | P41: -810.11 | Q41: =Q42+Q43+Q44+Q50 -> 0 | R41: 0 | S41: 0 | T41: 903.91 | U41: 0 | V41: 0 | W41: =V41-T41 -> -903.91
A42: 2.1 | B42: Расходы на текущий ремонт централизованных систем водоснабжения либо объектов, входящих в состав таких систем | C42: тыс. руб. | G42: 0 | K42: 0 | L42: 811.64 | M42: 0 | O42: 0 | P42: -811.64 | T42: 533.63 | W42: =V42-T42 -> -533.63
A43: 2.2 | B43: Расходы на капитальный ремонт централизованных систем водоснабжения либо объектов, входящих в состав таких систем | C43: тыс. руб. | G43: 0 | K43: 0 | L43: 0 | M43: 0 | O43: 0 | P43: 0 | W43: =V43-T43 -> 0
A44: 2.3 | B44: Расходы на выполнение мероприятий по энергосбережению и повышению энергетической эффективности | C44: тыс. руб. | G44: 0 | K44: 0 | L44: 0 | M44: 0 | O44: 0 | P44: 0 | W44: =V44-T44 -> 0
A45: 2.4 | B45: Расходы на оплату труда и отчисления на социальные нужды ремонтного персонала, в том числе налоги и сборы | C45: тыс. руб. | D45: =D46+D47 -> 0 | E45: =E46+E47 -> 0 | F45: 0 | G45: 0 | H45: 0 | I45: 0 | J45: 0 | K45: 0 | L45: 0 | M45: 0 | N45: 0 | O45: 0 | P45: 0
A46: 2.4.1 | B46: расходы на оплату труда ремонтного персонала | C46: тыс. руб. | D46: ='Оплата труда'!D12 -> 0 | E46: ='Оплата труда'!E12 -> 0 | F46: ='Оплата труда'!F12 -> 0 | G46: 0 | H46: ='Оплата труда'!G12 -> 0 | I46: ='Оплата труда'!H12 -> 0 | J46: ='Оплата труда'!I12 -> 0 | K46: 0 | L46: ='Оплата труда'!K12 -> 0 | M46: =I46 -> 0 | N46: 0 | O46: 0 | P46: 0
A47: 2.4.2 | B47: отчисления на социальные нужды ремонтного персонала, в том числе налоги и сборы | C47: тыс. руб. | D47: =D46*'Оплата труда'!D87% -> 0 | E47: =E46*'Оплата труда'!E87% -> 0 | F47: =F46*'Оплата труда'!F87% -> 0 | G47: 0 | H47: =H46*'Оплата труда'!G87% -> 0 | I47: =I46*'Оплата труда'!H87% -> 0 | J47: =J46*'Оплата труда'!I87% -> 0 | K47: 0 | L47: =L46*'Оплата труда'!K87% -> 0 | M47: 0 | N47: 0 | O47: 0 | P47: 0
A48: 2.4.3 | B48: численность ремонтного персонала, распределяемого на регулируемый вид деятельности | C48: чел. | D48: ='Оплата труда'!D61 -> 0 | E48: ='Оплата труда'!E61 -> 0 | F48: ='Оплата труда'!F61 -> 0 | G48: 0 | H48: ='Оплата труда'!G61 -> 0 | I48: ='Оплата труда'!H61 -> 0 | J48: ='Оплата труда'!I61 -> 0 | K48: 0 | L48: ='Оплата труда'!K61 -> 0 | M48: 0 | N48: 0 | O48: 0 | P48: 0
A49: 2.4.4 | B49: среднемесячная оплата труда РП | C49: руб./чел. в мес. | D49: =D46/D48/12*1000 ->  | E49: =E46/E48/12*1000 -> 
A50: 2.5 | B50: Расходы на АВР | C50: тыс. руб. | G50: 0 | K50: 0 | L50: 0 | M50: 134.49 | N50: =1.53 -> 1.53 | O50: -132.96 | P50: 1.53 | T50: 370.28 | W50: =V50-T50 -> -370.28
A51: 3 | B51: Административные расходы | C51: тыс. руб. | D51: =D52+D59+D64+D65+D66+D67+D68 ->  | E51: =E52+E59+E64+E65+E66+E67+E68 ->  | F51: =F52+F59+F64+F65+F66+F67+F68 ->  | H51: =H52+H59+H64+H65+H66+H67+H68 ->  | I51: =I52+I59+I64+I65+I66+I67+I68 -> 689.7435217 | J51: =J52+J59+J64+J65+J66+J67+J68 -> 0 | K51: -689.7435217 | L51: =L52+L59+L64+L65+L66+L67+L68 -> 424.3996044 | M51: =M52+M59+M64+M65+M66+M67+M68 -> 689.7435217 | N51: =N52+N59+N64+N65+N66+N67+N68 -> 689.2906775 | O51: -0.4528442234 | P51: 264.891073
A52: 3.1 | B52: Расходы на оплату работ и услуг, выполняемых сторонними организациями | C52: тыс. руб. | D52: =D53+D54+D55+D56+D57+D58 ->  | E52: =E53+E54+E55+E56+E57+E58 ->  | F52: =F53+F54+F55+F56+F57+F58 -> 0 | H52: =H53+H54+H55+H56+H57+H58 ->  | I52: =I53+I54+I55+I56+I57+I58 -> 7.617864476 | J52: =J53+J54+J55+J56+J57+J58 -> 0 | K52: -7.617864476 | L52: =L53+L54+L55+L56+L57+L58 -> 18.06906481 | M52: =M53+M54+M55+M56+M57+M58 -> 7.617864476 | N52: =N53+N54+N55+N56+N57+N58 -> 7.617845645 | O52: -1.883124401e-05 | P52: -10.45121916
A53: 3.1.1 | B53: услуги связи и интернет | C53: тыс. руб. | D53: ='Цех и Администр расх'!D27*'Цех и Администр расх'!$H$100% ->  | E53: ='Цех и Администр расх'!E27*'Цех и Администр расх'!$I$100% ->  | H53: ='Цех и Администр расх'!G27*'Цех и Администр расх'!$K$100% ->  | I53: ='Цех и Администр расх'!H27*'Цех и Администр расх'!$L$100% -> 7.617864476 | K53: -7.617864476 | L53: ='Цех и Администр расх'!M27 -> 0 | M53: =I53 -> 7.617864476 | N53: ='Цех и Администр расх'!I27*'Цех и Администр расх'!M81/100 -> 7.617845645 | O53: -1.883124401e-05 | P53: 7.617845645
A54: 3.1.2 | B54: юридические услуги | C54: тыс. руб. | D54: ='Цех и Администр расх'!D28*'Цех и Администр расх'!$H$100% ->  | E54: ='Цех и Администр расх'!E28*'Цех и Администр расх'!$I$100% ->  | H54: ='Цех и Администр расх'!G28*'Цех и Администр расх'!$K$100% ->  | I54: ='Цех и Администр расх'!H28*'Цех и Администр расх'!$L$100% -> 0 | K54: 0 | L54: ='Цех и Администр расх'!M28 -> 0 | M54: 0 | N54: ='Цех и Администр расх'!I28*'Цех и Администр расх'!M82/100 -> 0 | O54: 0 | P54: 0
A55: 3.1.3 | B55: аудиторские услуги | C55: тыс. руб. | D55: ='Цех и Администр расх'!D29*'Цех и Администр расх'!$H$100% ->  | E55: ='Цех и Администр расх'!E29*'Цех и Администр расх'!$I$100% ->  | H55: ='Цех и Администр расх'!G29*'Цех и Администр расх'!$K$100% ->  | I55: ='Цех и Администр расх'!H29*'Цех и Администр расх'!$L$100% -> 0 | K55: 0 | L55: ='Цех и Администр расх'!M29 -> 0 | M55: 0 | N55: ='Цех и Администр расх'!I29*'Цех и Администр расх'!M83/100 -> 0 | O55: 0 | P55: 0
A56: 3.1.4 | B56: консультационные услуги | C56: тыс. руб. | D56: ='Цех и Администр расх'!D30*'Цех и Администр расх'!$H$100% ->  | E56: ='Цех и Администр расх'!E30*'Цех и Администр расх'!$I$100% ->  | H56: ='Цех и Администр расх'!G30*'Цех и Администр расх'!$K$100% ->  | I56: ='Цех и Администр расх'!H30*'Цех и Администр расх'!$L$100% -> 0 | K56: 0 | L56: ='Цех и Администр расх'!M30 -> 17.44207583 | M56: 0 | N56: ='Цех и Администр расх'!I30*'Цех и Администр расх'!M84/100 -> 0 | O56: 0 | P56: -17.44207583
A57: 3.1.5 | B57: услуги по вневедомственной охране объектов и территорий | C57: тыс. руб. | D57: ='Цех и Администр расх'!D31*'Цех и Администр расх'!$H$100% ->  | E57: ='Цех и Администр расх'!E31*'Цех и Администр расх'!$I$100% ->  | H57: ='Цех и Администр расх'!G31*'Цех и Администр расх'!$K$100% ->  | I57: ='Цех и Администр расх'!H31*'Цех и Администр расх'!$L$100% -> 0 | K57: 0 | L57: ='Цех и Администр расх'!M31 -> 0 | M57: 0 | N57: ='Цех и Администр расх'!I31*'Цех и Администр расх'!M85/100 -> 0 | O57: 0 | P57: 0
A58: 3.1.6 | B58: информационные услуги | C58: тыс. руб. | D58: ='Цех и Администр расх'!D32*'Цех и Администр расх'!$H$100% ->  | E58: ='Цех и Администр расх'!E32*'Цех и Администр расх'!$I$100% ->  | H58: ='Цех и Администр расх'!G32*'Цех и Администр расх'!$K$100% ->  | I58: ='Цех и Администр расх'!H32*'Цех и Администр расх'!$L$100% -> 0 | K58: 0 | L58: ='Цех и Администр расх'!M32 -> 0.6269889744 | M58: 0 | N58: ='Цех и Администр расх'!I32*'Цех и Администр расх'!M86/100 -> 0 | O58: 0 | P58: -0.6269889744
A59: 3.2 | B59: Расходы на оплату труда и отчисления на социальные нужды АУП, в том числе налоги и сборы | C59: тыс. руб. | D59: =D60+D61 ->  | E59: =E60+E61 ->  | I59: 392.4164614 | J59: 0 | K59: -392.4164614 | L59: 375.3135213 | M59: 392.4164614 | N59: 391.9652898 | O59: -0.4511715625 | P59: 16.65176848
A60: 3.2.1 | B60: расходы на оплату труда АУП | C60: тыс. руб. | D60: ='Оплата труда'!D16 ->  | E60: ='Оплата труда'!E16 ->  | F60: ='Оплата труда'!F16 ->  | H60: ='Оплата труда'!G16 ->  | I60: ='Оплата труда'!H16 -> 301.3951316 | K60: -301.3951316 | L60: ='Оплата труда'!K16 -> 288.259233 | M60: =I60 -> 301.3951316 | N60: ='Цех и Администр расх'!I34*'Цех и Администр расх'!M81/100 -> 301.3943701 | O60: -0.0007614973678 | P60: 13.13513715
A61: 3.2.2 | B61: отчисления на социальные нужды АУП, в том числе налоги и сборы | C61: тыс. руб. | D61: ='Смета расходов'!D60*'Оплата труда'!D116% ->  | E61: =E60*'Оплата труда'!E116% ->  | F61: =F60*'Оплата труда'!F116% ->  | H61: =H60*'Оплата труда'!G116% ->  | I61: =I60*'Оплата труда'!H116% -> 91.02132975 | K61: -91.02132975 | L61: =L60*'Оплата труда'!K116% -> 87.05428836 | M61: 91.02132975 | N61: ='Цех и Администр расх'!I35*'Цех и Администр расх'!M81/100 -> 90.57091968 | O61: -0.4504100651 | P61: 3.516631327
A62: 3.2.3 | B62: численность АУП, распределяемого на регулируемый вид деятельности | C62: чел. | D62: ='Цех и Администр расх'!D36*'Цех и Администр расх'!H100% ->  | E62: ='Цех и Администр расх'!E36*'Цех и Администр расх'!I100% ->  | F62: ='Цех и Администр расх'!F36*'Цех и Администр расх'!J100% ->  | H62: ='Цех и Администр расх'!G36*'Цех и Администр расх'!K100% ->  | I62: ='Цех и Администр расх'!H36*'Цех и Администр расх'!L100% -> 1.233995325 | K62: -1.233995325 | L62: ='Цех и Администр расх'!M36 -> 1.339996165 | M62: 1.233995325 | N62: ='Цех и Администр расх'!I36*'Цех и Администр расх'!M81/100 -> 1.233992275 | O62: -3.050417497e-06 | P62: -0.1060038901
A63: 3.2.4 | B63: среднемесячная оплата труда АУП | C63: руб./чел. в мес. | D63: =D60/D62/12*1000 ->  | E63: =E60/E62/12*1000 ->  | I63: 20353.61111 | L63: =L60/L62/12*1000 -> 17926.62052 | M63: 20353.61111 | N63: =N60/N62/12*1000 -> 20353.61 | O63: -0.001111111109 | P63: 2426.989483
A64: 3.3 | B64: Арендная плата, лизинговые платежи, не связанные с арендой (лизингом) централизованных систем водоснабжения либо объектов, входящих в состав таких систем | C64: тыс. руб. | D64: ='Цех и Администр расх'!D38*'Цех и Администр расх'!H100% ->  | E64: ='Цех и Администр расх'!E38*'Цех и Администр расх'!I100% ->  | F64: ='Цех и Администр расх'!F38*'Цех и Администр расх'!J100% ->  | H64: ='Цех и Администр расх'!G38*'Цех и Администр расх'!K100% ->  | I64: ='Цех и Администр расх'!H38*'Цех и Администр расх'!L100% -> 5.923177562 | K64: -5.923177562 | L64: ='Цех и Администр расх'!M38 -> 6.059490759 | M64: 5.923177562 | N64: 5.92 | O64: -0.003177562338 | P64: -0.1394907591
A65: 3.4 | B65: Служебные командировки | C65: тыс. руб. | D65: ='Цех и Администр расх'!D39*'Цех и Администр расх'!H100% ->  | E65: ='Цех и Администр расх'!E39*'Цех и Администр расх'!I100% ->  | F65: ='Цех и Администр расх'!F39*'Цех и Администр расх'!J100% ->  | H65: ='Цех и Администр расх'!G39*'Цех и Администр расх'!K100% ->  | I65: ='Цех и Администр расх'!H39*'Цех и Администр расх'!L100% -> 0 | K65: 0 | L65: ='Цех и Администр расх'!M39 -> 0 | M65: 0 | O65: 0 | P65: 0
A66: 3.5 | B66: Обучение персонала | C66: тыс. руб. | D66: ='Цех и Администр расх'!D40*'Цех и Администр расх'!H100% ->  | E66: ='Цех и Администр расх'!E40*'Цех и Администр расх'!I100% ->  | F66: ='Цех и Администр расх'!F40*'Цех и Администр расх'!J100% ->  | H66: ='Цех и Администр расх'!G40*'Цех и Администр расх'!K100% ->  | I66: ='Цех и Администр расх'!H40*'Цех и Администр расх'!L100% -> 5.758644852 | K66: -5.758644852 | L66: ='Цех и Администр расх'!M40 -> 0 | M66: 5.758644852 | N66: 5.76 | O66: 0.001355147727 | P66: 5.76
A67: 3.6 | B67: Страхование производственных объектов | C67: тыс. руб. | D67: ='Цех и Администр расх'!D41*'Цех и Администр расх'!H100% ->  | E67: ='Цех и Администр расх'!E41*'Цех и Администр расх'!I100% ->  | F67: ='Цех и Администр расх'!F41*'Цех и Администр расх'!J100% ->  | H67: ='Цех и Администр расх'!G41*'Цех и Администр расх'!K100% ->  | I67: ='Цех и Администр расх'!H41*'Цех и Администр расх'!L100% -> 3.599153033 | K67: -3.599153033 | L67: ='Цех и Администр расх'!M41 -> 1.641112081 | M67: 3.599153033 | N67: 3.6 | O67: 0.0008469673291 | P67: 1.958887919
A68: 3.7 | B68: Прочие административные расходы | C68: тыс. руб. | D68: ='Цех и Администр расх'!D42*'Цех и Администр расх'!H100% ->  | E68: ='Цех и Администр расх'!E42*'Цех и Администр расх'!I100% ->  | F68: ='Цех и Администр расх'!F42*'Цех и Администр расх'!J100% ->  | H68: ='Цех и Администр расх'!G42*'Цех и Администр расх'!K100% ->  | I68: ='Цех и Администр расх'!H42*'Цех и Администр расх'!L100% -> 274.4282204 | K68: -274.4282204 | L68: ='Цех и Администр расх'!M42 -> 23.31641548 | M68: 274.4282204 | N68: ='Цех и Администр расх'!I42*'Цех и Администр расх'!M81/100 -> 274.4275421 | O68: -0.0006783823471 | P68: 251.1111266
A69: 4 | B69: Сбытовые расходы гарантирующих организаций | C69: тыс. руб. | D69: =D70 -> 0 | E69: =E70 -> 0 | F69: 0 | G69: 0 | H69: 0 | I69: 0 | J69: 0 | K69: 0 | L69: 0 | M69: 0 | N69: 0 | O69: 0 | P69: 0 | Q69: 0 | R69: 0 | S69: 0 | T69: 0 | U69: 0 | V69: 0 | W69: =V69-T69 -> 0
A70: 4.1 | B70: Расходы по сомнительным долгам, в размере не более 2% НВВ | C70: тыс. руб. | F70: 0 | G70: 0 | K70: 0 | O70: 0 | P70: 0 | T70: ='Сомнительные долги'!C8 -> 0 | W70: =V70-T70 -> 0
A71: 5 | B71: Амортизация | C71: тыс. руб. | D71: =D72 -> 0 | E71: =E72 -> 0 | F71: 0 | G71: 0 | H71: 0 | I71: 0 | J71: 705.04 | K71: 705.04 | L71: 0 | M71: 0 | N71: 705.04 | O71: 705.04 | P71: 705.04 | Q71: 0 | R71: 0 | S71: 0 | T71: 0 | U71: 0 | V71: 0 | W71: =V71-T71 -> 0
A72: 5.1 | B72: Амортизация основных средств и нематериальных активов, относимых к объектам централизованной системы водоснабжения | C72: тыс. руб. | E72: ='Амортизация 2'!K5-'Амортизация 2'!K15 -> 0 | F72: ='Амортизация 2'!L5-'Амортизация 2'!L15 -> 0 | G72: 0 | I72: ='Амортизация 2'!K77-'Амортизация 2'!K87 -> 0 | J72: ='Амортизация 2'!L77-'Амортизация 2'!L87 -> 705.04 | K72: =J72-I72 -> 705.04 | L72: ='Амортизация 2'!L149-'Амортизация 2'!L160 -> 0 | M72: =I72 -> 0 | N72: =J72 -> 705.04 | O72: =N72-M72 -> 705.04 | P72: =N72-L72 -> 705.04 | W72: =V72-T72 -> 0
A73: 6 | B73: Расходы на арендную плату, лизинговые платежи, концессионную плату | C73: тыс. руб. | D73: =D74+D75+D76+D77 -> 0 | E73: =E74+E75+E76+E77 -> 0 | F73: 0 | G73: 0 | H73: 0 | I73: 0 | J73: 0 | K73: 0 | L73: 0 | M73: 0 | N73: 0 | O73: 0 | P73: 0 | Q73: 0 | R73: 0 | S73: 0 | T73: 0 | U73: 0 | V73: 0 | W73: 0
A74: 6.1 | B74: Аренда имущества | C74: тыс. руб. | D74: ='Аренда, лизинг, концессия'!H9 -> 0 | E74: ='Аренда, лизинг, концессия'!I9 -> 0 | F74: ='Аренда, лизинг, концессия'!J9 -> 0 | G74: 0 | H74: ='Аренда, лизинг, концессия'!K9 -> 0 | I74: ='Аренда, лизинг, концессия'!L9 -> 0 | J74: ='Аренда, лизинг, концессия'!M9 -> 0 | K74: 0 | L74: ='Аренда, лизинг, концессия'!O9 -> 0 | M74: =I74 -> 0 | N74: 0 | O74: 0 | P74: 0 | W74: 0 | X74: =V74/Q74*100 -> 
A75: 6.2 | B75: Концессионная плата | C75: тыс. руб. | D75: ='Аренда, лизинг, концессия'!H13 -> 0 | E75: ='Аренда, лизинг, концессия'!I13 -> 0 | F75: ='Аренда, лизинг, концессия'!J13 -> 0 | G75: =F75-E75 -> 0 | H75: ='Аренда, лизинг, концессия'!K13 -> 0 | I75: ='Аренда, лизинг, концессия'!L13 -> 0 | J75: ='Аренда, лизинг, концессия'!M13 -> 0 | K75: 0 | L75: ='Аренда, лизинг, концессия'!O11 -> 0 | M75: 0 | N75: 0 | O75: 0 | P75: 0 | W75: 0 | X75: =V75/Q75*100 -> 
A76: 6.3 | B76: Лизинговые платежи | C76: тыс. руб. | D76: ='Аренда, лизинг, концессия'!H17 -> 0 | E76: ='Аренда, лизинг, концессия'!I17 -> 0 | F76: ='Аренда, лизинг, концессия'!J17 -> 0 | G76: 0 | H76: ='Аренда, лизинг, концессия'!K17 -> 0 | I76: ='Аренда, лизинг, концессия'!L17 -> 0 | J76: ='Аренда, лизинг, концессия'!M17 -> 0 | K76: 0 | L76: ='Аренда, лизинг, концессия'!O15 -> 0 | M76: 0 | N76: 0 | O76: 0 | P76: 0 | W76: 0 | X76: =V76/Q76*100 -> 
A77: 6.4 | B77: Аренда земельных участков | C77: тыс. руб. | D77: ='Аренда, лизинг, концессия'!H21 -> 0 | E77: ='Аренда, лизинг, концессия'!I21 -> 0 | F77: ='Аренда, лизинг, концессия'!J21 -> 0 | G77: 0 | H77: ='Аренда, лизинг, концессия'!K21 -> 0 | I77: ='Аренда, лизинг, концессия'!L21 -> 0 | J77: ='Аренда, лизинг, концессия'!M21 -> 0 | K77: 0 | L77: ='Аренда, лизинг, концессия'!O21 -> 0 | M77: 0 | N77: 0 | O77: 0 | P77: 0 | W77: 0 | X77: =V77/Q77*100 -> 
A78: 7 | B78: Расходы, связанные с уплатой налогов и сборов | C78: тыс. руб. | D78: =SUM(D79:D84) -> 0 | E78: =SUM(E79:E84) -> 0 | F78: 0 | G78: 0 | H78: 0 | I78: 32.19 | J78: 16.129 | K78: -16.061 | L78: 41.34 | M78: 32.19 | N78: 16.129 | O78: -16.061 | P78: -25.211 | Q78: 47.61 | R78: 0 | S78: 0 | T78: 54.64 | U78: 54.64 | V78: 42.47060708 | W78: -12.16939292 | X78: =V78/Q78*100 -> 89.20522387
A79: 7.1 | B79: Налог на имущество организаций | C79: тыс. руб. | D79: =Налоги!D8 -> 0 | E79: =Налоги!E8 -> 0 | F79: =Налоги!F8 -> 0 | G79: 0 | H79: =Налоги!G8 -> 0 | I79: =Налоги!H8 -> 0 | J79: =Налоги!I8 -> 0 | K79: 0 | L79: =Налоги!K8 -> 0 | M79: =I79 -> 0 | N79: 0 | O79: 0 | P79: 0 | W79: 0
A80: 7.2 | B80: Плата за негативное воздействие на окружающую среду | C80: тыс. руб. | D80: =Налоги!D9 -> 0 | E80: =Налоги!E9 -> 0 | F80: =Налоги!F9 -> 0 | G80: 0 | H80: =Налоги!G9 -> 0 | I80: =Налоги!H9 -> 0 | J80: =Налоги!I9 -> 0 | K80: 0 | L80: =Налоги!K9 -> 0 | M80: 0 | N80: 0 | O80: 0 | P80: 0 | W80: 0
A81: 7.3 | B81: Водный налог и плата за пользование водным объектом | C81: тыс. руб. | D81: =Налоги!D10 -> 0 | E81: =Налоги!E10 -> 0 | F81: =Налоги!F10 -> 0 | G81: 0 | H81: =Налоги!G10 -> 0 | I81: =Налоги!H10 -> 32.19 | J81: =Налоги!I10 -> 16.129 | K81: -16.061 | L81: =Налоги!K10 -> 41.34 | M81: 32.19 | N81: 16.129 | O81: -16.061 | P81: -25.211 | Q81: 47.61 | T81: 54.64 | U81: 54.64 | V81: ='Расчет водного налога'!P19 -> 42.47060708 | W81: -12.16939292 | X81: =V81/Q81*100 -> 89.20522387 | Y81: Доля
A82: 7.4 | B82: Земельный налог | C82: тыс. руб. | D82: =Налоги!D11 -> 0 | E82: =Налоги!E11 -> 0 | F82: =Налоги!F11 -> 0 | G82: 0 | H82: =Налоги!G11 -> 0 | I82: =Налоги!H11 -> 0 | J82: =Налоги!I11 -> 0 | K82: 0 | L82: =Налоги!K11 -> 0 | M82: 0 | N82: 0 | O82: 0 | P82: 0 | W82: 0
A83: 7.5 | B83: Транспортный налог | C83: тыс. руб. | D83: =Налоги!D12 -> 0 | E83: =Налоги!E12 -> 0 | F83: =Налоги!F12 -> 0 | G83: 0 | H83: =Налоги!G12 -> 0 | I83: =Налоги!H12 -> 0 | J83: =Налоги!I12 -> 0 | K83: 0 | L83: =Налоги!K12 -> 0 | M83: 0 | N83: 0 | O83: 0 | P83: 0 | W83: 0
A84: 7.6 | B84: Прочие налоги и сборы, за исключением налогов и сборов с ФОТ, учитываемых в составе производственных, ремонтных и административных расходов | C84: тыс. руб. | G84: 0 | K84: 0 | L84: 0 | O84: 0 | P84: 0 | W84: 0
B85: Итого производственная себестоимость | C85: тыс. руб. | D85: =D7+D41+D51+D69+D71+D73+D78 ->  | E85: =E7+E41+E51+E69+E71+E73+E78 ->  | F85: =F7+F41+F51+F69+F71+F73+F78 ->  | H85: =H7+H41+H51+H69+H71+H73+H78 ->  | I85: =I7+I41+I51+I69+I71+I73+I78 -> 2551.485746 | J85: =J7+J41+J51+J69+J71+J73+J78 -> 1950.736112 | K85: -600.7496336 | L85: =L7+L41+L51+L69+L71+L73+L78 -> 3039.449404 | M85: =M7+M41+M51+M69+M71+M73+M78 -> 2742.225746 | N85: =N7+N41+N51+N69+N71+N73+N78 -> 2840.25379 | O85: 98.02804392 | P85: -199.1956146
B86: Производственная себестоимость | C86: руб./куб.м. | D86: =D85/D119 ->  | E86: =E85/E119 ->  | F86: =F85/F119 ->  | H86: =H85/H119 ->  | I86: =I85/I119 ->  | J86: =J85/J119 ->  | L86: =L85/L119 -> 25.44538562 | M86: =M85/M119 -> 35.55329626 | N86: =N85/N119 -> 36.82334451 | O86: 1.270048251 | P86: 11.37795888
B87: НВВ на реализацию | C87: тыс. руб. | D87: =D86*D121 ->  | E87: =E86*E121 ->  | F87: =F86*F121 ->  | H87: =H86*H121 ->  | I87: =I86*I121 ->  | J87: =J86*J121 ->  | L87: =L86*L121 -> 3039.449404 | M87: =M86*M121 -> 2742.225746 | N87: =N86*N121 -> 2840.25379 | O87: 98.02804392 | P87: -199.1956146
A88: 8 | B88: Нормативная прибыль | C88: тыс. руб. | D88: =D89+D92+D93 -> 0 | E88: - | F88: - | G88: - | H88: =H89+H92+H93 -> 0 | I88: - | J88: - | L88: 0 | M88: - | N88: - | Q88: 0 | R88: 0 | S88: 0 | T88: 0 | U88: 0 | V88: 0 | W88: 0
A89: 8.1 | B89: Средства на возврат займов и кредитов и процентов по ним | C89: тыс. руб. | D89: =D90+D91 -> 0 | E89: - | F89: - | G89: - | H89: =H90+H91 -> 0 | I89: - | J89: - | L89: =L90+L91 -> 0 | M89: - | N89: - | Q89: =Q90+Q91 -> 0 | R89: 0 | S89: 0 | T89: 0 | U89: 0 | V89: 0 | W89: 0
A90: 8.1.1 | B90: Возврат займов и кредитов | C90: тыс. руб. | D90: ='Нормативная прибыль'!D7 -> 0 | E90: - | H90: ='Нормативная прибыль'!G7 -> 0 | I90: - | J90: - | L90: ='Нормативная прибыль'!K7 -> 0 | M90: - | N90: - | Q90: 0 | T90: 0 | W90: 0
A91: 8.1.2 | B91: Проценты по займам и кредитам | C91: тыс. руб. | D91: ='Нормативная прибыль'!D8 -> 0 | E91: - | H91: ='Нормативная прибыль'!G8 -> 0 | I91: - | J91: - | L91: ='Нормативная прибыль'!K8 -> 0 | M91: - | N91: - | Q91: 0 | T91: 0 | W91: 0
A92: 8.2 | B92: Расходы на капитальные вложения | C92: тыс. руб. | D92: ='Нормативная прибыль'!D9 -> 0 | E92: - | F92: - | G92: - | H92: ='Нормативная прибыль'!G9 -> 0 | I92: - | J92: - | L92: ='Нормативная прибыль'!K9 -> 0 | M92: - | N92: - | Q92: 0 | T92: 0 | W92: 0
A93: 8.3 | B93: Расходы на социальные нужды, предусмотренные коллективными договорами, в соответствии с подпунктом 3 пункта 31 Методических указаний | C93: тыс. руб. | D93: ='Нормативная прибыль'!D10 -> 0 | E93: - | F93: - | G93: - | H93: ='Нормативная прибыль'!G10 -> 0 | I93: - | J93: - | L93: ='Нормативная прибыль'!K10 -> 0 | M93: - | N93: - | Q93: 0 | T93: 0 | W93: 0
A94: 9 | B94: Расчетная предпринимательская прибыль гарантирующей организации | C94: тыс. руб. | D94: ='Нормативная прибыль'!D13 -> 0 | E94: ='Нормативная прибыль'!E13 -> 0 | F94: ='Нормативная прибыль'!F13 -> 0 | G94: 0 | H94: ='Нормативная прибыль'!G13 -> 0 | I94: ='Нормативная прибыль'!H13 -> 0 | J94: ='Нормативная прибыль'!I13 -> 0 | K94: 0 | L94: ='Нормативная прибыль'!K13 -> 0 | M94: =I94 -> 0 | N94: =J94 -> 0 | O94: 0 | P94: 0 | Q94: 0 | T94: 0 | W94: 0
A95: 10 | B95: Фактическая прибыль/убыток | C95: тыс. руб. | D95: - | E95: ='Нормативная прибыль'!E15 -> 0 | F95: ='Нормативная прибыль'!F15 -> 0 | G95: 0 | H95: - | I95: ='Нормативная прибыль'!H15 -> 0 | J95: ='Нормативная прибыль'!I15 -> -1055.72779 | K95: -1055.72779 | L95: - | M95: =I95 -> 0 | N95: =J95 -> -1055.72779 | O95: -1055.72779 | Q95: - | R95: - | T95: - | U95: -
A96: 11 | B96: Налог на прибыль | C96: тыс. руб. | G96: 0 | K96: 0 | L96: 0 | M96: 0 | O96: 0 | P96: 0
A97: 12 | B97: Налог, уплачиваемый в связи с применением упрощенной системы налогообложения | C97: тыс. руб. | G97: 0 | K97: 0 | L97: 30.39 | M97: 32.19 | O97: -32.19 | P97: -30.39
A98: 13 | B98: Расходы, связанные с приобретением регулируемой организацией товаров (работ, услуг), используемых при осуществлении регулируемых видов деятельности, по завышенным ценам и в завышенных объемах | C98: тыс. руб. | G98: 0 | K98: 0 | L98: -296.34 | M98: 0 | N98: =O14 -> -596.104 | O98: -596.104 | P98: -299.764
A99: 14 | B99: Субсидии из бюджета | C99: тыс. руб. | G99: 0 | K99: 0 | L99: 0 | M99: 0 | O99: 0 | P99: 0 | Q99: 0 | T99: 0 | W99: 0
B100: ИТОГО НВВ | C100: тыс. руб. | D100: =D87+D88+D94+D96+D97+D98-D99 ->  | E100: =E87+E94+E95+E96+E97+E98-E99 ->  | F100: =F87+F94+F95+F96+F97+F98-F99 ->  | H100: =H87+H88+H94+H96+H97+H98-H99 ->  | I100: =I87+I94+I95+I96+I97+I98-I99 ->  | J100: =J87+J94+J95+J96+J97+J98-J99 ->  | L100: =L87+L88+L94+L96+L97+L98-L99 -> 2773.499404 | M100: =M87+M95+M94+M96+M97+M98-M99 -> 2774.415746 | N100: =N87+N95+N94+N96+N97+N98-N99 -> 1188.422 | O100: -1585.993746 | P100: -1585.077404
N101: 1784.526
B102: Нормативная прибыль, не более 7% от НВВ
A103: Руководитель организации ____________________________________
A105: Ответственный за составление формы ______________________________________
B106: МП
A108: Приложение 3
A109: Натуральные показатели по водоснабжению
A111: № п/п | B111: Наименование | C111: Ед. изм. | D111: 2014 | F111: 2014 факт РЭК | G111: Отклонение | H111: 2015 | I111: 2016 | J111: 2016 | K111: Отклонение факт РЭК от факт ОКК | L111: 2016 | M111: 2016 | N111: 2016 | O111: Отклонение факт РЭК от факт ОКК | P111: Отклонение факт РЭК от утверждено РЭК | Q111: 2017 | R111: 2017 план РЭК первоначальный | S111: 2017 план РЭК корректировка | T111: 2018 | U111: 2018 план РЭК перв-ый | V111: 2018 план РЭК кор-ка | W111: Отклонение утверждено РЭК от план ОКК | X111: Рост утверждено РЭК 2018/2017
D112: план | E112: факт | H112: утверждено РЭК | I112: факт ОКК | J112: факт РЭК | L112: утверждено РЭК | M112: факт ОКК | N112: факт РЭК | Q112: утверждено РЭК | T112: план ОКК
A113: 1 | B113: 2 | C113: 3 | D113: 4 | E113: 5 | F113: 5* | G113: 5** | H113: 6 | I113: 7 | J113: 7* | K113: 8 | L113: 8* | P113: 8** | Q113: 9 | R113: 9* | S113: 9** | T113: 10 | U113: 10* | V113: 10**
A114: 1 | B114: Подъем воды | C114: тыс. куб.м. | G114: =F114-E114 -> 0 | K114: =J114-I114 -> 0 | L114: 176.05 | M114: 219.52 | N114: 113.68 | O114: =N114-M114 -> -105.84 | P114: =N114-L114 -> -62.37 | Q114: 176.05 | T114: 176.05 | U114: 176.05 | V114: 176.05 | W114: =V114-T114 -> 0 | X114: =V114/Q114*100 -> 100
A115: 2 | B115: Объем покупной воды | C115: тыс. куб.м. | G115: =F115-E115 -> 0 | K115: =J115-I115 -> 0 | O115: =N115-M115 -> 0 | P115: =N115-L115 -> 0 | W115: =V115-T115 -> 0
A116: 3 | B116: Подано воды в сеть | C116: тыс. куб.м. | D116: =D114+D115 -> 0 | E116: =E114+E115 -> 0 | F116: 0 | G116: 0 | H116: 0 | I116: 0 | J116: 0 | K116: 0 | L116: 176.05 | M116: 219.52 | N116: =N114+N115 -> 113.68 | O116: -105.84 | P116: -62.37 | Q116: 176.05 | R116: 0 | S116: 0 | T116: 176.05 | U116: =U114+U115 -> 176.05 | V116: =V114+V115 -> 176.05 | W116: 0 | X116: =V116/Q116*100 -> 100
A117: 4 | B117: Потери | C117: тыс. куб.м. | D117: =D116*D118% -> 0 | E117: =E116*E118% -> 0 | F117: 0 | G117: 0 | H117: 0 | I117: 0 | J117: 0 | K117: 0 | L117: 56.600075 | M117: 142.3899998 | N117: =N116*N118% -> 36.54812 | O117: -105.8418798 | P117: -20.051955 | Q117: 56.600075 | R117: 0 | S117: 0 | T117: 56.600075 | U117: =U116*U118% -> 56.600075 | V117: =V116*V118% -> 56.600075 | W117: 0 | X117: 100
C118: % | G118: 0 | K118: 0 | L118: 32.15 | M118: 64.8642492 | N118: 32.15 | O118: -32.7142492 | P118: 0 | Q118: 32.15 | T118: 32.15 | U118: 32.15 | V118: 32.15 | W118: 0 | X118: 100
A119: 5 | B119: Полезный отпуск | C119: тыс. куб.м. | D119: =D116-D117 -> 0 | E119: =E116-E117 -> 0 | F119: 0 | G119: 0 | H119: 0 | I119: 0 | J119: 0 | K119: 0 | L119: 119.449925 | M119: 77.13000016 | N119: =N116-N117 -> 77.13188 | O119: 0.00187984384 | P119: -42.318045 | Q119: 119.449925 | R119: 0 | S119: 0 | T119: 119.449925 | U119: =U116-U117 -> 119.449925 | V119: =V116-V117 -> 119.449925 | W119: 0 | X119: 100
A120: 6 | B120: Внутрихозяйственный оборот | C120: тыс. куб.м. | G120: 0 | K120: 0 | O120: 0 | P120: 0 | W120: 0
A121: 7 | B121: Реализация услуг, в т.ч. | C121: тыс. куб.м. | D121: =D119-D120 -> 0 | E121: =E119-E120 -> 0 | F121: 0 | G121: 0 | H121: 0 | I121: 0 | J121: 0 | K121: 0 | L121: 119.449925 | M121: 77.13000016 | N121: =N119-N120 -> 77.13188 | O121: 0.00187984384 | P121: -42.318045 | Q121: 119.449925 | R121: 0 | S121: 0 | T121: 119.449925 | U121: =U119-U120 -> 119.449925 | V121: =V119-V120 -> 119.449925 | W121: 0 | X121: 100
A122: 7.1 | B122: - население | C122: тыс. куб.м. | G122: 0 | K122: 0 | L122: 97.45 | M122: 63.2 | N122: 63.2 | O122: 0 | P122: -34.25 | Q122: 97.45 | T122: 97.45 | U122: 97.45 | V122: 105.52 | W122: 8.07 | X122: 108.2811698
A123: 7.2 | B123: - специализированные организации (ВКХ) | C123: тыс. куб.м. | G123: 0 | H123: =H124+H125 -> 0 | I123: =I124+I125 -> 0 | J123: 0 | K123: 0 | L123: 0 | M123: 0 | N123: =N124+N125 -> 0 | O123: 0 | P123: 0 | Q123: 0 | R123: 0 | S123: 0 | T123: 0 | U123: =U124+U125 -> 0 | V123: =V124+V125 -> 0 | W123: 0
A124: 7.2.1 | B124: в объеме, реализуемом населению | C124: тыс. куб.м. | K124: 0 | O124: 0 | P124: 0 | W124: 0
A125: 7.2.2 | B125: в объеме, реализуемом прочим и бюджетным потребителям | C125: тыс. куб.м. | K125: 0 | O125: 0 | P125: 0 | W125: 0
A126: 7.3 | B126: - бюджетные, в т.ч. | C126: тыс. куб.м. | D126: =SUM(D127:D129) -> 0 | E126: =SUM(E127:E129) -> 0 | F126: 0 | G126: 0 | H126: 0 | I126: 0 | J126: 0 | K126: 0 | L126: 10 | M126: 4.73 | N126: =SUM(N127:N129) -> 4.73 | O126: 0 | P126: -5.27 | Q126: 10 | R126: 0 | S126: 0 | T126: 10 | U126: =SUM(U127:U129) -> 10 | V126: =SUM(V127:V129) -> 4.73 | W126: -5.27 | X126: 47.3
A127: 7.3.1 | B127: федеральный бюджет | C127: тыс. куб.м. | G127: 0 | K127: 0 | O127: 0 | P127: 0 | W127: 0
A128: 7.3.2 | B128: краевой бюджет | C128: тыс. куб.м. | G128: 0 | K128: 0 | O128: 0 | P128: 0 | W128: 0
A129: 7.3.3 | B129: местный бюджет | C129: тыс. куб.м. | G129: 0 | K129: 0 | L129: 10 | M129: 4.73 | N129: 4.73 | O129: 0 | P129: -5.27 | Q129: 10 | T129: 10 | U129: 10 | V129: 4.73 | W129: -5.27 | X129: 47.3
A130: 7.4 | B130: - прочие потребители | C130: тыс. куб.м. | G130: 0 | K130: 0 | L130: 12 | M130: 9.2 | N130: 9.2 | O130: 0 | P130: -2.8 | Q130: 12 | T130: 12 | U130: 12 | V130: 9.2 | W130: -2.8 | X130: 76.66666667
A131: 8 | B131: Распередление расходов пропорционально объемам реализации | C131: % | D131: =D121/D119*100 ->  | E131: =E121/E119*100 ->  | L131: 100 | M131: 100 | N131: 100 | O131: 0 | P131: 0 | Q131: 100 | T131: 100 | U131: 100 | V131: 100 | W131: 0 | X131: 100
B132: проверка | D132: =IF(D121=SUM(D122,D123,D126,D130),"верно", "не верно") -> верно | E132: =IF(E121=SUM(E122,E123,E126,E130),"верно", "не верно") -> верно | F132: верно | H132: верно | I132: верно | J132: верно | K132: верно | L132: не верно
A134: Руководитель организации ____________________________________
A136: Ответственный за составление формы ______________________________________
B137: МП

Sheet Расчет водного налога
K1: из подземных | L1: Кубань | M1: 570
E2: 654 | J2: корректировка | L2: прочие | M2: 654 | O2: 654 | Q2: с округл
A3: 2016 | K3: 2016
A4: Объем поднятой воды | B4: ='Смета расходов'!L114 -> 176.05 | K4: Объем поднятой воды | L4: ='Смета расходов'!L114 -> 176.05
A5: население | B5: ='Смета расходов'!L122+'Смета расходов'!L123 -> 97.45 | C5: =B5*C7/B7 -> 81.58225199 | D5: =B4*C5% -> 143.6255546 | E5: 93 | F5: =D5*E5/1000 -> 13.35717658 | K5: население | L5: ='Смета расходов'!L122+'Смета расходов'!L124 -> 97.45 | M5: =L5*M7/L7 -> 81.58225199 | N5: =L4*M5% -> 143.6255546 | O5: 93 | P5: =N5*O5/1000 -> 13.35717658
A6: прочие | B6: ='Смета расходов'!L126+'Смета расходов'!L130+'Смета расходов'!L120 -> 22 | C6: =C7-C5 -> 18.41774801 | D6: =B4-D5 -> 32.42444537 | E6: =E2*1.32 -> 863.28 | F6: =D6*E6/1000 -> 27.9913752 | G6: 1.32 | K6: прочие | L6: ='Смета расходов'!L125+'Смета расходов'!L126+'Смета расходов'!L130+'Смета расходов'!L120 -> 22 | M6: =M7-M5 -> 18.41774801 | N6: =L4-N5 -> 32.42444537 | O6: =ROUND(O2*1.32, 0) -> 863 | P6: =N6*O6/1000 -> 27.98229636 | Q6: 1.32
B7: =B5+B6 -> 119.45 | C7: 100 | D7: =D5+D6 -> 176.05 | F7: =F5+F6 -> 41.34855178 | L7: =L5+L6 -> 119.45 | M7: 100 | N7: =N5+N6 -> 176.05 | P7: =P5+P6 -> 41.33947294
A9: 2017 | K9: 2017
A10: Объем поднятой воды | B10: ='Смета расходов'!R114 -> 0 | K10: Объем поднятой воды | L10: ='Смета расходов'!Q114 -> 176.05
A11: население | B11: ='Смета расходов'!R122+'Смета расходов'!R123 -> 0 | C11: =B11*C13/B13 ->  | D11: =B10*C11% ->  | E11: 107 | F11: =D11*E11/1000 ->  | K11: население | L11: ='Смета расходов'!Q122+'Смета расходов'!Q124 -> 97.45 | M11: =L11*M13/L13 -> 81.58225199 | N11: =L10*M11% -> 143.6255546 | O11: 107 | P11: =N11*O11/1000 -> 15.36793434
A12: прочие | B12: ='Смета расходов'!R130+'Смета расходов'!R126+'Смета расходов'!R120 -> 0 | C12: =C13-C11 ->  | D12: =B10-D11 ->  | E12: =E2*1.52 -> 994.08 | F12: =D12*E12/1000 ->  | G12: 1.52 | K12: прочие | L12: ='Смета расходов'!Q125+'Смета расходов'!Q126+'Смета расходов'!Q130+'Смета расходов'!Q120 -> 22 | M12: =M13-M11 -> 18.41774801 | N12: =L10-N11 -> 32.42444537 | O12: =ROUND(O2*1.52, 0) -> 994 | P12: =N12*O12/1000 -> 32.2298987 | Q12: 1.52
B13: =B11+B12 -> 0 | C13: 100 | D13: =D11+D12 ->  | F13: =F11+F12 ->  | L13: =L11+L12 -> 119.45 | M13: 100 | N13: =N11+N12 -> 176.05 | P13: =P11+P12 -> 47.59783305
A15: 2018 | K15: 2018
A16: Объем поднятой воды | B16: ='Смета расходов'!U114 -> 176.05 | K16: Объем поднятой воды | L16: ='Смета расходов'!V114 -> 176.05
A17: население | B17: ='Смета расходов'!U122+'Смета расходов'!U123 -> 97.45 | C17: =B17*C19/B19 -> 81.58225199 | D17: =B16*C17% -> 143.6255546 | E17: 122 | F17: =D17*E17/1000 -> 17.52231766 | K17: население | L17: ='Смета расходов'!V122+'Смета расходов'!V124 -> 105.52 | M17: =L17*M19/L19 -> 88.33821683 | N17: =L16*M17% -> 155.5194307 | O17: 122 | P17: =N17*O17/1000 -> 18.97337055
A18: прочие | B18: ='Смета расходов'!U120+'Смета расходов'!U126+'Смета расходов'!U130 -> 22 | C18: =C19-C17 -> 18.41774801 | D18: =B16-D17 -> 32.42444537 | E18: =E2*1.75 -> 1144.5 | F18: =D18*E18/1000 -> 37.10977773 | G18: 1.75 | K18: прочие | L18: ='Смета расходов'!V125+'Смета расходов'!V126+'Смета расходов'!V130+'Смета расходов'!V120 -> 13.93 | M18: =M19-M17 -> 11.66178317 | N18: =L16-N17 -> 20.53056928 | O18: =O2*1.75 -> 1144.5 | P18: =N18*O18/1000 -> 23.49723654 | Q18: 1.75
B19: =B17+B18 -> 119.45 | C19: 100 | D19: =D17+D18 -> 176.05 | F19: =F17+F18 -> 54.6320954 | L19: =L17+L18 -> 119.45 | M19: 100 | N19: =N17+N18 -> 176.05 | P19: =P17+P18 -> 42.47060708
A22: Факт 2016 | B22: Объемы | D22: Плата | G22: Факт д.быть
B23: прочие | C23: насел. | D23: 654 | E23: 93 | G23: Объемы
B24: 2979 | C24: 49290 | D24: 2571 | E24: 4584 | G24: прочие | H24: насел.
B25: 4444 | C25: 58323 | D25: 3835 | E25: 5424 | G25: ='Смета расходов'!N114*'Расчет водного налога'!B31/100 -> 7.213519977 | H25: ='Смета расходов'!N114*'Расчет водного налога'!C31/100 -> 106.46648
B26: 1100 | C26: 69169 | D26: 949 | E26: 6433 | G26: Плата
B27: 5407 | C27: 28815 | D27: 6072 | E27: 2680 | G27: 654 | H27: 93
A28: Итого | B28: =SUM(B24:B27) -> 13930 | C28: =SUM(C24:C27) -> 205597 | D28: =SUM(D24:D27) -> 13427 | E28: =SUM(E24:E27) -> 19121 | G28: =G25*E6 -> 6227.287526 | H28: =H25*H27 -> 9901.382642
B29: =B28+C28 -> 219527 | D29: =D28+E28 -> 32548 | G29: =(G28+H28)/1000 -> 16.12867017
A31: % | B31: =B28/B29% -> 6.345460923 | C31: =C28/B29% -> 93.65453908

Sheet Нат. показатели по МО
J1: Приложение Г
A2: Натуральные показатели ПЛАНОВЫХ объемов водоснабжения на 2018 год (в разрезе муниципальных образований)*
A4: Наименование показателей | B4: Ед. изм. | C4: ВСЕГО по предприятию, в т.ч. по МО | D4: _____________ городское поселение | E4: Бейсужекское сельское поселение | F4: ______________ сельское поселение | G4: ______________ сельское поселение | H4: ______________ сельское поселение | I4: ______________ сельское поселение | J4: ______________ сельское поселение | K4: ______________ сельское поселение
A5: подъем | B5: тыс. куб.м. | C5: =SUM(D5:K5) -> 176.05 | E5: 176.05 | L5: =IF(C5=SUM(D5:K5),"верно","не верно") -> верно
A6: покупная вода | B6: тыс. куб.м. | C6: =SUM(D6:K6) -> 0 | L6: =IF(C6=SUM(D6:K6),"верно","не верно") -> верно
A7: Итого подъем и покупная вода | B7: тыс. куб.м. | C7: 176.05 | D7: =D5+D6 -> 0 | E7: 176.05 | F7: 0 | G7: 0 | H7: 0 | I7: 0 | J7: 0 | K7: 0 | L7: верно
A8: потери | B8: тыс. куб.м. | C8: 56.600075 | D8: =D7*D9% -> 0 | E8: 56.600075 | F8: 0 | G8: 0 | H8: 0 | I8: 0 | J8: 0 | K8: 0 | L8: верно
B9: % | C9: 32.15 | E9: 32.15 | L9: верно
A10: полезный отпуск | B10: тыс. куб.м. | C10: 119.449925 | D10: =D7-D8 -> 0 | E10: 119.449925 | F10: 0 | G10: 0 | H10: 0 | I10: 0 | J10: 0 | K10: 0 | L10: верно
A11: Внутрихозяйственный оборот | B11: тыс. куб.м. | C11: 0 | L11: верно
A12: реализация услуг, в т.ч. | B12: тыс. куб.м. | C12: 119.449925 | D12: =D10-D11 -> 0 | E12: 119.449925 | F12: 0 | G12: 0 | H12: 0 | I12: 0 | J12: 0 | K12: 0 | L12: верно
A13: - население | B13: тыс. куб.м. | C13: 97.43 | E13: 97.43 | L13: верно
A14: - специализированные организации (ВКХ) | B14: тыс. куб.м. | C14: 0 | L14: верно
A15: - бюджетные, в т.ч. | B15: тыс. куб.м. | C15: 10 | D15: =SUM(D16:D18) -> 0 | E15: 10 | F15: 0 | G15: 0 | H15: 0 | I15: 0 | J15: 0 | K15: 0 | L15: верно
A16: федеральный бюджет | B16: тыс. куб.м. | C16: 0 | L16: верно
A17: краевой бюджет | B17: тыс. куб.м. | C17: 0 | L17: верно
A18: местный бюджет | B18: тыс. куб.м. | C18: 10 | E18: 10 | L18: верно
A19: - прочие потребители | B19: тыс. куб.м. | C19: 12 | E19: 12 | L19: верно
A20: прверка | C20: 0 | D20: =IF(D12=SUM(D13,D14,D15,D19),"верно","не верно") -> верно | E20: не верно | F20: верно | G20: верно | H20: верно | I20: верно | J20: верно | K20: верно
A23: Натуральные показатели ФАКТИЧЕСКИХ объемов водоснабжения за 2016 год (в разрезе муниципальных образований)*
A25: Наименование показателей | B25: Ед. изм. | C25: ВСЕГО по предприятию, в т.ч. по МО | D25: _____________ городское поселение | E25: Бейсужекское сельское поселение | F25: _____________ сельское поселение | G25: _____________ сельское поселение | H25: _____________ сельское поселение | I25: _____________ сельское поселение | J25: _____________ сельское поселение | K25: _____________ сельское поселение
A26: подъем | B26: тыс. куб.м. | C26: =SUM(D26:K26) -> 219.52 | E26: 219.52 | L26: =IF(C26=SUM(D26:K26),"верно","не верно") -> верно
A27: покупная вода | B27: тыс. куб.м. | C27: =SUM(D27:K27) -> 0 | L27: верно
A28: Итого подъем и покупная вода | B28: тыс. куб.м. | C28: 219.52 | D28: =D26+D27 -> 0 | E28: 219.52 | F28: 0 | G28: 0 | H28: 0 | I28: 0 | J28: 0 | K28: 0 | L28: верно
A29: потери | B29: тыс. куб.м. | C29: 142.3899998 | D29: =D28*D30% -> 0 | E29: 142.3899998 | F29: 0 | G29: 0 | H29: 0 | I29: 0 | J29: 0 | K29: 0 | L29: верно
B30: % | C30: 64.8642492 | E30: 64.8642492 | L30: верно
A31: полезный отпуск | B31: тыс. куб.м. | C31: 77.13000016 | D31: =D28-D29 -> 0 | E31: 77.13000016 | F31: 0 | G31: 0 | H31: 0 | I31: 0 | J31: 0 | K31: 0 | L31: верно
A32: Внутрихозяйственный оборот | B32: тыс. куб.м. | C32: 0 | L32: верно
A33: реализация услуг, в т.ч. | B33: тыс. куб.м. | C33: 77.13000016 | D33: =D31-D32 -> 0 | E33: 77.13000016 | F33: 0 | G33: 0 | H33: 0 | I33: 0 | J33: 0 | K33: 0 | L33: верно
A34: - население | B34: тыс. куб.м. | C34: 63.2 | E34: 63.2 | L34: верно
A35: - специализированные организации (ВКХ) | B35: тыс. куб.м. | C35: 0 | L35: верно
A36: - бюджетные, в т.ч. | B36: тыс. куб.м. | C36: 4.73 | D36: =SUM(D37:D39) -> 0 | E36: 4.73 | F36: 0 | G36: 0 | H36: 0 | I36: 0 | J36: 0 | K36: 0 | L36: верно
A37: федеральный бюджет | B37: тыс. куб.м. | C37: 0 | L37: верно
A38: краевой бюджет | B38: тыс. куб.м. | C38: 0 | L38: верно
A39: местный бюджет | B39: тыс. куб.м. | C39: 4.73 | E39: 4.73 | L39: верно
A40: - прочие потребители | B40: тыс. куб.м. | C40: 9.2 | E40: 9.2 | L40: верно
A41: проверка | C41: =IF(C33=SUM(C34:C36,C40),"верно","не верно") -> не верно | D41: =IF(D33=SUM(D34:D36,D40),"верно","не верно") -> верно | E41: не верно | F41: верно | G41: верно | H41: верно | I41: верно | J41: верно | K41: верно
A43: Руководитель организации | B43: ______________________________________
A45: Ответственный за составление формы | B45: ______________________________________
B46: МП
A47: * в случае утверждения дифференцированных тарифов по системам коммунальной инфраструктуры таблицу представлять по системам (станицы, хутора, улицы)

Sheet Баланс ВС (hidden)
I1: Приложение 1
A2: Баланс водоснабжения
A4: № п/п | B4: Наименование | C4: Ед. изм. | D4: 2013 | F4: 2014 | H4: 2014 факт РЭК | I4: 2015 | K4: 2015 ожид РЭК | L4: 2016 | M4: 2016 план РЭК
D5: план | E5: факт | F5: план | G5: факт | I5: план | J5: ожид | L5: план
A6: 1 | B6: 2 | C6: 3 | D6: 4 | E6: 5 | F6: 6 | G6: 7 | H6: 7* | I6: 8 | J6: 9 | K6: 9* | L6: 10 | M6: 10*
A7: 1 | B7: Водоподготовка
A8: 1.1 | B8: Объем воды из источников водоснабжения: | C8: тыс. куб. м | D8: =D9+D10+D11 -> 0 | E8: =E9+E10+E11 -> 0 | F8: 0 | G8: 0 | H8: 0 | I8: 0 | J8: 0 | K8: 0 | L8: 0 | M8: 0
A9: 1.1.1 | B9: из поверхностных источников | C9: тыс. куб. м
A10: 1.1.2 | B10: из подземных источников | C10: тыс. куб. м
A11: 1.1.3 | B11: доочищенная сточная вода для нужд технического водоснабжения | C11: тыс. куб. м
A12: 1.2 | B12: Объем воды, прошедшей водоподготовку | C12: тыс. куб. м
A13: 1.3 | B13: Объем технической воды, поданной в сеть | C13: тыс. куб. м
A14: 1.4 | B14: Объем питьевой воды, поданной в сеть | C14: тыс. куб. м
A15: 2 | B15: Приготовление горячей воды
A16: 2.1 | B16: Объем воды из собственных источников | C16: тыс. куб. м
A17: 2.2 | B17: Объем приобретенной питьевой воды | C17: тыс. куб. м
A18: 2.3 | B18: Объем горячей воды, поданной в сеть | C18: тыс. куб. м
A19: 3 | B19: Транспортировка питьевой воды
A20: 3.1 | B20: Объем воды, поступившей в сеть: | C20: тыс. куб. м | D20: =D21+D22+D23 -> 0 | E20: =E21+E22+E23 -> 0 | F20: 0 | G20: 0 | H20: 0 | I20: 0 | J20: 0 | K20: 0 | L20: 0 | M20: 0
A21: 3.1.1 | B21: из собственных источников | C21: тыс. куб. м
A22: 3.1.2 | B22: от других операторов | C22: тыс. куб. м
A23: 3.1.3 | B23: получено от других территорий, дифференцированных по тарифу | C23: тыс. куб. м
A24: 3.2 | B24: Потери воды | C24: тыс. куб. м
A25: 3.3 | B25: Потребление на собственные нужды | C25: тыс. куб. м
A26: 3.4 | B26: Объем воды, отпущенной из сети | C26: тыс. куб. м
A27: 3.5 | B27: Передано на другие территории, дифференцированные по тарифу | C27: тыс. куб. м
A28: 4 | B28: Транспортировка технической воды
A29: 4.1 | B29: Объем воды, поступившей в сеть | C29: тыс. куб. м
A30: 4.2 | B30: Потери воды | C30: тыс. куб. м
A31: 4.3 | B31: Потребление на собственные нужды | C31: тыс. куб. м
A32: 4.4 | B32: Объем воды, отпущенной из сети | C32: тыс. куб. м
A33: 5 | B33: Транспортировка горячей воды
A34: 5.1 | B34: Объем воды, поступившей в сеть | C34: тыс. куб. м
A35: 5.2 | B35: Потери воды | C35: тыс. куб. м
A36: 5.3 | B36: Потребление на собственные нужды | C36: тыс. куб. м
A37: 5.4 | B37: Объем воды, отпущенной из сети | C37: тыс. куб. м
A38: 6 | B38: Отпуск питьевой воды
A39: 6.1 | B39: Объем воды, отпущенной абонентам: | C39: тыс. куб. м | D39: =D40+D41 -> 0 | E39: =E40+E41 -> 0 | F39: 0 | G39: 0 | H39: 0 | I39: 0 | J39: 0 | K39: 0 | L39: 0 | M39: 0
A40: 6.1.1 | B40: по приборам учета | C40: тыс. куб. м
A41: 6.1.2 | B41: по нормативам | C41: тыс. куб. м
A42: 6.2 | B42: для приготовления горячей воды | C42: тыс. куб. м
A43: 6.3 | B43: при дифференциации тарифов по объему | C43: тыс. куб. м | D43: =SUM(D44:D45) -> 0 | E43: 0 | F43: 0 | G43: 0 | H43: 0 | I43: 0 | J43: 0 | K43: 0 | L43: 0 | M43: 0
A44: 6.3.1 | B44: в пределах i-го объема | C44: тыс. куб. м
B45: Добавить
A46: 6.4 | B46: По абонентам | C46: тыс. куб. м | D46: =D47+D50 -> 0 | E46: 0 | F46: 0 | G46: 0 | H46: 0 | I46: 0 | J46: 0 | K46: 0 | L46: 0 | M46: 0
A47: 6.4.1 | B47: другим организациям, осуществляющим водоснабжение | C47: тыс. куб. м | D47: =SUM(D48:D49) -> 0 | E47: 0 | F47: 0 | G47: 0 | H47: 0 | I47: 0 | J47: 0 | K47: 0 | L47: 0 | M47: 0
A48: 6.4.1.1 | B48: (организация 1) | C48: тыс. куб. м
B49: Добавить
A50: 6.4.2 | B50: собственным абонентам | C50: тыс. куб. м
A51: 7 | B51: Отпуск технической воды
A52: 7.1 | B52: Объем воды, отпущенной абонентам | C52: тыс. куб. м
A53: 7.2 | B53: при дифференциации тарифов по объему | C53: тыс. куб. м | D53: =SUM(D54:D55) -> 0 | E53: 0 | F53: 0 | G53: 0 | H53: 0 | I53: 0 | J53: 0 | K53: 0 | L53: 0 | M53: 0
A54: 7.2.1 | B54: в пределах i-го объема | C54: тыс. куб. м
B55: Добавить
A56: 7.3 | B56: По абонентам | C56: тыс. куб. м | D56: =D57+D60 -> 0 | E56: 0 | F56: 0 | G56: 0 | H56: 0 | I56: 0 | J56: 0 | K56: 0 | L56: 0 | M56: 0
A57: 7.3.1 | B57: другим организациям, осуществляющим водоснабжение | C57: тыс. куб. м | D57: =SUM(D58:D59) -> 0 | E57: 0 | F57: 0 | G57: 0 | H57: 0 | I57: 0 | J57: 0 | K57: 0 | L57: 0 | M57: 0
A58: 7.3.1.1 | B58: (организация 1) | C58: тыс. куб. м
B59: Добавить
A60: 7.3.2 | B60: собственным абонентам | C60: тыс. куб. м
A61: 8 | B61: Отпуск горячей воды
A62: 8.1 | B62: Объем воды, отпущенной абонентам: | C62: тыс. куб. м | D62: =D63+D64 -> 0 | E62: =E63+E64 -> 0 | F62: 0 | G62: 0 | H62: 0 | I62: 0 | J62: 0 | K62: 0 | L62: 0 | M62: 0
A63: 8.1.1 | B63: по приборам учета | C63: тыс. куб. м
A64: 8.1.2 | B64: по нормативам | C64: тыс. куб. м
B65: в соответствии с санитарными нормами | C65: тыс. куб. м
B66: с нарушением санитарных норм | C66: тыс. куб. м
B67: по температуре | C67: тыс. куб. м
B68: по качеству воды | C68: тыс. куб. м
A69: 8.2 | B69: при дифференциации тарифов по объему | C69: тыс. куб. м | D69: =SUM(D70:D71) -> 0 | E69: 0 | F69: 0 | G69: 0 | H69: 0 | I69: 0 | J69: 0 | K69: 0 | L69: 0 | M69: 0
A70: 8.2.1 | B70: в пределах i-го объема | C70: тыс. куб. м
B71: Добавить
A72: 8.3 | B72: По абонентам | C72: тыс. куб. м | D72: =D73+D76 -> 0 | E72: 0 | F72: 0 | G72: 0 | H72: 0 | I72: 0 | J72: 0 | K72: 0 | L72: 0 | M72: 0
A73: 8.3.1 | B73: другим организациям, осуществляющим водоснабжение | C73: тыс. куб. м | D73: =SUM(D74:D75) -> 0 | E73: 0 | F73: 0 | G73: 0 | H73: 0 | I73: 0 | J73: 0 | K73: 0 | L73: 0 | M73: 0
A74: 8.3.1.1 | B74: (организация 1) | C74: тыс. куб. м
B75: Добавить
A76: 8.3.2 | B76: собственным абонентам | C76: тыс. куб. м
A77: 9 | B77: Объем воды, отпускаемой новым абонентам
A78: 9.1 | B78: Увеличение отпуска питьевой воды в связи с подключением новых абонентов | C78: тыс. куб. м
A79: 9.2 | B79: Снижение отпуска питьевой воды в связи с прекращением водоснабжения | C79: тыс. куб. м
A80: 10 | B80: Изменение объема отпуска питьевой воды
A81: 10.1 | B81: в связи с изменением нормативов потребления и установкой приборов учета | C81: тыс. куб. м
A82: 11 | B82: Темп изменения потребления воды | C82: %
A85: Руководитель организации ____________________________________
A87: Ответственный за составление формы ______________________________________
B88: МП

Sheet modServiceModule (hidden)

Sheet et_union (hidden)
A12: add_01
B13: договор № от | L13: О
A16: add_02
K17: О
A21: add_03
A22: =O22 -> 0 | B22: Поставщик | N22: О
A23: =A22&"."&P23 -> 0.1 | B23: Объем покупной энергии | C23: млн. кВт-ч | J23: =H23/E23*100 ->  | M23: =K23/H23*100 ->  | P23: 1
A24: =A22&"."&P24 -> 0.1.1 | B24: Объем покупной энергии по одноставочному тарифу | C24: млн. кВт-ч | J24: =H24/E24*100 ->  | M24: =K24/H24*100 ->  | P24: 1.1
A25: =A22&"."&P25 -> 0.1.1.1 | B25: низкое напряжение (НН) | C25: млн. кВт-ч | P25: 1.1.1
A26: =A22&"."&P26 -> 0.1.1.2 | B26: среднее напряжение 1 (СН1) | C26: млн. кВт-ч | P26: 1.1.2
A27: =A22&"."&P27 -> 0.1.1.3 | B27: среднее напряжение 2 (СН2) | C27: млн. кВт-ч | P27: 1.1.3
A28: =A22&"."&P28 -> 0.1.1.4 | B28: высокое напряжение (ВН) | C28: млн. кВт-ч | P28: 1.1.4
A29: =A22&"."&P29 -> 0.1.1.5 | B29: Без разбивки по напряжению | C29: млн. кВт-ч | P29: 1.1.5
A30: =A22&"."&P30 -> 0.1.2 | B30: Объем покупной энергии по двухставочному тарифу | C30: млн. кВт-ч | P30: 1.2
A31: =A22&"."&P31 -> 0.1.2.1 | B31: Мощность | C31: МВт в мес. | P31: 1.2.1
A32: =A22&"."&P32 -> 0.1.2.1.1 | B32: низкое напряжение (НН) | C32: МВт в мес. | P32: 1.2.1.1
A33: =A22&"."&P33 -> 0.1.2.1.2 | B33: среднее напряжение 1 (СН1) | C33: МВт в мес. | P33: 1.2.1.2
A34: =A22&"."&P34 -> 0.1.2.1.3 | B34: среднее напряжение 2 (СН2) | C34: МВт в мес. | P34: 1.2.1.3
A35: =A22&"."&P35 -> 0.1.2.1.4 | B35: высокое напряжение (ВН) | C35: МВт в мес. | P35: 1.2.1.4
A36: =A22&"."&P36 -> 0.1.2.1.5 | B36: генерация напряжения | C36: МВт в мес. | P36: 1.2.1.5
A37: =A22&"."&P37 -> 0.1.2.2 | B37: Активная электроэнергия | C37: млн. кВт-ч | P37: 1.2.2
A38: =A22&"."&P38 -> 0.1.2.2.1 | B38: низкое напряжение (НН) | C38: млн. кВт-ч | P38: 1.2.2.1
A39: =A22&"."&P39 -> 0.1.2.2.2 | B39: среднее напряжение 1 (СН1) | C39: млн. кВт-ч | P39: 1.2.2.2
A40: =A22&"."&P40 -> 0.1.2.2.3 | B40: среднее напряжение 2 (СН2) | C40: млн. кВт-ч | P40: 1.2.2.3
A41: =A22&"."&P41 -> 0.1.2.2.4 | B41: высокое напряжение (ВН) | C41: млн. кВт-ч | P41: 1.2.2.4
A42: =A22&"."&P42 -> 0.1.2.2.5 | B42: генерация напряжения | C42: млн. кВт-ч | P42: 1.2.2.5
A43: =A22&"."&P43 -> 0.2 | B43: Тариф на электроэнергию и мощность | P43: 2
A44: =A22&"."&P44 -> 0.2.1 | B44: по одноставочному тарифу | C44: руб./кВт-ч | P44: 2.1
A45: =A22&"."&P45 -> 0.2.1.1 | B45: низкое напряжение (НН) | C45: руб./кВт-ч | P45: 2.1.1
A46: =A22&"."&P46 -> 0.2.1.2 | B46: среднее напряжение 1 (СН1) | C46: руб./кВт-ч | P46: 2.1.2
A47: =A22&"."&P47 -> 0.2.1.3 | B47: среднее напряжение 2 (СН2) | C47: руб./кВт-ч | P47: 2.1.3
A48: =A22&"."&P48 -> 0.2.1.4 | B48: высокое напряжение (ВН) | C48: руб./кВт-ч | P48: 2.1.4
A49: =A22&"."&P49 -> 0.2.1.5 | B49: Тариф на активную электроэнергию без разбивки по напряжению | C49: руб./кВт-ч | P49: 2.1.5
A50: =A22&"."&P50 -> 0.2.1.6 | B50: Средний одноставочный тариф на электрическую энергию | C50: руб./кВт-ч | P50: 2.1.6
A51: =A22&"."&P51 -> 0.2.2 | B51: по двухставочному тарифу | P51: 2.2
A52: =A22&"."&P52 -> 0.2.2.1 | B52: ставка за мощность | C52: руб./МВт в мес. | P52: 2.2.1
A53: =A22&"."&P53 -> 0.2.2.1.1 | B53: низкое напряжение (НН) | C53: руб./МВт в мес. | P53: 2.2.1.1
A54: =A22&"."&P54 -> 0.2.2.1.2 | B54: среднее напряжение 1 (СН1) | C54: руб./МВт в мес. | P54: 2.2.1.2
A55: =A22&"."&P55 -> 0.2.2.1.3 | B55: среднее напряжение 2 (СН2) | C55: руб./МВт в мес. | P55: 2.2.1.3
A56: =A22&"."&P56 -> 0.2.2.1.4 | B56: высокое напряжение (ВН) | C56: руб./МВт в мес. | P56: 2.2.1.4
A57: =A22&"."&P57 -> 0.2.2.1.5 | B57: генерация напряжения | C57: руб./МВт в мес. | P57: 2.2.1.5
A58: =A22&"."&P58 -> 0.2.2.2 | B58: Тариф на электроэнергию по двухставочному тарифу | C58: руб./кВт-ч | P58: 2.2.2
A59: =A22&"."&P59 -> 0.2.2.2.1 | B59: низкое напряжение (НН) | C59: руб./кВт-ч | P59: 2.2.2.1
A60: =A22&"."&P60 -> 0.2.2.2.2 | B60: среднее напряжение 1 (СН1) | C60: руб./кВт-ч | P60: 2.2.2.2
A61: =A22&"."&P61 -> 0.2.2.2.3 | B61: среднее напряжение 2 (СН2) | C61: руб./кВт-ч | P61: 2.2.2.3
A62: =A22&"."&P62 -> 0.2.2.2.4 | B62: высокое напряжение (ВН) | C62: руб./кВт-ч | P62: 2.2.2.4
A63: =A22&"."&P63 -> 0.2.2.2.5 | B63: генерация напряжения | C63: руб./кВт-ч | P63: 2.2.2.5
A64: =A22&"."&P64 -> 0.3 | B64: Затраты на покупку энергии | C64: тыс. руб. | P64: 3
A65: =A22&"."&P65 -> 0.4 | B65: Затраты на покупку мощности | C65: тыс. руб. | P65: 4
A66: =A22&"."&P66 -> 0.5 | B66: Затраты на электроэнергию всего | C66: тыс. руб. | P66: 5 | Q66: Sum
A68: add_04
A69: =O69 -> 0 | B69: Поставщик | N69: О
A70: =A69&"."&P70 -> 0.1 | B70: Объем покупной энергии | C70: тыс. Гкал | J70: =H70/E70*100 ->  | M70: =K70/H70*100 ->  | P70: 1
A71: =A69&"."&P71 -> 0.2 | B71: Мощность | C71: Гкал/ч | J71: =H71/E71*100 ->  | M71: =K71/H71*100 ->  | P71: 2
A72: =A69&"."&P72 -> 0.3 | B72: Ставка за энергию | C72: руб./Гкал | P72: 3
A73: =A69&"."&P73 -> 0.4 | B73: Ставка за мощность | C73: тыс. руб./ Гкал/ч | P73: 4
A74: =A69&"."&P74 -> 0.5 | B74: Затраты на покупку энергии | C74: тыс. руб. | D74: =D70*D72 -> 0 | E74: 0 | F74: 0 | G74: 0 | H74: 0 | I74: 0 | K74: =K70*K72 -> 0 | L74: =L70*L72 -> 0 | P74: 5
A75: =A69&"."&P75 -> 0.6 | B75: Затраты на покупку мощности | C75: тыс. руб. | D75: 0 | E75: 0 | F75: 0 | G75: 0 | H75: 0 | I75: 0 | K75: =K71*K73 -> 0 | L75: =L71*L73 -> 0 | P75: 6
A76: =A69&"."&P76 -> 0.7 | B76: Затраты на теплоэнергию, всего | C76: тыс. руб. | D76: =D74+D75 -> 0 | E76: 0 | F76: 0 | G76: 0 | H76: 0 | I76: 0 | K76: =K74+K75 -> 0 | L76: =L74+L75 -> 0 | P76: 7 | Q76: Sum
A79: add_05
A80: =O80 -> 0 | B80: Поставщик | N80: О
A81: =A80&"."&P81 -> 0.1 | B81: Объем теплоносителя | C81: тыс. куб. м | J81: =H81/E81*100 ->  | M81: =K81/H81*100 ->  | P81: 1
A82: =A80&"."&P82 -> 0.2 | B82: Цена теплоносителя | C82: руб./куб. м | J82: =H82/E82*100 ->  | M82: =K82/H82*100 ->  | P82: 2
A83: =A80&"."&P83 -> 0.3 | B83: Затраты на теплоноситель | C83: тыс. руб. | D83: =D81*D82 -> 0 | E83: 0 | F83: 0 | G83: 0 | H83: 0 | I83: 0 | J83: =H83/E83*100 ->  | K83: =K81*K82 -> 0 | L83: =L81*L82 -> 0 | M83: =K83/H83*100 ->  | P83: 3
A86: add_06
M87: О
A90: add_07
A91: =O91 -> 0 | B91: Поставщик | N91: О
A92: =A91 & ".1" -> 0.1 | B92: Объем холодной воды | C92: тыс. куб. м | J92: =H92/E92*100 ->  | M92: =K92/H92*100 -> 
A93: =A91 & ".2" -> 0.2 | B93: Тариф на холодную воду | C93: руб./куб. м | J93: =H93/E93*100 ->  | M93: =K93/H93*100 -> 
A94: =A91 & ".3" -> 0.3 | B94: Затраты на холодную воду | C94: тыс. руб. | D94: =D92*D93 -> 0 | E94: =E92*E93 -> 0 | F94: 0 | G94: 0 | H94: 0 | I94: 0 | J94: =H94/E94*100 ->  | K94: 0 | L94: 0 | M94: =K94/H94*100 ->  | Q94: Sum
A96: add_08
B97: Регулируемый вид деятельности | C97: тыс. руб. | L97: О
A99: add_09
C100: тыс. куб. м | N100: О
A103: add_02_1
H104: =F104-E104 -> 0 | I104: О
A107: add_02_2
A108: ="1." &O108 -> 1. | B108: Вид реагента | N108: О
A109: =A108 & ".1" -> 1..1 | B109: Расход | J109: =H109/E109*100 ->  | M109: =K109/H109*100 -> 
A110: =A108 & ".2" -> 1..2 | B110: Цена за единицу | C110: тыс. руб. | J110: =H110/E110*100 ->  | M110: =K110/H110*100 -> 
A111: =A108 & ".3" -> 1..3 | B111: Суммарные затраты | C111: тыс. руб. | D111: =D109*D110 -> 0 | E111: 0 | F111: 0 | G111: 0 | H111: 0 | I111: 0 | J111: =H111/E111*100 ->  | K111: =K109*K110 -> 0 | L111: =L109*L110 -> 0 | M111: =K111/H111*100 ->  | P111: Sum
A116: add_02_3
A117: ="2." & O117 -> 2. | B117: Вид ГСМ | N117: О
A118: =A117 & ".1" -> 2..1 | B118: Расход | C118: литр | J118: =H118/E118*100 ->  | M118: =K118/H118*100 -> 
A119: =A117 & ".2" -> 2..2 | B119: Цена за единицу | C119: руб. | J119: =H119/E119*100 ->  | M119: =K119/H119*100 -> 
A120: =A117 & ".3" -> 2..3 | B120: Суммарные затраты | C120: тыс. руб. | D120: =D118*D119/1000 -> 0 | E120: 0 | F120: 0 | G120: 0 | H120: 0 | I120: 0 | J120: =H120/E120*100 ->  | K120: =K118*K119/1000 -> 0 | L120: =L118*L119/1000 -> 0 | M120: =K120/H120*100 ->  | P120: Sum
A123: add_02_4
A124: ="3." & O124 -> 3. | B124: Вид | N124: О
A125: =A124 & ".1" -> 3..1 | B125: Расход | J125: =H125/E125*100 ->  | M125: =K125/H125*100 -> 
A126: =A124 & ".2" -> 3..2 | B126: Цена за единицу | C126: тыс. руб. | J126: =H126/E126*100 ->  | M126: =K126/H126*100 -> 
A127: =A124 & ".3" -> 3..3 | B127: Суммарные затраты | C127: тыс. руб. | D127: =D125*D126 -> 0 | E127: 0 | F127: 0 | G127: 0 | H127: 0 | I127: 0 | J127: =H127/E127*100 ->  | K127: =K125*K126 -> 0 | L127: =L125*L126 -> 0 | M127: =K127/H127*100 ->  | P127: Sum
A131: add_06_1
A132: =O132 -> 0 | N132: О
A133: =A132 & ".1" -> 0.1 | B133: Кол-во (объем) топлива | J133: =H133/E133*100 ->  | M133: =K133/H133*100 -> 
A134: =A132 & ".2" -> 0.2 | B134: Цена топлива | C134: тыс. руб. | J134: =H134/E134*100 ->  | M134: =K134/H134*100 -> 
A135: =A132 & ".3" -> 0.3 | B135: Затраты на топливо | C135: тыс. руб. | D135: =D133*D134 -> 0 | E135: =E133*E134 -> 0 | F135: 0 | G135: 0 | H135: 0 | I135: 0 | J135: =H135/E135*100 ->  | K135: 0 | L135: 0 | M135: =K135/H135*100 ->  | Q135: Sum
A141: add_08_2
A142: 5.2 | E142: =D142*C142 -> 0 | F142: =D142/$F$50 ->  | G142: О
A145: add_08_3
A146: 2 | H146: О
A152: add_20
A153: 1.2.1 | B153: объект | Q153: О
A155: add_21
A156: 1 | E156: тыс. руб. | N156: О
A159: add_22
A160: прочие расходы | B160: тыс. руб. | K160: =I160*'Цех и Администр расх'!$N$100% ->  | M160: =J160*'Цех и Администр расх'!$O$100% -> 0 | N160: О
A162: add_22_1_1
A163: наименование расходов | B163: тыс. руб. | K163: =I163*'Цех и Администр расх'!$N$81% ->  | M163: =J163*'Цех и Администр расх'!$O$81% -> 0 | N163: О
A166: add_23
A167: 1.1 | F167: тыс. руб. | P167: О
A171: add_24
C172: тыс. руб. | L172: О
A174: add_25
A175: прочие (расшифровать) | K175: О
A177: add_26
B178: наимаенование | J178: О
A180: 3.1 | B180: наимаенование | L180: О

Sheet Объемы
R1: Приложение 2.1
B2: Расчет объемов холодного водоснабжения
C4: 2013 год (факт) | F4: 2014 год (факт) | I4: 2015 год (факт) | L4: 2016 год (факт) | O4: 2017 год (ожид) | R4: 2018 год (план)
A5: 1 | B5: Степень благоустройства жилищного фонда | C5: Нормативы водопотребления на 1 чел в месяц (куб. м.) | D5: Общее кол-во потребителей (чел.) | E5: Годовой объем водопотребления (тыс. куб. м.) | F5: Нормативы водопотребления на 1 чел в месяц (куб. м.) | G5: Общее кол-во потребителей (чел.) | H5: Годовой объем водопотребления (тыс. куб. м.) | I5: Нормативы водопотребления на 1 чел в месяц (куб. м.) | J5: Общее кол-во потребителей (чел.) | K5: Годовой объем водопотребления (тыс. куб. м.) | L5: Нормативы водопотребления на 1 чел в месяц (куб. м.) | M5: Общее кол-во потребителей (чел.) | N5: Годовой объем водопотребления (тыс. куб. м.) | O5: Нормативы водопотребления на 1 чел в месяц (куб. м.) | P5: Общее кол-во потребителей (чел.) | Q5: Годовой объем водопотребления (тыс. куб. м.) | R5: Нормативы водопотребления на 1 чел в месяц (куб. м.) | S5: Общее кол-во потребителей (чел.) | T5: Годовой объем водопотребления (тыс. куб. м.)
A6: 1.1. | B6: Многоквартирные дома и жилые дома с централизованным холодным и горячим водоснабжением, канализацией
A7: 1.2. | B7: Многоквартирные дома и жилые дома с централизованным холодным водоснабжением, канализацией, без централизованного горячего водоснабжения с водонагревателями различного типа
A8: 1.3. | B8: Многоквартирные дома и жилые дома с централизованным холодным водоснабжением, канализацией, без централизованного горячего водоснабжения и водонагревателей различного типа
A9: 1.4. | B9: Многоквартирные дома и жилые дома с централизованным холодным водоснабжением, без централизованного горячего водоснабжения, канализации с водонагревателями различного типа
A10: 1.5. | B10: Многоквартирные дома и жилые дома с централизованным холодным водоснабжением, без централизованного горячего водоснабжения, канализации и водонагревателей различного типа
A11: 1.6. | B11: Многоквартирные дома и жилые дома, не оборудованные внутридомовыми системами водоснабжения, с водопользованием из водоразборных колонок
B12: при наличии технической возможности установки коллективных (общедомовых), индивидуальных или общих (квартирных) приборов учета
A13: 1.7. | B13: Многоквартирные дома и жилые дома с централизованным холодным и горячим водоснабжением, канализацией
A14: 1.8. | B14: Многоквартирные дома и жилые дома с централизованным холодным водоснабжением, канализацией, без централизованного горячего водоснабжения с водонагревателями различного типа
A15: 1.9. | B15: Многоквартирные дома и жилые дома с централизованным холодным водоснабжением, канализацией, без централизованного горячего водоснабжения и водонагревателей различного типа
A16: 1.10. | B16: Многоквартирные дома и жилые дома с централизованным холодным водоснабжением, без централизованного горячего водоснабжения, канализации с водонагревателями различного типа
A17: 1.11. | B17: Многоквартирные дома и жилые дома с централизованным холодным водоснабжением, без централизованного горячего водоснабжения, канализации и водонагревателей различного типа
A18: 1.12. | B18: Многоквартирные дома и жилые дома, не оборудованные внутридомовыми системами водоснабжения, с водопользованием из водоразборных колонок
B19: итого | E19: =SUM(E6:E11)+SUM(E13:E18) -> 0 | H19: =SUM(H6:H11)+SUM(H13:H18) -> 0 | K19: =SUM(K6:K11)+SUM(K13:K18) -> 0 | N19: =SUM(N6:N11)+SUM(N13:N18) -> 0 | Q19: =SUM(Q6:Q11)+SUM(Q13:Q18) -> 0 | T19: =SUM(T6:T11)+SUM(T13:T18) -> 0
A20: 2 | B20: Водомерный учет | G20: 1622 | H20: 52.3 | J20: 1672 | K20: 59.89 | M20: 1690 | N20: 60.53 | P20: 1693 | Q20: 97.43 | S20: 1693 | T20: 97.43
A21: 3 | B21: Полив приусадебных участков | C21: норматив | D21: общее кол-во кв.м. | E21: Годовой объем водопотребления (тыс. куб. м.) | F21: норматив | G21: общее кол-во кв.м. | H21: Годовой объем водопотребления (тыс. куб. м.) | I21: норматив | J21: общее кол-во кв.м. | K21: Годовой объем водопотребления (тыс. куб. м.) | L21: норматив | M21: общее кол-во кв.м. | N21: Годовой объем водопотребления (тыс. куб. м.) | O21: норматив | P21: общее кол-во кв.м. | Q21: Годовой объем водопотребления (тыс. куб. м.) | R21: норматив | S21: общее кол-во кв.м. | T21: Годовой объем водопотребления (тыс. куб. м.)
A22: 3.1. | B22: Полив сельскохозяйственных культур, зеленых насаждений, газонов и цветников
A23: 3.2. | B23: Полив усовершенствованных покрытий и тротуаров
A24: 3.3. | B24: Полив посадок в теплицах и парниках всех типов
B25: итого | E25: =SUM(E22:E24) -> 0 | H25: =SUM(H22:H24) -> 0 | K25: =SUM(K22:K24) -> 0 | N25: =SUM(N22:N24) -> 0 | Q25: =SUM(Q22:Q24) -> 0 | T25: =SUM(T22:T24) -> 0
A26: 4 | B26: Водоснабжение и приготовление пищи для сельскохозяйственных животных | C26: норматив | D26: общее кол-во голов | E26: Годовой объем водопотребления (тыс. куб. м.) | F26: норматив | G26: общее кол-во голов | H26: Годовой объем водопотребления (тыс. куб. м.) | I26: норматив | J26: общее кол-во голов | K26: Годовой объем водопотребления (тыс. куб. м.) | L26: норматив | M26: общее кол-во голов | N26: Годовой объем водопотребления (тыс. куб. м.) | O26: норматив | P26: общее кол-во голов | Q26: Годовой объем водопотребления (тыс. куб. м.) | R26: норматив | S26: общее кол-во голов | T26: Годовой объем водопотребления (тыс. куб. м.)
A27: 4.1. | B27: Крупный рогатый скот
A28: 4.2. | B28: Свиньи
A29: 4.3. | B29: Овцы
A30: 4.4. | B30: Лошади
A31: 4.5. | B31: Козы
A32: 4.6. | B32: Куры
A33: 4.7. | B33: Индейки
A34: 4.8. | B34: Утки
A35: 4.9. | B35: Гуси
B36: итого | E36: =SUM(E27:E35) -> 0 | H36: =SUM(H27:H35) -> 0 | K36: =SUM(K27:K35) -> 0 | N36: =SUM(N27:N35) -> 0 | Q36: =SUM(Q27:Q35) -> 0 | T36: =SUM(T27:T35) -> 0
A37: 5 | B37: Потребление на общедомовые нужды | C37: норматив | D37: общее кол-во кв.м. общего имущества | E37: Годовой объем водопотребления (тыс. куб. м.) | F37: норматив | G37: общее кол-во кв.м. общего имущества | H37: Годовой объем водопотребления (тыс. куб. м.) | I37: норматив | J37: общее кол-во кв.м. общего имущества | K37: Годовой объем водопотребления (тыс. куб. м.) | L37: норматив | M37: общее кол-во кв.м. общего имущества | N37: Годовой объем водопотребления (тыс. куб. м.) | O37: норматив | P37: общее кол-во кв.м. общего имущества | Q37: Годовой объем водопотребления (тыс. куб. м.) | R37: норматив | S37: общее кол-во кв.м. общего имущества | T37: Годовой объем водопотребления (тыс. куб. м.)
A38: 5.1. | B38: Многоквартирные дома с централизованным холодным и горячим водоснабжением
A39: 5.2. | B39: Многоквартирные дома с централизованным холодным водоснабжением
B40: при наличии технической возможности установки коллективных (общедомовых) приборов учета
A41: 5.3. | B41: Многоквартирные дома с централизованным холодным и горячим водоснабжением
A42: 5.4. | B42: Многоквартирные дома с централизованным холодным водоснабжением
B43: итого | E43: =E38+E39+E41+E42 -> 0 | H43: =H38+H39+H41+H42 -> 0 | K43: =K38+K39+K41+K42 -> 0 | N43: =N38+N39+N41+N42 -> 0 | Q43: =Q38+Q39+Q41+Q42 -> 0 | T43: =T38+T39+T41+T42 -> 0
A44: 6 | B44: ИТОГО по населению | E44: =E19+E20+E25+E36+E43 -> 0 | H44: =H19+H20+H25+H36+H43 -> 52.3 | K44: =K19+K20+K25+K36+K43 -> 59.89 | N44: =N19+N20+N25+N36+N43 -> 60.53 | Q44: =Q19+Q20+Q25+Q36+Q43 -> 97.43 | T44: =T19+T20+T25+T36+T43 -> 97.43
A45: 7 | B45: Промышленные предприятия | H45: 4.01 | K45: 7.56 | N45: 5.62 | Q45: 12 | T45: 12
A46: 8 | B46: Бюджетные организации | E46: =E47+E48+E49 -> 0 | H46: =H47+H48+H49 -> 3.61 | K46: =K47+K48+K49 -> 4.12 | N46: =N47+N48+N49 -> 5.11 | Q46: =Q47+Q48+Q49 -> 10 | T46: =T47+T48+T49 -> 10
A47: 8.1. | B47: федеральный
A48: 8.2. | B48: региональный
A49: 8.3. | B49: местный | H49: 3.61 | K49: 4.12 | N49: 5.11 | Q49: 10 | T49: 10
A50: 9 | B50: ВСЕГО годовой объем водопотребления | E50: =E44+E45+E46 -> 0 | H50: =H44+H45+H46 -> 59.92 | K50: =K44+K45+K46 -> 71.57 | N50: =N44+N45+N46 -> 71.26 | Q50: =Q44+Q45+Q46 -> 119.43 | T50: =T44+T45+T46 -> 119.43
A51: 10 | B51: Расход на собственные нужды
A52: 11 | B52: Потери в сетях
A53: 12 | B53: Расчетный объем подъема воды | E53: =E50+E51+E52 -> 0 | H53: =H50+H51+H52 -> 59.92 | K53: =K50+K51+K52 -> 71.57 | N53: =N50+N51+N52 -> 71.26 | Q53: =Q50+Q51+Q52 -> 119.43 | T53: =T50+T51+T52 -> 119.43

Sheet Сырье и материалы
H1: Приложение 2.1
A2: Расходы на сырье и материалы на услуги холодного водоснабжения
A4: № п/п | B4: Наименование | C4: ед. изм. | D4: 2014 год | F4: 2014 факт РЭК | G4: 2015 | H4: 2016 | I4: 2016 факт РЭК | J4: Темп роста, текущий (7)/ истекший (5), % | K4: 2016 год | L4: 2016 утверждено РЭК | M4: Темп роста, очередной (9)/ текущий (7), %
D5: план | E5: факт | G5: утверждено РЭК | H5: факт ОКК
A6: 1 | B6: 2 | C6: 3 | D6: 4 | E6: 5 | F6: 5* | G6: 6 | H6: 7 | I6: 7* | J6: 8 | K6: 9 | L6: 9* | M6: 10
A7: 1 | B7: Реагенты | C7: тыс. руб. | D7: =D25 -> 0 | E7: 0 | F7: 0 | G7: 0 | H7: 0 | I7: 0 | J7: =H7/E7*100 ->  | K7: =K25 -> 0 | L7: =L25 -> 0.32 | M7: =K7/H7*100 -> 
A8: 2 | B8: Горюче-смазочные материалы | C8: тыс. руб. | D8: =D37 -> 0 | E8: 0 | F8: 0 | G8: 0 | H8: 46.8256242 | I8: 46.83 | J8: =H8/E8*100 ->  | K8: =K37 -> 0 | L8: =L37 -> 65.26 | M8: =K8/H8*100 -> 0
A9: 3 | B9: Материалы и малоценные основные средства | C9: тыс. руб. | D9: =D49 -> 0 | E9: 0 | F9: 0 | G9: 0 | H9: 10.69 | I9: 6.807 | J9: =H9/E9*100 ->  | K9: =K49 -> 0 | L9: =L49 -> 9.99 | M9: =K9/H9*100 -> 0
H12: Приложение 2.1.1
A13: Расходы на сырье и материалы на услуги холодного водоснабжения * (прямые производственные расходы)
A15: № п/п | B15: Наименование | C15: ед. изм. | D15: 2014 год | F15: 2014 факт РЭК | G15: 2015 | H15: 2016 | I15: 2016 факт РЭК | J15: Темп роста, текущий (7)/ истекший (5), % | K15: 2016 год | L15: 2016 утверждено РЭК | M15: Темп роста, очередной (9)/ текущий (7), % | V15: кг
D16: план | E16: факт | G16: утверждено РЭК | H16: факт ОКК | V16: литр
A17: 1 | B17: 2 | C17: 3 | D17: 4 | E17: 5 | F17: 5* | G17: 6 | H17: 7 | I17: 7* | J17: 8 | K17: 9 | L17: 9* | M17: 10 | V17: тонна
A18: 1 | B18: Реагенты | V18: грамм
A19: 1.1 | B19: Вид реагента | O19: 1
A20: 1.1.1 | B20: Расход | J20: =H20/E20*100 ->  | M20: =K20/H20*100 -> 
A21: 1.1.2 | B21: Цена за единицу | C21: тыс. руб. | J21: =H21/E21*100 ->  | M21: =K21/H21*100 -> 
A22: 1.1.3 | B22: Суммарные затраты | C22: тыс. руб. | D22: =D20*D21 -> 0 | E22: 0 | F22: 0 | G22: 0 | H22: 0 | I22: 0 | J22: =H22/E22*100 ->  | K22: =K20*K21 -> 0 | L22: =L20*L21 -> 0 | P22: Sum
B23: Добавить
B24: прочие, до 5% | C24: тыс. руб. | J24: =H24/E24*100 ->  | L24: 0.32 | P24: Sum
B25: Итого реагенты: | C25: тыс. руб. | D25: =SUMIF($P18:$P24,"sum",D18:D24) -> 0 | E25: 0 | F25: 0 | G25: 0 | H25: 0 | I25: 0 | K25: 0 | L25: 0.32
A26: 2 | B26: Горюче-смазочные материалы
A27: 2.1 | B27: Дизтопливо | O27: 1
A28: 2.1.1 | B28: Расход | C28: литр | H28: 964.19 | J28: =H28/E28*100 ->  | M28: 0
A29: 2.1.2 | B29: Цена за единицу | C29: руб. | H29: 38.88 | J29: =H29/E29*100 ->  | M29: 0
A30: 2.1.3 | B30: Суммарные затраты | C30: тыс. руб. | D30: =D28*D29/1000 -> 0 | E30: 0 | F30: 0 | G30: 0 | H30: 37.4877072 | I30: 0 | J30: =H30/E30*100 ->  | K30: =K28*K29/1000 -> 0 | L30: =L28*L29/1000 -> 0 | M30: 0 | P30: Sum
A31: ="2." & O31 -> 2.2 | B31: Пропан | N31: О | O31: 2
A32: =A31 & ".1" -> 2.2.1 | B32: Расход | C32: литр | H32: 452.94 | J32: =H32/E32*100 ->  | M32: =K32/H32*100 -> 0
A33: =A31 & ".2" -> 2.2.2 | B33: Цена за единицу | C33: руб. | H33: 20.55 | J33: =H33/E33*100 ->  | M33: =K33/H33*100 -> 0
A34: =A31 & ".3" -> 2.2.3 | B34: Суммарные затраты | C34: тыс. руб. | D34: =D32*D33/1000 -> 0 | E34: 0 | F34: 0 | G34: 0 | H34: 9.307917 | I34: 0 | J34: =H34/E34*100 ->  | K34: =K32*K33/1000 -> 0 | L34: =L32*L33/1000 -> 0 | M34: =K34/H34*100 -> 0 | P34: Sum
B35: Добавить
B36: прочие, до 5% | C36: тыс. руб. | H36: 0.03 | I36: =9.307+36.099+1.424 -> 46.83 | J36: =H36/E36*100 ->  | L36: 65.26 | M36: 0 | P36: Sum
B37: Итого ГСМ: | C37: тыс. руб. | D37: =SUMIF($P26:$P36,"sum",D26:D36) -> 0 | E37: =SUMIF($P26:$P36,"sum",E26:E36) -> 0 | F37: =SUMIF($P26:$P36,"sum",F26:F36) -> 0 | G37: =SUMIF($P26:$P36,"sum",G26:G36) -> 0 | H37: =SUMIF($P26:$P36,"sum",H26:H36) -> 46.8256242 | I37: =I36 -> 46.83 | J37: =H37/E37*100 ->  | K37: =SUMIF($P26:$P36,"sum",K26:K36) -> 0 | L37: =SUMIF($P26:$P36,"sum",L26:L36) -> 65.26 | M37: 0
A38: 3 | B38: Материалы и малоценные основные средства
A39: 3.1 | B39: МБП (см.приложнние поименно) | O39: 1
A40: 3.1.1 | B40: Расход | H40: 1 | J40: =H40/E40*100 ->  | M40: 0
A41: 3.1.2 | B41: Цена за единицу | C41: тыс. руб. | H41: 10.69 | J41: =H41/E41*100 ->  | M41: 0
A42: 3.1.3 | B42: Суммарные затраты | C42: тыс. руб. | D42: =D40*D41 -> 0 | E42: 0 | F42: 0 | G42: 0 | H42: 10.69 | I42: 0 | J42: =H42/E42*100 ->  | K42: =K40*K41 -> 0 | L42: =L40*L41 -> 0 | M42: 0 | P42: Sum
A43: ="3." & O43 -> 3.2 | B43: Запчасти см. расшифровку поименно Использованы на АВР) | N43: О | O43: 2
A44: =A43 & ".1" -> 3.2.1 | B44: Расход | H44: 1 | J44: =H44/E44*100 ->  | M44: =K44/H44*100 -> 0
A45: =A43 & ".2" -> 3.2.2 | B45: Цена за единицу | C45: тыс. руб. | J45: =H45/E45*100 ->  | M45: =K45/H45*100 -> 
A46: =A43 & ".3" -> 3.2.3 | B46: Суммарные затраты | C46: тыс. руб. | D46: =D44*D45 -> 0 | E46: 0 | F46: 0 | G46: 0 | H46: 0 | I46: 0 | J46: =H46/E46*100 ->  | K46: =K44*K45 -> 0 | L46: =L44*L45 -> 0 | M46: =K46/H46*100 ->  | P46: Sum
B47: Добавить
B48: прочие, до 5% | C48: тыс. руб. | I48: 6.807 | J48: =H48/E48*100 ->  | L48: 9.99 | P48: Sum
B49: Итого материалы: | C49: тыс. руб. | D49: =SUMIF($P38:$P48,"sum",D38:D48) -> 0 | E49: 0 | F49: 0 | G49: 0 | H49: 10.69 | I49: 6.807 | J49: =H49/E49*100 ->  | K49: =SUMIF($P38:$P48,"sum",K38:K48) -> 0 | L49: =SUMIF($P38:$P48,"sum",L38:L48) -> 9.99 | M49: 0
A51: * Вносятся данные по прямым расходам (включенным непосредственно в себестоимость холодного водоснабжения). Заполняется отдельно по участкам, в случае утверждения различных тарифов по системам
A53: Руководитель организации ____________________________________
A55: Ответственный за составление формы ______________________________________
B56: МП
E57: Приложение Д
A58: Фактический расход ГСМ за 2016 год**
A60: № п/п | B60: машина, гос. номер | C60: Вид ГСМ (марка) | D60: Фактический расход, л | E60: Пробег, км
E61: на начало года | F61: на конец года | H61: за год
A62: 1 | B62: Цех водоснабжения
A63: 1.1 | B63: Трактор | C63: Дизтопливо | D63: 42 | H63: =F63-E63 -> 0
A64: 1.2 | B64: Экскаватор | C64: Дизтопливо | D64: 922.19 | H64: =F64-E64 -> 0 | I64: О
B65: Добавить
A66: 2 | B66: Цех водоотведения
A67: 2.1 | H67: =F67-E67 -> 0
B68: Добавить
A69: 3 | B69: Транспортный цех
A70: 3.1 | H70: =F70-E70 -> 0
B71: Добавить
A72: 4 | B72: АУП
A73: 4.1 | B73: Автомобиль Гос№801 | C73: Бензин | D73: 2269.975 | E73: 75860 | F73: 78130 | H73: =F73-E73 -> 2270
A74: 4.2 | C74: Пропан | D74: 820.66 | E74: 78130 | F74: 86337 | H74: =F74-E74 -> 8207 | I74: О
B75: Добавить
A76: 5 | B76: Прочие виды деятельности
A77: 5.1 | H77: =F77-E77 -> 0
B78: Добавить
A80: ** Вносятся расходы в целом по предприятию в соответствии с данными бухгалтерского учета по всем видам деятельности
A82: Руководитель организации ____________________________________
A84: Ответственный за составление формы ______________________________________
B85: МП

Sheet ЭЭ
G1: Приложение 2.1.2
A2: Расходы на приобретение электрической энергии
A4: № п/п | B4: Наименование | C4: Ед. изм. | D4: 2014 | F4: 2014 факт РЭК | G4: 2015 | H4: 2016 | I4: 2016 факт РЭК | J4: Темп роста, текущий (7)/ истекший (5), % | K4: 2016 | L4: 2016 | M4: Темп роста, очередной (9)/ текущий (7), %
D5: план | E5: факт | G5: утверждено РЭК | H5: факт ОКК | K5: план | L5: утверждено РЭК
A6: 1 | B6: 2 | C6: 3 | D6: 4 | E6: 5 | F6: 5* | G6: 6 | H6: 7 | I6: 7* | J6: 8 | K6: 9 | L6: 9* | M6: 10
A7: 1 | B7: Поставщик
A8: 1.1 | B8: Объем покупной энергии | C8: млн. кВт-ч | J8: =H8/E8*100 ->  | M8: =K8/H8*100 ->  | O8: 1
A9: 1.1.1 | B9: Объем покупной энергии по одноставочному тарифу | C9: млн. кВт-ч | J9: =H9/E9*100 ->  | M9: =K9/H9*100 -> 
A10: 1.1.1.1 | B10: низкое напряжение (НН) | C10: млн. кВт-ч
A11: 1.1.1.2 | B11: среднее напряжение 1 (СН1) | C11: млн. кВт-ч
A12: 1.1.1.3 | B12: среднее напряжение 2 (СН2) | C12: млн. кВт-ч
A13: 1.1.1.4 | B13: высокое напряжение (ВН) | C13: млн. кВт-ч
A14: 1.1.1.5 | B14: Без разбивки по напряжению | C14: млн. кВт-ч
A15: 1.1.2 | B15: Объем покупной энергии по двухставочному тарифу | C15: млн. кВт-ч
A16: 1.1.2.1 | B16: Мощность | C16: МВт в мес.
A17: 1.1.2.1.1 | B17: низкое напряжение (НН) | C17: МВт в мес.
A18: 1.1.2.1.2 | B18: среднее напряжение 1 (СН1) | C18: МВт в мес.
A19: 1.1.2.1.3 | B19: среднее напряжение 2 (СН2) | C19: МВт в мес.
A20: 1.1.2.1.4 | B20: высокое напряжение (ВН) | C20: МВт в мес.
A21: 1.1.2.1.5 | B21: генерация напряжения | C21: МВт в мес.
A22: 1.1.2.2 | B22: Активная электроэнергия | C22: млн. кВт-ч
A23: 1.1.2.2.1 | B23: низкое напряжение (НН) | C23: млн. кВт-ч
A24: 1.1.2.2.2 | B24: среднее напряжение 1 (СН1) | C24: млн. кВт-ч
A25: 1.1.2.2.3 | B25: среднее напряжение 2 (СН2) | C25: млн. кВт-ч
A26: 1.1.2.2.4 | B26: высокое напряжение (ВН) | C26: млн. кВт-ч
A27: 1.1.2.2.5 | B27: генерация напряжения | C27: млн. кВт-ч
A28: 1.2 | B28: Тариф на электроэнергию и мощность
A29: 1.2.1 | B29: по одноставочному тарифу | C29: руб./кВт-ч
A30: 1.2.1.1 | B30: низкое напряжение (НН) | C30: руб./кВт-ч
A31: 1.2.1.2 | B31: среднее напряжение 1 (СН1) | C31: руб./кВт-ч
A32: 1.2.1.3 | B32: среднее напряжение 2 (СН2) | C32: руб./кВт-ч
A33: 1.2.1.4 | B33: высокое напряжение (ВН) | C33: руб./кВт-ч
A34: 1.2.1.5 | B34: Тариф на активную электроэнергию без разбивки по напряжению | C34: руб./кВт-ч
A35: 1.2.1.6 | B35: Средний одноставочный тариф на электрическую энергию | C35: руб./кВт-ч
A36: 1.2.2 | B36: по двухставочному тарифу
A37: 1.2.2.1 | B37: ставка за мощность | C37: руб./МВт в мес.
A38: 1.2.2.1.1 | B38: низкое напряжение (НН) | C38: руб./МВт в мес.
A39: 1.2.2.1.2 | B39: среднее напряжение 1 (СН1) | C39: руб./МВт в мес.
A40: 1.2.2.1.3 | B40: среднее напряжение 2 (СН2) | C40: руб./МВт в мес.
A41: 1.2.2.1.4 | B41: высокое напряжение (ВН) | C41: руб./МВт в мес.
A42: 1.2.2.1.5 | B42: генерация напряжения | C42: руб./МВт в мес.
A43: 1.2.2.2 | B43: Тариф на электроэнергию по двухставочному тарифу | C43: руб./кВт-ч
A44: 1.2.2.2.1 | B44: низкое напряжение (НН) | C44: руб./кВт-ч
A45: 1.2.2.2.2 | B45: среднее напряжение 1 (СН1) | C45: руб./кВт-ч
A46: 1.2.2.2.3 | B46: среднее напряжение 2 (СН2) | C46: руб./кВт-ч
A47: 1.2.2.2.4 | B47: высокое напряжение (ВН) | C47: руб./кВт-ч
A48: 1.2.2.2.5 | B48: генерация напряжения | C48: руб./кВт-ч
A49: 1.3 | B49: Затраты на покупку энергии | C49: тыс. руб.
A50: 1.4 | B50: Затраты на покупку мощности | C50: тыс. руб.
A51: 1.5 | B51: Затраты на электроэнергию всего | C51: тыс. руб. | H51: 1132.095 | I51: 535.991 | L51: 776.71 | M51: 0 | Q51: Sum
B52: Добавить
B53: Итого | C53: тыс. руб. | D53: =SUMIF($Q$7:$Q$53,"sum",D7:D53) -> 0 | E53: 0 | F53: 0 | G53: 0 | H53: 1132.095 | I53: 535.991 | K53: =SUMIF($Q$7:$Q$53,"sum",K7:K53) -> 0 | L53: =SUMIF($Q$7:$Q$53,"sum",L7:L53) -> 776.71 | M53: 0
A56: Руководитель организации ____________________________________
A58: Ответственный за составление формы ______________________________________
B59: МП

Sheet ТЭ
B1: 2 | G1: Приложение 2.1.3
A2: Расходы на приобретение тепловой энергии
A4: № п/п | B4: Наименование | C4: Ед. изм. | D4: 2014 | F4: 2014 факт РЭК | G4: 2015 | H4: 2016 | I4: 2015 факт РЭК | J4: Темп роста, текущий (7)/ истекший (5), % | K4: 2016 | L4: 2016 | M4: Темп роста, очередной (9)/ текущий (7), %
D5: план | E5: факт | G5: утверждено РЭК | H5: факт ОКК | K5: план | L5: утверждено РЭК
A6: 1 | B6: 2 | C6: 3 | D6: 4 | E6: 5 | F6: 5* | G6: 6 | H6: 7 | I6: 7* | J6: 8 | K6: 9 | L6: 9* | M6: 10
A7: 1 | B7: Поставщик | O7: 1
A8: 1.1 | B8: Объем покупной энергии | C8: тыс. Гкал | J8: =H8/E8*100 ->  | M8: =K8/H8*100 -> 
A9: 1.2 | B9: Мощность | C9: Гкал/ч | J9: =H9/E9*100 ->  | M9: =K9/H9*100 -> 
A10: 1.3 | B10: Ставка за энергию | C10: руб./Гкал
A11: 1.4 | B11: Ставка за мощность | C11: тыс. руб./ Гкал/ч
A12: 1.5 | B12: Затраты на покупку энергии | C12: тыс. руб. | D12: =D8*D10 -> 0 | E12: 0 | F12: 0 | G12: 0 | H12: 0 | I12: 0 | K12: =K8*K10 -> 0 | L12: =L8*L10 -> 0
A13: 1.6 | B13: Затраты на покупку мощности | C13: тыс. руб. | D13: 0 | E13: 0 | F13: 0 | G13: 0 | H13: 0 | I13: 0 | K13: =K9*K11 -> 0 | L13: =L9*L11 -> 0
A14: 1.7 | B14: Затраты на теплоэнергию, всего | C14: тыс. руб. | D14: =D12+D13 -> 0 | E14: 0 | F14: 0 | G14: 0 | H14: 0 | I14: 0 | K14: =K12+K13 -> 0 | L14: =L12+L13 -> 0 | Q14: Sum
B15: Добавить
B16: Итого | C16: тыс. руб. | D16: =SUMIF($Q$7:$Q$16,"sum",D7:D16) -> 0 | E16: 0 | F16: 0 | G16: 0 | H16: 0 | I16: 0 | K16: =SUMIF($Q$7:$Q$16,"sum",K7:K16) -> 0 | L16: =SUMIF($Q$7:$Q$16,"sum",L7:L16) -> 0
A19: Руководитель организации ____________________________________
A21: Ответственный за составление формы ______________________________________
C22: МП

Sheet ТН
G1: Приложение 2.1.4
A2: Расходы на приобретение теплоносителя
A4: № п/п | B4: Наименование | C4: Ед. изм. | D4: 2014 | F4: 2014 факт РЭК | G4: 2015 | H4: 2016 | I4: 2015 факт РЭК | J4: Темп роста, текущий (7)/ истекший (5), % | K4: 2016 | L4: 2016 | M4: Темп роста, очередной (9)/ текущий (7), %
D5: план | E5: факт | G5: утверждено РЭК | H5: факт ОКК | K5: план | L5: утверждено РЭК
A6: 1 | B6: 2 | C6: 3 | D6: 4 | E6: 5 | F6: 5* | G6: 6 | H6: 7 | I6: 7* | J6: 8 | K6: 9 | L6: 9* | M6: 10
A7: 1 | B7: Поставщик | O7: 1
A8: 1.1 | B8: Объем теплоносителя | C8: тыс. куб. м | J8: =H8/E8*100 ->  | M8: =K8/H8*100 -> 
A9: 1.2 | B9: Цена теплоносителя | C9: руб./куб. м | J9: =H9/E9*100 ->  | M9: =K9/H9*100 -> 
A10: 1.3 | B10: Затраты на теплоноситель | C10: тыс. руб. | D10: =D8*D9 -> 0 | E10: 0 | F10: 0 | G10: 0 | H10: 0 | I10: 0 | J10: =H10/E10*100 ->  | K10: =K8*K9 -> 0 | L10: =L8*L9 -> 0 | M10: =K10/H10*100 ->  | Q10: Sum
B11: Добавить
B12: Итого | C12: тыс. руб. | D12: =SUMIF($Q$7:$Q$11,"sum",D7:D11) -> 0 | E12: 0 | F12: 0 | G12: 0 | H12: 0 | I12: 0 | J12: =H12/E12*100 ->  | K12: =SUMIF($Q$7:$Q$11,"sum",K7:K11) -> 0 | L12: =SUMIF($Q$7:$Q$11,"sum",L7:L11) -> 0 | M12: =K12/H12*100 -> 
A15: Руководитель организации ____________________________________
A17: Ответственный за составление формы ______________________________________
C18: МП

Sheet Топливо
G1: Приложение 2.1.5
A2: Расходы на приобретение топлива
A4: № п/п | B4: Наименование | C4: Ед. изм. | D4: 2014 | F4: 2014 факт РЭК | G4: 2015 | H4: 2016 | I4: 2015 факт РЭК | J4: Темп роста, текущий (7)/ истекший (5), % | K4: 2016 | L4: 2016 | M4: Темп роста, очередной (9)/ текущий (7), %
D5: план | E5: факт | G5: утверждено РЭК | H5: факт ОКК | K5: план | L5: утверждено РЭК
A6: 1 | B6: 2 | C6: 3 | D6: 4 | E6: 5 | F6: 5* | G6: 6 | H6: 7 | I6: 7* | J6: 8 | K6: 9 | L6: 9* | M6: 10
A7: 1 | B7: Уголь
A8: 1.1 | B8: Кол-во (объем) топлива | J8: =H8/E8*100 ->  | M8: =K8/H8*100 -> 
A9: 1.2 | B9: Цена топлива | C9: тыс. руб. | J9: =H9/E9*100 ->  | M9: =K9/H9*100 -> 
A10: 1.3 | B10: Затраты на топливо | C10: тыс. руб. | D10: =D8*D9 -> 0 | E10: 0 | F10: 0 | G10: 0 | H10: 0 | I10: 0 | K10: =K8*K9 -> 0 | L10: =L8*L9 -> 0 | Q10: Sum
A11: 2 | B11: Газ
A12: 2.1 | B12: Кол-во (объем) топлива
A13: 2.2 | B13: Цена топлива | C13: тыс. руб.
A14: 2.3 | B14: Затраты на топливо | C14: тыс. руб. | D14: =D12*D13 -> 0 | E14: =E12*E13 -> 0 | F14: 0 | G14: 0 | H14: 0 | I14: 0 | K14: 0 | L14: 0 | Q14: Sum
A15: 3 | B15: Мазут | O15: 3
A16: 3.1 | B16: Кол-во (объем) топлива
A17: 3.2 | B17: Цена топлива | C17: тыс. руб.
A18: 3.3 | B18: Затраты на топливо | C18: тыс. руб. | D18: =D16*D17 -> 0 | E18: =E16*E17 -> 0 | F18: 0 | G18: 0 | H18: 0 | I18: 0 | K18: 0 | L18: 0 | Q18: Sum
B19: Добавить
B20: Итого | C20: тыс. руб. | D20: =SUMIF($Q$7:$Q$19,"sum",D7:D19) -> 0 | E20: 0 | F20: 0 | G20: 0 | H20: 0 | I20: 0 | K20: =SUMIF($Q$7:$Q$19,"sum",K7:K19) -> 0 | L20: =SUMIF($Q$7:$Q$19,"sum",L7:L19) -> 0
A23: Руководитель организации ____________________________________
A25: Ответственный за составление формы ______________________________________
D26: МП

Sheet Покупная вода
G1: Приложение 2.1.6
A2: Расходы на приобретение холодной воды
A4: № п/п | B4: Наименование | C4: Ед. изм. | D4: 2014 | F4: 2014 факт РЭК | G4: 2015 | H4: 2016 | I4: 2015 факт РЭК | J4: Темп роста, текущий (7)/ истекший (5), % | K4: 2016 | L4: 2016 | M4: Темп роста, очередной (9)/ текущий (7), %
D5: план | E5: факт | G5: утверждено РЭК | H5: факт ОКК | K5: план | L5: утверждено РЭК
A6: 1 | B6: 2 | C6: 3 | D6: 4 | E6: 5 | F6: 5* | G6: 6 | H6: 7 | I6: 7* | J6: 8 | K6: 9 | L6: 9* | M6: 10
A7: 1 | B7: Поставщик | O7: 1
A8: 1.1 | B8: Объем холодной воды | C8: тыс. куб. м | J8: =H8/E8*100 ->  | M8: =K8/H8*100 -> 
A9: 1.2 | B9: Тариф на холодную воду | C9: руб./куб. м | J9: =H9/E9*100 ->  | M9: =K9/H9*100 -> 
A10: 1.3 | B10: Затраты на холодную воду | C10: тыс. руб. | D10: =D8*D9 -> 0 | E10: =E8*E9 -> 0 | F10: 0 | G10: 0 | H10: 0 | I10: 0 | J10: =H10/E10*100 ->  | K10: 0 | L10: 0 | M10: =K10/H10*100 ->  | Q10: Sum
B11: Добавить
B12: Итого | C12: тыс. руб. | D12: =SUMIF($Q$7:$Q$11,"sum",D7:D11) -> 0 | E12: 0 | F12: 0 | G12: 0 | H12: 0 | I12: 0 | J12: =H12/E12*100 ->  | K12: =SUMIF($Q$7:$Q$11,"sum",K7:K11) -> 0 | L12: =SUMIF($Q$7:$Q$11,"sum",L7:L11) -> 0 | M12: =K12/H12*100 -> 
A15: Руководитель организации ____________________________________
A17: Ответственный за составление формы ______________________________________
C18: МП

Sheet Оплата труда
G1: Приложение 2.2.1
A2: Расходы на оплату труда в разрезе регулируемых видов деятельности
A4: № п/п | B4: Наименование | C4: Ед. изм. | D4: 2014 | F4: 2014 факт РЭК | G4: 2015 | H4: 2016 | I4: 2016 факт РЭК | J4: 2016 | K4: 2016
D5: план | E5: факт | G5: утверждено РЭК | H5: факт ОКК | J5: план | K5: утверждено РЭК
A6: 1 | B6: 2 | C6: 3 | D6: 4 | E6: 5 | F6: 5* | G6: 6 | H6: 7 | I6: 7* | J6: 8 | K6: 8*
A7: 1 | B7: Производственный персонал
A8: 1.1 | B8: Холодное водоснабжение | C8: тыс. руб. | D8: =D57 -> 0 | E8: =E57 -> 0 | F8: 0 | G8: 0 | H8: 455.8 | I8: 455.8001123 | J8: 0 | K8: 604.9
A9: 1.2 | B9: Регулируемый вид деятельности | C9: тыс. руб. | K9: 604.9
B10: Добавить
A11: 2 | B11: Ремонтный персонал
A12: 2.1 | B12: Холодное водоснабжение | C12: тыс. руб. | D12: =D86 -> 0 | E12: =E86 -> 0 | F12: 0 | G12: 0 | H12: 0 | I12: 0 | J12: 0 | K12: 0
A13: 2.2 | B13: Регулируемый вид деятельности | C13: тыс. руб.
B14: Добавить
A15: 3 | B15: Административный персонал
A16: 3.1 | B16: Холодное водоснабжение | C16: тыс. руб. | D16: ='Цех и Администр расх'!D34*'Цех и Администр расх'!H100% ->  | E16: ='Цех и Администр расх'!E34*'Цех и Администр расх'!I100% ->  | F16: ='Цех и Администр расх'!F34*'Цех и Администр расх'!J100% ->  | G16: ='Цех и Администр расх'!G34*'Цех и Администр расх'!K100% ->  | H16: ='Цех и Администр расх'!H34*'Цех и Администр расх'!L100% -> 301.3951316 | J16: ='Цех и Администр расх'!I34*'Цех и Администр расх'!N100% ->  | K16: ='Цех и Администр расх'!M34 -> 288.259233
A17: 3.2 | B17: Регулируемый вид деятельности | C17: тыс. руб.
B18: Добавить
A19: 4 | B19: Общецеховый персонал
A20: 4.1 | B20: Холодное водоснабжение | C20: тыс. руб. | D20: ='Цех и Администр расх'!D7*'Цех и Администр расх'!H81% ->  | E20: ='Цех и Администр расх'!E7*'Цех и Администр расх'!I81% ->  | F20: ='Цех и Администр расх'!F7*'Цех и Администр расх'!J81% ->  | G20: ='Цех и Администр расх'!G7*'Цех и Администр расх'!K81% ->  | H20: ='Цех и Администр расх'!H7*'Цех и Администр расх'!L81% -> 0 | J20: ='Цех и Администр расх'!I7*'Цех и Администр расх'!N81% ->  | K20: ='Цех и Администр расх'!M7 -> 0
A21: 4.2 | B21: Регулируемый вид деятельности | C21: тыс. руб.
B22: Добавить
G25: Приложение 2.2
A26: Расходы на оплату труда по регулируемым видам деятельности и в целом по предприятию
A28: № п/п | B28: Наименование | C28: Ед. изм. | D28: 2014 | F28: 2014 факт РЭК | G28: 2015 | H28: 2016 | I28: 2016 факт РЭК | J28: 2016 | K28: 2016
D29: план | E29: факт | G29: утверждено РЭК | H29: факт ОКК | J29: план | K29: утверждено РЭК
A30: 1 | B30: 2 | C30: 3 | D30: 4 | E30: 5 | F30: 5* | G30: 6 | H30: 7 | I30: 7* | J30: 8 | K30: 8*
B31: Производственный персонал (водоснабжение)
A32: 1 | B32: Численность (среднесписочная), принятая для расчета | C32: чел. | H32: 3 | I32: 3 | K32: 4
A33: 2 | B33: Средняя оплата труда
A34: 2.1 | B34: Тарифная ставка рабочего 1 разряда | C34: руб. | H34: 5040 | I34: 8056.58
A35: 2.2 | B35: Индекс роста номинальной заработной платы
A36: 2.3 | B36: Тарифная ставка рабочего 1 разряда с учетом дефлятора | C36: руб. | H36: 8467 | I36: =I34 -> 8056.58
A37: 2.4 | B37: Средний тарифный коэффициент | H37: 3387 | I37: 1.471365
A38: 2.5 | B38: Среднемесячная тарифная ставка | C38: руб. | H38: 11854.17 | I38: =I36*I37 -> 11854.16983
A39: 2.6 | B39: Минимальный размер оплаты труда по отраслевому тарифному соглашению | C39: руб. | D39: 7056.84 | E39: 7056.84 | F39: 7056.84 | G39: 7501.42 | H39: 8056.58 | I39: 8056.58 | K39: 8056.58
A40: 2.7 | B40: Выплаты, связанные с режимом работы и условиями труда на 1 работника в месяц
A41: 2.7.1 | B41: процент | C41: % | I41: =I42*100/I38 -> 6.807262014
A42: 2.7.2 | B42: сумма выплат | C42: руб. | I42: 806.9444
A43: 2.8 | B43: Текущее премирование
A44: 2.8.1 | B44: процент | C44: %
A45: 2.8.2 | B45: сумма выплат | C45: руб.
A46: 2.9 | B46: Доп. премирование, включая вознаграждение за выслугу лет
A47: 2.9.1 | B47: процент | C47: %
A48: 2.9.2 | B48: сумма выплат | C48: руб.
A49: 2.9.3 | B49: прочее | C49: руб.
A50: 2.9.4 | B50: северные надбавки | C50: руб.
A51: 2.10 | B51: ИТОГО среднемесячная оплата труда на 1 работника | C51: руб. | H51: 11854.17 | I51: =I38+I42 -> 12661.11423
A52: 2.11 | B52: Фонд оплаты труда | C52: тыс. руб. | H52: 455.8 | I52: =I51*I32*12/1000 -> 455.8001123
A53: 3 | B53: Расчет средств на оплату труда (прибыль) | C53: тыс. руб.
A54: 3.1 | B54: Льготный проезд к месту отдыха | C54: тыс. руб.
A55: 3.2 | B55: По постановлению Правительства РФ от 03.11.1994 № 1206* | C55: тыс. руб.
A56: 3.3 | B56: Компенсационные и социальные выплаты | C56: тыс. руб.
A57: 4 | B57: ИТОГО средств на оплату труда производственного персонала | C57: тыс. руб. | H57: 455.8 | I57: =I52 -> 455.8001123 | K57: 604.9
A58: 5 | B58: Страховые взносы, процент | C58: % | H58: 30.2 | I58: =I59*100/I57 -> 30.20008031 | K58: 30.2
A59: 5.1 | B59: Страховые взносы | C59: тыс. руб. | D59: =D57*D58% -> 0 | G59: =G57*G58% -> 0 | H59: 137.65 | I59: 137.652 | J59: =J57*J58% -> 0 | K59: =K57*K58% -> 182.6798
B60: Ремонтный персонал (водоснабжение)
A61: 1 | B61: Численность (среднесписочная), принятая для расчета | C61: чел.
A62: 2 | B62: Средняя оплата труда
A63: 2.1 | B63: Тарифная ставка рабочего 1 разряда | C63: руб.
A64: 2.2 | B64: Индекс роста номинальной заработной платы
A65: 2.3 | B65: Тарифная ставка рабочего 1 разряда с учетом дефлятора | C65: руб.
A66: 2.4 | B66: Средний тарифный коэффициент
A67: 2.5 | B67: Среднемесячная тарифная ставка | C67: руб.
A68: 2.6 | B68: Минимальный размер оплаты труда по отраслевому тарифному соглашению | C68: руб. | D68: 7056.84 | E68: 7056.84 | F68: 7056.84 | G68: 7501.42 | H68: 8056.58 | I68: 7501.42 | K68: 8056.58
A69: 2.7 | B69: Выплаты, связанные с режимом работы и условиями труда на 1 работника в месяц
A70: 2.7.1 | B70: процент | C70: %
A71: 2.7.2 | B71: сумма выплат | C71: руб.
A72: 2.8 | B72: Текущее премирование
A73: 2.8.1 | B73: процент | C73: %
A74: 2.8.2 | B74: сумма выплат | C74: руб.
A75: 2.9 | B75: Доп. премирование, включая вознаграждение за выслугу лет
A76: 2.9.1 | B76: процент | C76: %
A77: 2.9.2 | B77: сумма выплат | C77: руб.
A78: 2.9.3 | B78: прочее | C78: руб.
A79: 2.9.4 | B79: северные надбавки | C79: руб.
A80: 2.10 | B80: ИТОГО среднемесячная оплата труда на 1 работника | C80: руб.
A81: 2.11 | B81: Фонд оплаты труда | C81: тыс. руб.
A82: 3 | B82: Расчет средств на оплату труда (прибыль) | C82: тыс. руб.
A83: 3.1 | B83: Льготный проезд к месту отдыха | C83: тыс. руб.
A84: 3.2 | B84: По постановлению Правительства РФ от 03.11.1994 № 1206* | C84: тыс. руб.
A85: 3.3 | B85: Компенсационные и социальные выплаты | C85: тыс. руб.
A86: 4 | B86: ИТОГО средств на оплату труда ремонтного персонала | C86: тыс. руб.
A87: 5 | B87: Страховые взносы, процент | C87: %
A88: 5.1 | B88: Страховые взносы | C88: тыс. руб. | D88: =D86*D87% -> 0 | G88: =G86*G87% -> 0 | J88: =J86*J87% -> 0 | K88: =K86*K87% -> 0
B89: Административный персонал
A90: 1 | B90: Численность (среднесписочная), принятая для расчета | C90: чел. | H90: 3 | I90: 3 | K90: 3.1844169
A91: 2 | B91: Средняя оплата труда
A92: 2.1 | B92: Тарифная ставка рабочего 1 разряда | C92: руб. | H92: 5040 | I92: 8056.58
A93: 2.2 | B93: Индекс роста номинальной заработной платы | H93: 2.546 | I93: 2.221621
A94: 2.3 | B94: Тарифная ставка рабочего 1 разряда с учетом дефлятора | C94: руб. | H94: 12832.38
A95: 2.4 | B95: Средний тарифный коэффициент
A96: 2.5 | B96: Среднемесячная тарифная ставка | C96: руб. | H96: 17898.67 | I96: =I92*I93 -> 17898.66732
A97: 2.6 | B97: Минимальный размер оплаты труда по отраслевому тарифному соглашению | C97: руб. | D97: 7056.84 | E97: 7056.84 | F97: 7056.84 | G97: 7501.42 | H97: 8056.58 | I97: 8056.58 | K97: 8056.58
A98: 2.7 | B98: Выплаты, связанные с режимом работы и условиями труда на 1 работника в месяц
A99: 2.7.1 | B99: процент | C99: %
A100: 2.7.2 | B100: сумма выплат | C100: руб.
A101: 2.8 | B101: Текущее премирование
A102: 2.8.1 | B102: процент | C102: % | I102: =I103*100/I96 -> 13.71578476
A103: 2.8.2 | B103: сумма выплат | C103: руб. | I103: =I109-I96 -> 2454.942684
A104: 2.9 | B104: Доп. премирование, включая вознаграждение за выслугу лет
A105: 2.9.1 | B105: процент | C105: %
A106: 2.9.2 | B106: сумма выплат | C106: руб.
A107: 2.9.3 | B107: прочее | C107: руб.
A108: 2.9.4 | B108: северные надбавки | C108: руб.
A109: 2.10 | B109: ИТОГО среднемесячная оплата труда на 1 работника | C109: руб. | I109: 20353.61
A110: 2.11 | B110: Фонд оплаты труда | C110: тыс. руб.
A111: 3 | B111: Расчет средств на оплату труда (прибыль) | C111: тыс. руб.
A112: 3.1 | B112: Льготный проезд к месту отдыха | C112: тыс. руб.
A113: 3.2 | B113: По постановлению Правительства РФ от 03.11.1994 № 1206* | C113: тыс. руб.
A114: 3.3 | B114: Компенсационные и социальные выплаты | C114: тыс. руб.
A115: 4 | B115: ИТОГО средств на оплату труда административного персонала | C115: тыс. руб. | H115: 732.73 | I115: =I109*I90*12/1000 -> 732.72996 | K115: 685.03
A116: 5 | B116: Страховые взносы, процент | C116: % | H116: 30.2 | I116: =I117*100/I115 -> 30.05063421 | K116: 30.2
A117: 5.1 | B117: Страховые взносы | C117: тыс. руб. | D117: =D115*D116% -> 0 | G117: =G115*G116% -> 0 | H117: 220.19 | I117: 220.19 | J117: =J115*J116% -> 0 | K117: =K115*K116% -> 206.87906
B118: Общецеховый персонал
A119: 1 | B119: Численность (среднесписочная), принятая для расчета | C119: чел.
A120: 2 | B120: Средняя оплата труда
A121: 2.1 | B121: Тарифная ставка рабочего 1 разряда | C121: руб.
A122: 2.2 | B122: Индекс роста номинальной заработной платы
A123: 2.3 | B123: Тарифная ставка рабочего 1 разряда с учетом дефлятора | C123: руб.
A124: 2.4 | B124: Средний тарифный коэффициент
A125: 2.5 | B125: Среднемесячная тарифная ставка | C125: руб.
A126: 2.6 | B126: Минимальный размер оплаты труда по отраслевому тарифному соглашению | C126: руб. | D126: 7056.84 | E126: 7056.84 | F126: 7056.84 | G126: 7501.42 | H126: 8056.58 | I126: 7501.42 | K126: 8056.58
A127: 2.7 | B127: Выплаты, связанные с режимом работы и условиями труда на 1 работника в месяц | C127: руб.
A128: 2.7.1 | B128: процент | C128: %
A129: 2.7.2 | B129: сумма выплат | C129: руб.
A130: 2.8 | B130: Текущее премирование
A131: 2.8.1 | B131: процент | C131: %
A132: 2.8.2 | B132: сумма выплат | C132: руб.
A133: 2.9 | B133: Доп. премирование, включая вознаграждение за выслугу лет
A134: 2.9.1 | B134: процент | C134: %
A135: 2.9.2 | B135: сумма выплат | C135: руб.
A136: 2.9.3 | B136: прочее | C136: руб.
A137: 2.9.4 | B137: северные надбавки | C137: руб.
A138: 2.10 | B138: ИТОГО среднемесячная оплата труда на 1 работника | C138: руб.
A139: 2.11 | B139: Фонд оплаты труда | C139: тыс. руб.
A140: 3 | B140: Расчет средств на оплату труда (прибыль) | C140: тыс. руб.
A141: 3.1 | B141: Льготный проезд к месту отдыха | C141: тыс. руб.
A142: 3.2 | B142: По постановлению Правительства РФ от 03.11.1994 № 1206* | C142: тыс. руб.
A143: 3.3 | B143: Компенсационные и социальные выплаты | C143: тыс. руб.
A144: 4 | B144: ИТОГО средств на оплату труда общецехового персонала | C144: тыс. руб.
A145: 5 | B145: Страховые взносы, процент | C145: %
A146: 5.1 | B146: Страховые взносы | C146: тыс. руб. | D146: =D144*D145% -> 0 | G146: =G144*G145% -> 0 | J146: =J144*J145% -> 0 | K146: =K144*K145% -> 0
A148: * Постановление Правительства Российской Федерации от 3 ноября 1994 г. № 1206 (Собрание законодательства Российской Федерации, 1994, № 29, ст. 3035; 2003, № 33, ст. 3269; 2006, № 33, ст. 3633; 2012, № 22, ст. 2867; 2013, № 13, ст. 1559; 2013, № 22, ст. 2809)
A151: Руководитель организации ____________________________________
A153: Ответственный за составление формы ______________________________________
C154: МП

Sheet Оплата труда 2
D1: Приложение Е
A3: Расчет выплат, связанных с режимом работы и условиями труда основного производственного персонала
A5: № п/п | B5: Наименование | C5: ед. изм. | D5: факт 2016 | E5: ожид 2017 | F5: план 2018
A6: 1 | B6: Выплаты, связанные с режимом работы всего, в том числе: | C6: руб. | D6: =SUM(D7:D12) -> 0 | E6: =SUM(E7:E12) -> 0 | F6: =SUM(F7:F12) -> 128.33
A7: 1.1 | B7: Ночные | C7: руб. | D7: 0 | E7: 0 | F7: 49.1
A8: 1.2 | B8: Праздничные | C8: руб. | D8: 0 | E8: 0 | F8: 49.1
A9: 1.3 | B9: Доплата за классность | C9: руб. | D9: 0 | E9: 0
A10: 1.4 | B10: Выслуга лет | C10: руб. | D10: 0 | E10: 0
A11: 1.5 | B11: Почетное звание | C11: руб. | D11: 0 | E11: 0
A12: 1.6 | B12: Замещение в отпуск работников 785,52тыс руб/365*28*50% от оклада работников | C12: руб. | D12: 0 | E12: 0 | F12: 30.13
A13: 2 | B13: ФОТ | C13: руб. | D13: 0 | E13: 0 | F13: 785.52
A14: 2.1 | B14: процент от ФОТ | C14: % | D14: 0 | E14: 0 | F14: 16.34
A16: Расчет выплат, связанных с режимом работы и условиями труда ремонтного персонала
A18: № п/п | B18: Наименование | C18: ед. изм. | D18: факт 2016 | E18: ожид 2017 | F18: план 2018
A19: 1 | B19: Выплаты, связанные с режимом работы всего, в том числе: | C19: руб. | D19: =SUM(D20:D25) -> 0 | E19: =SUM(E20:E25) -> 0 | F19: =SUM(F20:F25) -> 0
A20: 1.1 | B20: Ночные | C20: руб.
A21: 1.2 | B21: Праздничные | C21: руб.
A22: 1.3 | B22: Доплата за классность | C22: руб.
A23: 1.4 | B23: Выслуга лет | C23: руб.
A24: 1.5 | B24: Почетное звание | C24: руб.
A25: 1.6 | B25: Прочие выплаты (расшифровать) | C25: руб.
A26: 2 | B26: ФОТ | C26: руб.
A27: 2.1 | B27: процент от ФОТ | C27: %
A29: Расчет выплат, связанных с режимом работы и условиями труда общецехового персонала
A31: № п/п | B31: Наименование | C31: ед. изм. | D31: факт 2016 | E31: ожид 2017 | F31: план 2018
A32: 1 | B32: Выплаты, связанные с режимом работы всего, в том числе: | C32: руб. | D32: =SUM(D33:D38) -> 0 | E32: =SUM(E33:E38) -> 0 | F32: =SUM(F33:F38) -> 37.35
A33: 1.1 | B33: Ночные | C33: руб.
A34: 1.2 | B34: Праздничные | C34: руб.
A35: 1.3 | B35: Доплата за классность | C35: руб.
A36: 1.4 | B36: Выслуга лет | C36: руб.
A37: 1.5 | B37: Почетное звание | C37: руб.
A38: 1.6 | B38: Замещение в отпуск работников (973,76тыс руб/365*28*50% от оклада работников) | C38: руб. | F38: 37.35
A39: 2 | B39: ФОТ | C39: руб. | F39: 973.76
A40: 2.1 | B40: процент от ФОТ | C40: % | F40: 3.69
A42: Руководитель организации ____________________________________
A44: Ответственный за составление формы ______________________________________
C45: МП
E46: Приложение Ж
A47: Расчет среднего тарифного коэффициента
C49: месячная тарифная ставка рабочего 1 разряда, руб. | F49: на 2018
F50: 8435.3
A52: № п/п | B52: Должность (специальность, профессия), разряд, класс (категория) квалификация | C52: кол-во штатных единиц | D52: оклад, руб. | E52: ФОТ в месяц | F52: коэффициент, применяемый к базовой месячной тарифной ставке рабочего первого разряда
A54: 1 | B54: АУП
A55: 1.1 | B55: Директор | C55: 1 | D55: 38802 | E55: =D55*C55 -> 38802 | F55: =D55/$F$50 -> 4.599954951
A56: 1.2 | B56: Главный бухгалтер | C56: 1 | D56: 29524 | E56: =D56*C56 -> 29524 | F56: =D56/$F$50 -> 3.500053347
A57: 1.3 | B57: Кассир | C57: 0.5 | D57: 11640 | E57: =D57*C57 -> 5820 | F57: =D57/$F$50 -> 1.379915356 | G57: О
A58: 1.4 | B58: Специалист по кадрам | C58: 0.25 | D58: 18556 | E58: =D58*C58 -> 4639 | F58: =D58/$F$50 -> 2.199803208 | G58: О
A59: 1.5 | B59: Делопроизводитель | C59: 0.25 | D59: 9448 | E59: =D59*C59 -> 2362 | F59: =D59/$F$50 -> 1.120055007 | G59: О
B60: Добавить
B61: Итого | C61: =SUM(C54:C60) -> 3 | D61: =SUM(D54:D60) -> 107970 | E61: =SUM(E54:E60) -> 81147 | F61: =E61/$F$50/C61 -> 3.20664351
A62: 2 | B62: Общецеховый персонал
A63: 2.1 | E63: =D63*C63 -> 0 | F63: =D63/$F$50 -> 0
A64: 2.2 | E64: =D64*C64 -> 0 | F64: =D64/$F$50 -> 0
B65: Добавить
B66: Итого | C66: =SUM(C62:C65) -> 0 | D66: =SUM(D62:D65) -> 0 | E66: =SUM(E62:E65) -> 0 | F66: =E66/$F$50/C66 -> 
A67: 3 | B67: Ремонтный цех
A68: 3.1 | E68: =D68*C68 -> 0 | F68: =D68/$F$50 -> 0
A69: 3.2 | E69: =D69*C69 -> 0 | F69: =D69/$F$50 -> 0
B70: Добавить
B71: Итого | C71: =SUM(C67:C70) -> 0 | D71: =SUM(D67:D70) -> 0 | E71: =SUM(E67:E70) -> 0 | F71: =E71/$F$50/C71 -> 
A72: 4 | B72: Цех водоснабжения
A73: 4.1 | B73: Тракторист | C73: 1 | D73: 15184 | E73: =D73*C73 -> 15184 | F73: =D73/$F$50 -> 1.800054533
A74: 4.2 | B74: Экскаваторщик | C74: 1 | D74: 15184 | E74: =D74*C74 -> 15184 | F74: =D74/$F$50 -> 1.800054533
A75: 4.3 | B75: Слесарь | C75: 2 | D75: 15184 | E75: =D75*C75 -> 30368 | F75: =D75/$F$50 -> 1.800054533 | G75: О
A76: 4.4 | B76: Контролер | C76: 0.5 | D76: 9448 | E76: =D76*C76 -> 4724 | F76: =D76/$F$50 -> 1.120055007 | G76: О
B77: Добавить
B78: Итого | C78: =SUM(C72:C77) -> 4.5 | D78: =SUM(D72:D77) -> 55000 | E78: =SUM(E72:E77) -> 65460 | F78: =E78/$F$50/C78 -> 1.72449903
A79: 5 | B79: Цех водоотведения
A80: 5.1 | E80: =D80*C80 -> 0 | F80: =D80/$F$50 -> 0
A81: 5.2 | E81: =D81*C81 -> 0 | F81: =D81/$F$50 -> 0
B82: Добавить
B83: Итого | C83: =SUM(C79:C82) -> 0 | D83: =SUM(D79:D82) -> 0 | E83: =SUM(E79:E82) -> 0 | F83: =E83/$F$50/C83 -> 
A85: Руководитель организации ____________________________________
A87: Ответственный за составление формы ______________________________________
C88: МП
E90: Приложение И
A91: Расчет нормативной численности *
A93: № п/п | B93: наименование функций (отделы, участки) | C93: на предпри-ятии | D93: перечень должностей, професиий | E93: норматив, диапазон | F93: нормативная численность | G93: фактическая численность
A94: 1 | B94: Водопровод 32,15км | E94: 0.2 | F94: 32,15*0,2= 6,43
A95: 2 | D95: Слесарь АВР | F95: 2 | G95: 2
A96: 3 | D96: Экскаваторщик | F96: 2 | G96: 1 | H96: О
A97: 4 | D97: Тракторист | F97: 2 | G97: 1 | H97: О
A98: 5 | D98: эл газ сварщик | F98: 0.43 | G98: 0 | H98: О
A99: 6 | B99: Приборы учета воды частного сектора | E99: 1чел/400аб | F99: 639аб/400= 1,598 | H99: О
A100: 7 | B100: Приборы учета предприятий, организаций | E100: 1чел/300аб | F100: 10/300= 0,033 | H100: О
A101: 8 | B101: При отсутствии приборов учета воды: | H101: О
A102: 9 | B102: жилые дома частного сектора | E102: 1чел/600аб | F102: 0/600=0 | H102: О
A103: 10 | B103: предприятия, организации | E103: 1чел/500аб | F103: 0/500=0 | H103: О
A104: 11 | D104: Контролер | F104: 1.631 | G104: 0.5 | H104: О
A105: 12 | B105: Абон отдел 732абонента | D105: техник абон отдела | E105: 3чел/1000аб | F105: 2 | G105: 0 | H105: О
A106: 13 | B106: Артскважины работающие 3шт | D106: электромонтёр | E106: 1чел/1артск | F106: 3 | G106: 0 | H106: О
A107: 14 | B107: Склад цеховой | D107: Кладовщик | E107: 1 | F107: 1 | G107: 0 | H107: О
A108: 15 | B108: Итого нормативная численность | F108: 14.061 | H108: О
A109: 16 | B109: Коэффициент системы водопровода | F109: 0.55 | H109: О
A110: 17 | B110: Итого нормативная численность | F110: 7.74 | G110: 4.5 | H110: О
A111: 18 | B111: Руководители: | H111: О
A112: 19 | B112: Общее руководство | D112: Директор | E112: 2/100*6 | F112: 0.12 | G112: 1 | H112: О
A113: 20 | B113: Бухучет и финансы | D113: гл. бухгалтер | E113: 5/100*6 | F113: 0.3 | G113: 1 | H113: О
A114: 21 | B114: Комплектование и учет кадров | D114: инспектор по кадрам | E114: 1/100*6 | F114: 0.06 | G114: 0.25 | H114: О
A115: 22 | B115: Материально техническое снабжение | D115: экспедитор | E115: 1/100*6 | F115: 0.06 | H115: О
A116: 23 | B116: Надзор и контроль за кап ремонтом | D116: гл инженер | E116: 1/100*6 | F116: 0.06 | H116: О
A117: 24 | B117: Общее делопроизводство и хоз обслужив | D117: делопроизводитель | E117: 1/100*6 | F117: 0.06 | G117: 0.25 | H117: О
A118: 25 | B118: Оргтехэксплутация систем водоснабжения | D118: гл инженер | E118: 4/100*6 | F118: 0.24 | H118: О
A119: 26 | B119: Охрана окружающей среды | D119: эколог | E119: 1/100*6 | F119: 0.06 | H119: О
A120: 27 | B120: Правовое обслуживание | D120: юрист | E120: 1/100*6 | F120: 0.06 | H120: О
A121: 28 | B121: Тех обслуживание и внедре средсв автом-и | D121: гл энергетик | E121: 4/100*6 | F121: 0.24 | H121: О
A122: 29 | B122: Техникоэконом. Планирование | D122: экономист | E122: 2/100*6 | F122: 0.12 | H122: О
A123: 30 | B123: Обслуживание программ и компьютер техн | D123: инженер- програм | E123: 1/8*1 | F123: 0.125 | H123: О
A124: 31 | D124: кассир | G124: 0.5 | H124: О
A125: 32 | B125: Нормативная численность руководителей | F125: 1.505 | G125: 2 | H125: О
A126: 33 | B126: Всего нормативная численность персонала | F126: 9.245 | G126: 7 | H126: О
B127: Добавить
A128: *заполняется в соответствии с Приказом Гос. Комитета РФ по строительной, архитектурной и жилищной политике от 23.03.1999 № 66
A130: Руководитель организации ____________________________________
A132: Ответственный за составление формы ______________________________________
C133: МП

Sheet Амортизация
G1: Приложение 2.3
A2: Амортизация (водоснабжение)
A4: № п/п | B4: Наименование | C4: Ед. изм. | D4: 2014 | F4: 2014 факт РЭК | G4: 2015 | H4: 2016 | I4: 2015 факт РЭК | J4: 2016 | K4: 2016
D5: план | E5: факт | G5: утверждено РЭК | H5: факт ОКК | J5: план | K5: утверждено РЭК
A6: 1 | B6: 2 | C6: 3 | D6: 4 | E6: 5 | F6: 5* | G6: 6 | H6: 7 | I6: 7* | J6: 8 | K6: 8*
A7: 1 | B7: Первоначальная (восстановительная) стоимость на начало периода
A8: 1.1 | B8: Здания | C8: тыс. руб. | H8: 593.59 | K8: 144.86
A9: 1.2 | B9: Сооружения и передаточные устройства | C9: тыс. руб. | H9: 3545.52
A10: 1.3 | B10: Машины и оборудование | C10: тыс. руб. | H10: 2144.22
A11: 1.4 | B11: Транспорт | C11: тыс. руб.
A12: 1.5 | B12: Прочее | C12: тыс. руб. | H12: 16.9
A13: 2 | B13: Ввод основных фондов
A14: 2.1 | B14: Здания | C14: тыс. руб.
A15: 2.2 | B15: Сооружения и передаточные устройства | C15: тыс. руб. | H15: 20166.74
A16: 2.3 | B16: Машины и оборудование | C16: тыс. руб.
A17: 2.4 | B17: Транспорт | C17: тыс. руб.
A18: 2.5 | B18: Прочее | C18: тыс. руб. | H18: 19
A19: 3 | B19: Выбытие основных фондов
A20: 3.1 | B20: Здания | C20: тыс. руб.
A21: 3.2 | B21: Сооружения и передаточные устройства | C21: тыс. руб.
A22: 3.3 | B22: Машины и оборудование | C22: тыс. руб.
A23: 3.4 | B23: Транспорт | C23: тыс. руб.
A24: 3.5 | B24: Прочее | C24: тыс. руб. | H24: 16.9
A25: 4 | B25: Первоначальная (восстановительная) стоимость на конец периода
A26: 4.1 | B26: Здания | C26: тыс. руб. | H26: 593.59
A27: 4.2 | B27: Сооружения и передаточные устройства | C27: тыс. руб. | H27: 23712.26
A28: 4.3 | B28: Машины и оборудование | C28: тыс. руб. | H28: 2144.22
A29: 4.4 | B29: Транспорт | C29: тыс. руб.
A30: 4.5 | B30: Прочее | C30: тыс. руб. | H30: 16.9
A31: 5 | B31: Среднегодовая стоимость
A32: 5.1 | B32: Здания | C32: тыс. руб. | H32: 593.59
A33: 5.2 | B33: Сооружения и передаточные устройства | C33: тыс. руб. | H33: 3545.52
A34: 5.3 | B34: Машины и оборудование | C34: тыс. руб. | H34: 2144.22
A35: 5.4 | B35: Транспорт | C35: тыс. руб.
A36: 5.5 | B36: Прочее | C36: тыс. руб. | H36: 8
A37: 6 | B37: Средняя норма амортизационных отчислений
A38: 6.1 | B38: Здания | C38: тыс. руб.
A39: 6.2 | B39: Сооружения и передаточные устройства | C39: тыс. руб. | H39: 46.66
A40: 6.3 | B40: Машины и оборудование | C40: тыс. руб. | H40: 12.69
A41: 6.4 | B41: Транспорт | C41: тыс. руб.
A42: 6.5 | B42: Прочее | C42: тыс. руб. | H42: 0.92
A43: 7 | B43: Сумма амортизационных отчислений | C43: тыс. руб.
A44: 7.1 | B44: Здания | C44: тыс. руб.
A45: 7.2 | B45: Сооружения и передаточные устройства | C45: тыс. руб. | H45: 560.19
A46: 7.3 | B46: Машины и оборудование | C46: тыс. руб. | H46: 152.32
A47: 7.4 | B47: Транспорт | C47: тыс. руб.
A48: 7.5 | B48: Прочее | C48: тыс. руб. | H48: 11
A49: 8 | B49: Переоценка на 31.12.ХХ
A50: 8.1 | B50: Здания | C50: тыс. руб.
A51: 8.2 | B51: Сооружения и передаточные устройства | C51: тыс. руб.
A52: 8.3 | B52: Машины и оборудование | C52: тыс. руб.
A53: 8.4 | B53: Транспорт | C53: тыс. руб.
A54: 8.5 | B54: Прочее | C54: тыс. руб.
A56: Руководитель организации ____________________________________
A58: Ответственный за составление формы ______________________________________
C59: МП

Sheet Амортизация 2
K1: Приложение К
A2: Амортизация за 2014 год, тыс. руб.
A4: № п/п | B4: Группа основных средств | C4: Cтоимость на начало периода на 01.01.2014 года | D4: по данным РЭК | E4: Ввод основных средств в 2014 году | F4: по данным РЭК | G4: Выбытие основных средств в 2014 году | H4: по данным РЭК | I4: Годовая норма амортизационных отчислений | J4: по данным РЭК | K4: Сумма начисленной амортизации за 2014 год | L4: по данным РЭК | M4: Стоимость на конец периода на 31.12.2014 года | N4: по данным РЭК | O4: Переоценка на период (указать год переоценки) | P4: по данным РЭК
A5: 1 | B5: Холодное водоснабжение | K5: =SUM(K6,K9,K12,K15,K18) -> 0 | L5: =SUM(L6,L9,L12,L15,L18) -> 0
A6: 1.1 | B6: Здания | K6: =SUM(K7:K8) -> 0 | L6: =SUM(L7:L8) -> 0
A7: 1.1.1 | B7: объект
B8: Добавить
A9: 1.2 | B9: Сооружения и передаточные устройства | K9: =SUM(K10:K11) -> 0 | L9: =SUM(L10:L11) -> 0
A10: 1.2.1 | B10: объект
B11: Добавить
A12: 1.3 | B12: Машины и оборудование | K12: =SUM(K13:K14) -> 0 | L12: =SUM(L13:L14) -> 0
A13: 1.3.1 | B13: объект
B14: Добавить
A15: 1.4 | B15: Транспорт | K15: =SUM(K16:K17) -> 0 | L15: =SUM(L16:L17) -> 0
A16: 1.4.1 | B16: объект
B17: Добавить
A18: 1.5 | B18: Прочее | K18: =SUM(K19:K20) -> 0 | L18: =SUM(L19:L20) -> 0
A19: 1.5.1 | B19: объект
B20: Добавить
A21: 2 | B21: Водоотведение | K21: =SUM(K22,K25,K28,K31,K34) -> 0 | L21: =SUM(L22,L25,L28,L31,L34) -> 0
A22: 2.1 | B22: Здания | K22: =SUM(K23:K24) -> 0 | L22: =SUM(L23:L24) -> 0
A23: 2.1.1 | B23: объект
B24: Добавить
A25: 2.2 | B25: Сооружения и передаточные устройства | K25: =SUM(K26:K27) -> 0 | L25: =SUM(L26:L27) -> 0
A26: 2.2.1 | B26: объект
B27: Добавить
A28: 2.3 | B28: Машины и оборудование | K28: =SUM(K29:K30) -> 0 | L28: =SUM(L29:L30) -> 0
A29: 2.3.1 | B29: объект
B30: Добавить
A31: 2.4 | B31: Транспорт | K31: =SUM(K32:K33) -> 0 | L31: =SUM(L32:L33) -> 0
A32: 2.4.1 | B32: объект
B33: Добавить
A34: 2.5 | B34: Прочее | K34: =SUM(K35:K36) -> 0 | L34: =SUM(L35:L36) -> 0
A35: 2.5.1 | B35: объект
B36: Добавить
A37: 3 | B37: Общецеховые основные средства | K37: =SUM(K38,K41,K44,K47,K50) -> 0 | L37: =SUM(L38,L41,L44,L47,L50) -> 0
A38: 3.1 | B38: Здания | K38: =SUM(K39:K40) -> 0 | L38: =SUM(L39:L40) -> 0
A39: 3.1.1 | B39: объект
B40: Добавить
A41: 3.2 | B41: Сооружения и передаточные устройства | K41: =SUM(K42:K43) -> 0 | L41: =SUM(L42:L43) -> 0
A42: 3.2.1 | B42: объект
B43: Добавить
A44: 3.3 | B44: Машины и оборудование | K44: =SUM(K45:K46) -> 0 | L44: =SUM(L45:L46) -> 0
A45: 3.3.1 | B45: объект
B46: Добавить
A47: 3.4 | B47: Транспорт | K47: =SUM(K48:K49) -> 0 | L47: =SUM(L48:L49) -> 0
A48: 3.4.1 | B48: объект
B49: Добавить
A50: 3.5 | B50: Прочее | K50: =SUM(K51:K52) -> 0 | L50: =SUM(L51:L52) -> 0
A51: 3.5.1 | B51: объект
B52: Добавить
A53: 4 | B53: Административные основные средства | K53: =SUM(K54,K57,K60,K63,K66) -> 0 | L53: =SUM(L54,L57,L60,L63,L66) -> 0
A54: 4.1 | B54: Здания | K54: =SUM(K55:K56) -> 0 | L54: =SUM(L55:L56) -> 0
A55: 4.1.1 | B55: объект
B56: Добавить
A57: 4.2 | B57: Сооружения и передаточные устройства | K57: =SUM(K58:K59) -> 0 | L57: =SUM(L58:L59) -> 0
A58: 4.2.1 | B58: объект
B59: Добавить
A60: 4.3 | B60: Машины и оборудование | K60: =SUM(K61:K62) -> 0 | L60: =SUM(L61:L62) -> 0
A61: 4.3.1 | B61: объект
B62: Добавить
A63: 4.4 | B63: Транспорт | K63: =SUM(K64:K65) -> 0 | L63: =SUM(L64:L65) -> 0
A64: 4.4.1 | B64: объект
B65: Добавить
A66: 4.5 | B66: Прочее | K66: =SUM(K67:K68) -> 0 | L66: =SUM(L67:L68) -> 0
A67: 4.5.1 | B67: объект
B68: Добавить
A70: Руководитель организации ____________________________________
A72: Ответственный за составление формы ______________________________________
L73: Приложение Л
A74: Амортизация, факт за 2016 год, тыс. руб.
A76: № п/п | B76: Группа основных средств | C76: Cтоимость на начало периода на 01.01.2016 года | D76: по данным РЭК | E76: Ввод основных средств в 2016 году | F76: по данным РЭК | G76: Выбытие основных средств в 2016 году | H76: по данным РЭК | I76: Годовая норма амортизационных отчислений | J76: по данным РЭК | K76: Сумма начисленной амортизации за 2016 год | L76: по данным РЭК | M76: Стоимость на конец периода на 31.12.2016 года | N76: по данным РЭК | O76: Переоценка на период (указать год переоценки) | P76: по данным РЭК
A77: 1 | B77: Холодное водоснабжение | K77: =SUM(K78,K81,K84,K87,K90) -> 0 | L77: =SUM(L78,L81,L84,L87,L90) -> 705.04
A78: 1.1 | B78: Здания | K78: =SUM(K79:K80) -> 0 | L78: =SUM(L79:L80) -> 705.04
A79: 1.1.1 | B79: объект | L79: 705.04
B80: Добавить
A81: 1.2 | B81: Сооружения и передаточные устройства | K81: =SUM(K82:K83) -> 0 | L81: =SUM(L82:L83) -> 0
A82: 1.2.1 | B82: объект
B83: Добавить
A84: 1.3 | B84: Машины и оборудование | K84: =SUM(K85:K86) -> 0 | L84: =SUM(L85:L86) -> 0
A85: 1.3.1 | B85: объект
B86: Добавить
A87: 1.4 | B87: Транспорт | K87: =SUM(K88:K89) -> 0 | L87: =SUM(L88:L89) -> 0
A88: 1.4.1 | B88: объект
B89: Добавить
A90: 1.5 | B90: Прочее | K90: =SUM(K91:K92) -> 0 | L90: =SUM(L91:L92) -> 0
A91: 1.5.1 | B91: объект
B92: Добавить
A93: 2 | B93: Водоотведение | K93: =SUM(K94,K97,K100,K103,K106) -> 0 | L93: =SUM(L94,L97,L100,L103,L106) -> 0
A94: 2.1 | B94: Здания | K94: =SUM(K95:K96) -> 0 | L94: =SUM(L95:L96) -> 0
A95: 2.1.1 | B95: объект
B96: Добавить
A97: 2.2 | B97: Сооружения и передаточные устройства | K97: =SUM(K98:K99) -> 0 | L97: =SUM(L98:L99) -> 0
A98: 2.2.1 | B98: объект
B99: Добавить
A100: 2.3 | B100: Машины и оборудование | K100: =SUM(K101:K102) -> 0 | L100: =SUM(L101:L102) -> 0
A101: 2.3.1 | B101: объект
B102: Добавить
A103: 2.4 | B103: Транспорт | K103: =SUM(K104:K105) -> 0 | L103: =SUM(L104:L105) -> 0
A104: 2.4.1 | B104: объект
B105: Добавить
A106: 2.5 | B106: Прочее | K106: =SUM(K107:K108) -> 0 | L106: =SUM(L107:L108) -> 0
A107: 2.5.1 | B107: объект
B108: Добавить
A109: 3 | B109: Общецеховые основные средства | K109: =SUM(K110,K113,K116,K119,K122) -> 0 | L109: =SUM(L110,L113,L116,L119,L122) -> 0
A110: 3.1 | B110: Здания | K110: =SUM(K111:K112) -> 0 | L110: =SUM(L111:L112) -> 0
A111: 3.1.1 | B111: объект
B112: Добавить
A113: 3.2 | B113: Сооружения и передаточные устройства | K113: =SUM(K114:K115) -> 0 | L113: =SUM(L114:L115) -> 0
A114: 3.2.1 | B114: объект
B115: Добавить
A116: 3.3 | B116: Машины и оборудование | K116: =SUM(K117:K118) -> 0 | L116: =SUM(L117:L118) -> 0
A117: 3.3.1 | B117: объект
B118: Добавить
A119: 3.4 | B119: Транспорт | K119: =SUM(K120:K121) -> 0 | L119: =SUM(L120:L121) -> 0
A120: 3.4.1 | B120: объект
B121: Добавить
A122: 3.5 | B122: Прочее | K122: =SUM(K123:K124) -> 0 | L122: =SUM(L123:L124) -> 0
A123: 3.5.1 | B123: объект
B124: Добавить
A125: 4 | B125: Административные основные средства | K125: =SUM(K126,K129,K132,K135,K138) -> 0 | L125: =SUM(L126,L129,L132,L135,L138) -> 0
A126: 4.1 | B126: Здания | K126: =SUM(K127:K128) -> 0 | L126: =SUM(L127:L128) -> 0
A127: 4.1.1 | B127: объект
B128: Добавить
A129: 4.2 | B129: Сооружения и передаточные устройства | K129: =SUM(K130:K131) -> 0 | L129: =SUM(L130:L131) -> 0
A130: 4.2.1 | B130: объект
B131: Добавить
A132: 4.3 | B132: Машины и оборудование | K132: =SUM(K133:K134) -> 0 | L132: =SUM(L133:L134) -> 0
A133: 4.3.1 | B133: объект
B134: Добавить
A135: 4.4 | B135: Транспорт | K135: =SUM(K136:K137) -> 0 | L135: =SUM(L136:L137) -> 0
A136: 4.4.1 | B136: объект
B137: Добавить
A138: 4.5 | B138: Прочее | K138: =SUM(K139:K140) -> 0 | L138: =SUM(L139:L140) -> 0
A139: 4.5.1 | B139: объект
B140: Добавить
A142: Руководитель организации ____________________________________
A144: Ответственный за составление формы ______________________________________
C145: МП | L145: Приложение М
A146: Амортизация, утвержденная за 2016 год, тыс. руб.
A148: № п/п | B148: Группа основных средств | C148: Cтоимость на начало периода на 01.01.2016 года | D148: по данным РЭК | E148: Ввод основных средств в 2016 году | F148: по данным РЭК | G148: Выбытие основных средств в 2016 году | H148: по данным РЭК | I148: Годовая норма амортизационных отчислений | J148: по данным РЭК | K148: Сумма начисленной амортизации за 2016 год | L148: утверждено за 2016 | M148: Стоимость на конец периода на 31.12.2016 года | N148: по данным РЭК | O148: Переоценка на период (указать год переоценки) | P148: по данным РЭК
A149: 1 | B149: Холодное водоснабжение | K149: =SUM(K150,K153,K157,K160,K163) -> 0 | L149: =SUM(L150,L153,L157,L160,L163) -> 0
A150: 1.1 | B150: Здания | K150: =SUM(K151:K152) -> 0 | L150: =SUM(L151:L152) -> 0
A151: 1.1.1 | B151: объект
B152: Добавить
A153: 1.2 | B153: Сооружения и передаточные устройства | K153: =SUM(K154:K156) -> 0 | L153: =SUM(L154:L156) -> 0
A154: 1.2.1 | B154: Водопровод подводящий от артскважины№7261 4,68км | C154: 0 | E154: 8004.85 | I154: 222.36 | M154: 8004.85
A155: 1.2.2 | B155: Водопровод подводящий от артскважины№7288 2374,44 мобъект | C155: 0 | E155: 12161.89 | I155: 337.83 | M155: 12161.89 | Q155: О
B156: Добавить
A157: 1.3 | B157: Машины и оборудование | K157: =SUM(K158:K159) -> 0 | L157: =SUM(L158:L159) -> 0
A158: 1.3.1 | B158: Экскаватор-погрузчик | C158: 1050.2 | I158: 144.85
B159: Добавить
A160: 1.4 | B160: Транспорт | K160: =SUM(K161:K162) -> 0 | L160: =SUM(L161:L162) -> 0
A161: 1.4.1 | B161: объект
B162: Добавить
A163: 1.5 | B163: Прочее | K163: =SUM(K164:K165) -> 0 | L163: =SUM(L164:L165) -> 0
A164: 1.5.1 | B164: объект | C164: 16.9 | E164: 19 | M164: 19
B165: Добавить
A166: 2 | B166: Водоотведение | K166: =SUM(K167,K170,K173,K176,K179) -> 0 | L166: =SUM(L167,L170,L173,L176,L179) -> 0
A167: 2.1 | B167: Здания | K167: =SUM(K168:K169) -> 0 | L167: =SUM(L168:L169) -> 0
A168: 2.1.1 | B168: объект
B169: Добавить
A170: 2.2 | B170: Сооружения и передаточные устройства | K170: =SUM(K171:K172) -> 0 | L170: =SUM(L171:L172) -> 0
A171: 2.2.1 | B171: объект
B172: Добавить
A173: 2.3 | B173: Машины и оборудование | K173: =SUM(K174:K175) -> 0 | L173: =SUM(L174:L175) -> 0
A174: 2.3.1 | B174: объект
B175: Добавить
A176: 2.4 | B176: Транспорт | K176: =SUM(K177:K178) -> 0 | L176: =SUM(L177:L178) -> 0
A177: 2.4.1 | B177: объект
B178: Добавить
A179: 2.5 | B179: Прочее | K179: =SUM(K180:K181) -> 0 | L179: =SUM(L180:L181) -> 0
A180: 2.5.1 | B180: объект
B181: Добавить
A182: 3 | B182: Общецеховые основные средства | K182: =SUM(K183,K186,K189,K193,K196) -> 0 | L182: =SUM(L183,L186,L189,L193,L196) -> 0
A183: 3.1 | B183: Здания | K183: =SUM(K184:K185) -> 0 | L183: =SUM(L184:L185) -> 0
A184: 3.1.1 | B184: объект
B185: Добавить
A186: 3.2 | B186: Сооружения и передаточные устройства | K186: =SUM(K187:K188) -> 0 | L186: =SUM(L187:L188) -> 0
A187: 3.2.1 | B187: объект
B188: Добавить
A189: 3.3 | B189: Машины и оборудование | K189: =SUM(K190:K192) -> 0 | L189: =SUM(L190:L192) -> 0
A190: 3.3.1 | B190: компрессор Magnus | C190: 0 | E190: 9.57 | I190: 3.99 | M190: 9.57
A191: 3.3.2 | B191: бензопила | C191: 0 | E191: 9.42 | I191: 3.93 | M191: 9.42 | Q191: О
B192: Добавить
A193: 3.4 | B193: Транспорт | K193: =SUM(K194:K195) -> 0 | L193: =SUM(L194:L195) -> 0
A194: 3.4.1 | B194: объект
B195: Добавить
A196: 3.5 | B196: Прочее | K196: =SUM(K197:K198) -> 0 | L196: =SUM(L197:L198) -> 0
A197: 3.5.1 | B197: объект
B198: Добавить
A199: 4 | B199: Административные основные средства | K199: =SUM(K200,K204,K207,K211,K214) -> 0 | L199: =SUM(L200,L204,L207,L211,L214) -> 0
A200: 4.1 | B200: Здания | K200: =SUM(K201:K203) -> 0 | L200: =SUM(L201:L203) -> 0
A201: 4.1.1
A202: 4.1.2 | Q202: О
B203: Добавить
A204: 4.2 | B204: Сооружения и передаточные устройства | K204: =SUM(K205:K206) -> 0 | L204: =SUM(L205:L206) -> 0
A205: 4.2.1 | B205: объект
B206: Добавить
A207: 4.3 | B207: Машины и оборудование | K207: =SUM(K208:K210) -> 0 | L207: =SUM(L208:L210) -> 0
... 12 more rows

Sheet Услуги сторонних организаций
I1: Приложение Н
A2: Расходы на оплату работ и услуг, выполняемых сторонними организациями и индивидуальными предпринимателями, связанные с эксплуатацией централизованных систем водоснабжения, либо объектов в составе таких систем
A4: № п/п | B4: Наименование поставщика | C4: Номер и дата договора | D4: вид услуги | E4: Ед. изм. | F4: 2014 | H4: 2014 факт РЭК | I4: 2015 | J4: 2016 | K4: 2016 факт РЭК | L4: 2016 | M4: 2016
F5: план | G5: факт | I5: утверждено РЭК | J5: факт ОКК | L5: план | M5: утверждено РЭК
A6: 1 | B6: 2 | C6: 3 | D6: 4 | E6: 4 | F6: 6 | G6: 7 | H6: 7* | I6: 8 | J6: 9 | K6: 9* | L6: 10 | M6: 10*
A7: 1 | B7: ООО "ГИГИЕНА" | C7: Договор б/н от 12.01.2015 | D7: Дератизация | E7: тыс. руб. | J7: 36.18 | K7: 36.18 | M7: 22.09
A8: 2 | B8: ООО"Кубаньводкомплекс" | C8: Договор б/н от 15.01.2016 | D8: Расчет потерь воды | E8: тыс. руб. | J8: 7.96 | K8: 7.957 | N8: О
B9: Добавить
B10: Итого | E10: тыс. руб. | F10: =SUM(F7:F9) -> 0 | G10: 0 | H10: 0 | I10: 0 | J10: 44.14 | K10: 44.137 | L10: 0 | M10: 22.09
A13: Руководитель организации ____________________________________
A15: Ответственный за составление формы ______________________________________
C16: МП

Sheet Цех и Администр расх
I1: Приложение О
A2: Расчет цеховых расходов (сч. 25), учтенных при расчете тарифа на холодную воду на 2016 год*
A4: Виды расходов | B4: ед. изм. | C4: факт 2013 года | D4: план 2014 года | E4: факт 2014 года | F4: факт 2014 РЭК | G4: утверждено на 2015 по данным РЭК | H4: факт 2016 года | I4: План на 2016 год, всего | J4: Утверждено на 2016 (всего) по данным РЭК | K4: в том числе на услуги водоснабжения | M4: водоснабжение по данным РЭК
A5: Распределяемые цеховые расходы
A6: Расходы на оплату труда и отчисления на социальные нужды Общецехового персонала, в том числе налоги и сборы | B6: тыс. руб. | C6: =C7+C8 -> 0 | D6: =D7+D8 -> 0 | E6: 0 | F6: 0 | G6: 0 | H6: 0 | I6: 0 | J6: 0 | K6: =SUM(K7:L8) ->  | M6: =SUM(M7:M8) -> 0
A7: расходы на оплату труда общецехового персонала | B7: тыс. руб. | D7: ='Оплата труда'!D144 -> 0 | E7: ='Оплата труда'!E144 -> 0 | F7: ='Оплата труда'!F144 -> 0 | G7: ='Оплата труда'!G144 -> 0 | H7: ='Оплата труда'!H144 -> 0 | I7: ='Оплата труда'!J144 -> 0 | J7: ='Оплата труда'!K144 -> 0 | K7: =I7*$N$81% ->  | M7: =J7*$O$81% -> 0
A8: отчисления на социальные нужды общецехового персонала, в том числе налоги и сборы | B8: тыс. руб. | D8: =D7*'Оплата труда'!D145% -> 0 | E8: =E7*'Оплата труда'!E145% -> 0 | F8: =F7*'Оплата труда'!F145% -> 0 | G8: =G7*'Оплата труда'!G145% -> 0 | H8: =H7*'Оплата труда'!H145% -> 0 | I8: =I7*'Оплата труда'!J145% -> 0 | J8: =J7*'Оплата труда'!K145% -> 0 | K8: =I8*$N$81% ->  | M8: =J8*$O$81% -> 0
A9: численность общецехового персонала | B9: чел. | D9: ='Оплата труда'!D119 -> 0 | E9: ='Оплата труда'!E119 -> 0 | F9: ='Оплата труда'!F119 -> 0 | G9: ='Оплата труда'!G119 -> 0 | H9: ='Оплата труда'!H119 -> 0 | I9: ='Оплата труда'!J119 -> 0 | J9: ='Оплата труда'!K119 -> 0 | K9: =I9*$N$81% ->  | M9: =J9*$O$81% -> 0
A10: среднемесячная оплата труда общецехового персонала | B10: руб./чел. в мес. | C10: =C7/C9/12*1000 ->  | D10: =D7/D9/12*1000 ->  | K10: =K7/K9/12*1000 ->  | M10: =M7/M9/12*1000 -> 
A11: Амортизация | B11: тыс. руб. | I11: ='Амортизация 2'!K182 -> 0 | J11: ='Амортизация 2'!L182 -> 0 | K11: =I11*$N$81% ->  | M11: =J11*$O$81% -> 0
A12: наименование расходов | B12: тыс. руб. | K12: =I12*$N$81% ->  | M12: =J12*$O$81% -> 0
A13: Добавить
A14: ИТОГО расходов | B14: тыс. руб. | C14: =C6+C11+SUM(C12:C13) -> 0 | D14: 0 | E14: 0 | F14: 0 | G14: 0 | H14: 0 | I14: 0 | J14: 0 | K14: =K6+SUM(K11:L13) ->  | M14: =M6+M11+SUM(M12:M13) -> 0
A17: Руководитель организации ____________________________________
A19: Ответственный за составление формы ______________________________________
C20: МП
J21: Приложение П
A23: Расчет административных расходов (сч. 26), учтенных при расчете тарифа на холодную воду на 2016 год**
A25: Виды расходов | B25: ед. изм. | C25: факт 2013 года | D25: план 2014 года | E25: факт 2014 года | F25: факт 2014 РЭК | G25: утверждено на 2015 по данным РЭК | H25: факт 2016 года | I25: План на 2016 год, всего | J25: Утверждено на 2016 (всего) по данным РЭК | K25: в том числе на услуги водоснабжения | M25: водоснабжение по данным РЭК
A26: Расходы на оплату работ и услуг, выполняемых сторонними организациями | B26: тыс. руб. | C26: =SUM(C27:C32) -> 0 | D26: 0 | E26: 0 | F26: 0 | G26: 0 | H26: 18.52 | I26: 18.52 | J26: 42.94 | K26: =SUM(K27:L32) ->  | M26: =SUM(M27:M32) -> 18.06906481
A27: услуги связи и интернет | B27: тыс. руб. | H27: 18.52 | I27: 18.52 | K27: =I27*$N$100% ->  | M27: =J27*$O$100% -> 0
A28: юридические услуги | B28: тыс. руб. | M28: 0
A29: аудиторские услуги | B29: тыс. руб. | M29: 0
A30: консультационные услуги | B30: тыс. руб. | J30: 41.45 | M30: 17.44207583
A31: услуги по вневедомственной охране объектов и территорий | B31: тыс. руб. | M31: 0
A32: информационные услуги | B32: тыс. руб. | J32: 1.49 | M32: 0.6269889744
A33: Расходы на оплату труда и отчисления на социальные нужды АУП, в том числе налоги и сборы | B33: тыс. руб. | C33: =C34+C35 -> 0 | D33: 0 | E33: 0 | F33: 0 | G33: 0 | H33: 952.92 | I33: 952.91996 | J33: 891.90906 | M33: =M34+M35 -> 375.3135213
A34: расходы на оплату труда АУП | B34: тыс. руб. | D34: ='Оплата труда'!D115 -> 0 | E34: ='Оплата труда'!E115 -> 0 | F34: ='Оплата труда'!F115 -> 0 | G34: ='Оплата труда'!G115 -> 0 | H34: ='Оплата труда'!H115 -> 732.73 | I34: ='Оплата труда'!I115 -> 732.72996 | J34: ='Оплата труда'!K115 -> 685.03 | K34: =I34*$N$100% ->  | M34: =J34*$O$100% -> 288.259233
A35: отчисления на социальные нужды АУП, в том числе налоги и сборы | B35: тыс. руб. | D35: =D34*'Оплата труда'!D116% -> 0 | E35: =E34*'Оплата труда'!E116% -> 0 | F35: =F34*'Оплата труда'!F116% -> 0 | G35: =G34*'Оплата труда'!G116% -> 0 | H35: 220.19 | I35: 220.19 | J35: =J34*'Оплата труда'!K116% -> 206.87906 | K35: =I35*$N$100% ->  | M35: =J35*$O$100% -> 87.05428836
A36: численность АУП | B36: чел. | D36: ='Оплата труда'!D90 -> 0 | E36: ='Оплата труда'!E90 -> 0 | F36: ='Оплата труда'!F90 -> 0 | G36: ='Оплата труда'!G90 -> 0 | H36: ='Оплата труда'!H90 -> 3 | I36: ='Оплата труда'!I90 -> 3 | J36: ='Оплата труда'!K90 -> 3.1844169 | K36: =I36*$N$100% ->  | M36: =J36*$O$100% -> 1.339996165
A37: среднемесячная оплата труда АУП | B37: руб./чел. в мес. | C37: =C34/C36/12*1000 ->  | H37: 20353.61111 | I37: 20353.61 | J37: 17926.62052 | K37: =K34/K36/12*1000 ->  | M37: =M34/M36/12*1000 -> 17926.62052
A38: Арендная плата, лизинговые платежи, не связанные с арендой (лизингом) централизованных систем водоснабжения либо объектов, входящих в состав таких систем | B38: тыс. руб. | H38: 14.4 | I38: 14.4 | J38: 14.4 | K38: =I38*N100% ->  | M38: =J38*O100% -> 6.059490759
A39: Служебные командировки | B39: тыс. руб. | H39: 0 | I39: 0 | K39: =I39*N100% ->  | M39: =J39*O100% -> 0
A40: Обучение персонала | B40: тыс. руб. | H40: 14 | I40: 14 | K40: =I40*N100% ->  | M40: =J40*O100% -> 0
A41: Страхование производственных объектов | B41: тыс. руб. | H41: 8.75 | I41: 8.75 | J41: 3.9 | K41: =I41*N100% ->  | M41: =J41*O100% -> 1.641112081
A42: Прочие административные расходы | B42: тыс. руб. | C42: =SUM(C43:C66) -> 0 | D42: 0 | E42: 0 | F42: 0 | G42: 0 | H42: 667.17 | I42: 667.17 | J42: 55.41 | K42: =SUM(K43:L66) ->  | M42: =SUM(M43:M66) -> 23.31641548
A43: расходы на амортизацию непроизводственных активов | B43: тыс. руб. | H43: 11.6 | I43: 11.6 | K43: =I43*$N$100% ->  | M43: =J43*$O$100% -> 0
A44: расходы по охране объектов и территорий | B44: тыс. руб. | H44: 0 | I44: 0 | K44: =I44*$N$100% ->  | M44: =J44*$O$100% -> 0
A45: амортизация | B45: тыс. руб. | H45: 15.38 | I45: 15.38 | J45: ='Амортизация 2'!L199 -> 0 | K45: =I45*$N$100% ->  | M45: =J45*$O$100% -> 0
A46: ГСМ автомобиль | B46: тыс. руб. | H46: 95.57 | I46: 95.57 | J46: 55.41 | K46: =I46*$N$100% ->  | M46: =J46*$O$100% -> 23.31641548
A47: Запчасти автомобиль | B47: тыс. руб. | H47: 35.86 | I47: 35.86 | K47: =I47*'Цех и Администр расх'!$N$100% ->  | M47: =J47*'Цех и Администр расх'!$O$100% -> 0 | N47: О | U47: 1
A48: Запчасти коса КРН | B48: тыс. руб. | H48: 93.27 | I48: 93.27 | K48: =I48*'Цех и Администр расх'!$N$100% ->  | M48: =J48*'Цех и Администр расх'!$O$100% -> 0 | N48: О | U48: 2
A49: Запчасти мотокоса | B49: тыс. руб. | H49: 30.54 | I49: 30.54 | K49: =I49*'Цех и Администр расх'!$N$100% ->  | M49: =J49*'Цех и Администр расх'!$O$100% -> 0 | N49: О | U49: 3
A50: Запчасти трактор | B50: тыс. руб. | H50: 156.22 | I50: 156.22 | K50: =I50*'Цех и Администр расх'!$N$100% ->  | M50: =J50*'Цех и Администр расх'!$O$100% -> 0 | N50: О | U50: 4
A51: Запчасти экскаватор | B51: тыс. руб. | H51: 134.12 | I51: 134.12 | K51: =I51*'Цех и Администр расх'!$N$100% ->  | M51: =J51*'Цех и Администр расх'!$O$100% -> 0 | N51: О | U51: 5
A52: Инвентарь и материалы | B52: тыс. руб. | H52: 0.7 | I52: 0.7 | K52: =I52*'Цех и Администр расх'!$N$100% ->  | M52: =J52*'Цех и Администр расх'!$O$100% -> 0 | N52: О | U52: 6
A53: Канцтовары | B53: тыс. руб. | H53: 21.26 | I53: 21.26 | K53: =I53*'Цех и Администр расх'!$N$100% ->  | M53: =J53*'Цех и Администр расх'!$O$100% -> 0 | N53: О | U53: 7
A54: Кассовое обслуживание банка | B54: тыс. руб. | H54: 11.03 | I54: 11.03 | K54: =I54*'Цех и Администр расх'!$N$100% ->  | M54: =J54*'Цех и Администр расх'!$O$100% -> 0 | N54: О | U54: 8
A55: Лицезия КриптоПро | B55: тыс. руб. | H55: 2.16 | I55: 2.16 | K55: =I55*'Цех и Администр расх'!$N$100% ->  | M55: =J55*'Цех и Администр расх'!$O$100% -> 0 | N55: О | U55: 9
A56: Платежи по охране окруж среды | B56: тыс. руб. | H56: 1.18 | I56: 1.18 | K56: =I56*'Цех и Администр расх'!$N$100% ->  | M56: =J56*'Цех и Администр расх'!$O$100% -> 0 | N56: О | U56: 10
A57: Обслуживание ККМ | B57: тыс. руб. | H57: 18.25 | I57: 18.25 | K57: =I57*'Цех и Администр расх'!$N$100% ->  | M57: =J57*'Цех и Администр расх'!$O$100% -> 0 | N57: О | U57: 11
A58: Обслуживание Программы Контур-Экстерн | B58: тыс. руб. | H58: 6.5 | I58: 6.5 | K58: =I58*'Цех и Администр расх'!$N$100% ->  | M58: =J58*'Цех и Администр расх'!$O$100% -> 0 | N58: О | U58: 12
A59: Ремонт компьютера и заправка канриджа | B59: тыс. руб. | H59: 3.95 | I59: 3.95 | K59: =I59*'Цех и Администр расх'!$N$100% ->  | M59: =J59*'Цех и Администр расх'!$O$100% -> 0 | N59: О | U59: 13
A60: Запчасти плуг | B60: тыс. руб. | H60: 7.5 | I60: 7.5 | K60: =I60*'Цех и Администр расх'!$N$100% ->  | M60: =J60*'Цех и Администр расх'!$O$100% -> 0 | N60: О | U60: 14
A61: Подключение к ЕИАС | B61: тыс. руб. | H61: 3.5 | I61: 3.5 | K61: =I61*'Цех и Администр расх'!$N$100% ->  | M61: =J61*'Цех и Администр расх'!$O$100% -> 0 | N61: О | U61: 15
A62: Печатные издания | B62: тыс. руб. | H62: 2.22 | I62: 2.22 | K62: =I62*'Цех и Администр расх'!$N$100% ->  | M62: =J62*'Цех и Администр расх'!$O$100% -> 0 | N62: О | U62: 16
A63: Ремонт ОС шиномонтаж | B63: тыс. руб. | H63: 1 | I63: 1 | K63: =I63*'Цех и Администр расх'!$N$100% ->  | M63: =J63*'Цех и Администр расх'!$O$100% -> 0 | N63: О | U63: 17
A64: Строительные материалы | B64: тыс. руб. | H64: 15.36 | I64: 15.36 | K64: =I64*'Цех и Администр расх'!$N$100% ->  | M64: =J64*'Цех и Администр расх'!$O$100% -> 0 | N64: О | U64: 18
A65: Амортизация нематериальных активов | B65: тыс. руб. | K65: =I65*'Цех и Администр расх'!$N$100% ->  | M65: =J65*'Цех и Администр расх'!$O$100% -> 0 | N65: О | U65: 19
A66: Добавить
A67: ИТОГО расходов | B67: тыс. руб. | C67: =C26+C33+C38+C39+C40+C41+C42 -> 0 | D67: 0 | E67: 0 | F67: 0 | G67: 0 | H67: 1675.76 | I67: 1675.75996 | J67: 1008.55906 | M67: =M26+M33+M38+M39+M40+M41+M42 -> 424.3996044
A69: Руководитель организации ____________________________________
A71: Ответственный за составление формы ______________________________________
C72: МП
K73: Приложение Р
A74: База распределения цеховых расходов (сч. 25)
S75: прямые расходы
A76: Наименование | E76: Ед. изм. | H76: 2014 | J76: 2014 факт РЭК | K76: 2015 | L76: 2016 | M76: 2015 факт РЭК | N76: 2016 | O76: 2016 | S76: выручка
H77: план | I77: факт | K77: утверждено РЭК | L77: факт ОКК | N77: план | O77: утверждено РЭК | S77: оплата труда
A78: База распределения цеховых расходов*** | L78: выручка | O78: выручка | S78: иное
A79: База распределения, всего | E79: тыс. руб. | L79: 4338.42 | M79: 4338.421 | O79: 1008.55
A80: Питьевая вода | E80: тыс. руб. | L80: 1784.53 | M80: 1784.526 | O80: 424.4
E81: % | H81: =H80*100/H79 ->  | I81: =I80*100/I79 ->  | L81: 41.13317752 | M81: 41.13307584 | O81: 42.08021417
A82: Водоотведение | E82: тыс. руб.
E83: % | H83: =H82*100/H79 ->  | I83: =I82*100/I79 ->  | L83: 0 | M83: 0 | O83: 0
A84: Теплоснабжение | E84: тыс. руб.
E85: % | H85: =H84*100/H79 ->  | I85: =I84*100/I79 ->  | L85: 0 | M85: 0 | O85: 0
A86: Утилизация | E86: тыс. руб.
E87: % | H87: =H86*100/H79 ->  | I87: =I86*100/I79 ->  | L87: 0 | M87: 0 | O87: 0
A88: Прочие виды деятельности | E88: тыс. руб.
E89: % | H89: =H88*100/H79 ->  | I89: =I88*100/I79 ->  | L89: 0 | M89: 0 | O89: 0
A91: *** в соответствии с учетной политикой
A93: База распределения административных расходов (сч. 26)
A95: Наименование | E95: Ед. изм. | H95: 2014 | J95: 2014 факт РЭК | K95: 2015 | L95: 2016 | M95: 2016 факт РЭК | N95: 2016 | O95: 2016
H96: план | I96: факт | K96: утверждено РЭК | L96: факт ОКК | N96: план | O96: утверждено РЭК
A97: База распределения административных расходов*** | L97: выручка | O97: выручка
A98: База распределения, всего | E98: тыс. руб. | L98: 4338.42 | M98: 4338.421 | O98: 1008.56
A99: Питьевая вода | E99: тыс. руб. | L99: 1784.53 | M99: 1784.526 | O99: 424.4
E100: % | H100: =H99*100/H98 ->  | I100: =I99*100/I98 ->  | L100: 41.13317752 | M100: 41.13307584 | O100: 42.07979694
A101: Водоотведение | E101: тыс. руб.
E102: % | H102: =H101*100/H98 ->  | I102: =I101*100/I98 ->  | L102: 0 | M102: 0 | O102: 0
A103: Теплоснабжение | E103: тыс. руб.
E104: % | H104: =H103*100/H98 ->  | I104: =I103*100/I98 ->  | L104: 0 | M104: 0 | O104: 0
A105: Утилизация | E105: тыс. руб.
E106: % | H106: =H105*100/H98 ->  | I106: =I105*100/I98 ->  | L106: 0 | M106: 0 | O106: 0
A107: Прочие виды деятельности | E107: тыс. руб. | O107: 584.16
E108: % | H108: =H107*100/H98 ->  | I108: =I107*100/I98 ->  | L108: 0 | M108: 0 | O108: 57.92020306
A110: *** в соответствии с учетной политикой
A112: Руководитель организации ____________________________________
A114: Ответственный за составление формы ______________________________________
C115: МП

Sheet Аренда, лизинг, концессия
K1: Приложение С
A2: Расходы по аренде, лизингу и концессионной плате на объекты водопроводно-канализационного хозяйства
A4: № п/п | B4: Наименование | C4: Арендодатель | D4: № и дата договора | E4: Срок действия договора | F4: ед. изм. | G4: Сумма договора в год (или на период действия договора) | H4: 2014 | J4: 2014 факт РЭК | K4: 2015 | L4: 2016 | M4: 2015 факт РЭК | N4: 2016 | O4: 2016
H5: план | I5: факт | K5: утверждено РЭК | L5: факт ОКК | N5: план | O5: утверждено РЭК
A6: 1 | B6: Аренда имущества
A7: 1.1 | F7: тыс. руб.
B8: Добавить
B9: Итого | H9: =SUM(H7:H8) -> 0 | I9: 0 | J9: 0 | K9: 0 | L9: 0 | M9: 0 | N9: 0 | O9: 0
A10: 2 | B10: Концессионная плата
A11: 2.1 | F11: тыс. руб.
B12: Добавить
B13: Итого | H13: =SUM(H11:H12) -> 0 | I13: 0 | J13: 0 | K13: 0 | L13: 0 | M13: 0 | N13: 0 | O13: 0
A14: 3 | B14: Лизинговые платежи
A15: 3.1 | F15: тыс. руб.
B16: Добавить
B17: Итого | H17: =SUM(H15:H16) -> 0 | I17: 0 | J17: 0 | K17: 0 | L17: 0 | M17: 0 | N17: 0 | O17: 0
A18: 4 | B18: Аренда земельных участков
A19: 4.1 | F19: тыс. руб.
B20: Добавить
A21: 5 | B21: Итого | H21: =SUM(H19:H20) -> 0 | I21: 0 | J21: 0 | K21: 0 | L21: 0 | M21: 0 | N21: 0 | O21: 0
A22: ВСЕГО | H22: =H9+H13+H17+H21 -> 0 | I22: 0 | J22: 0 | K22: 0 | L22: 0 | M22: 0 | N22: 0 | O22: 0
A24: Руководитель организации ____________________________________
A26: Ответственный за составление формы ______________________________________
C27: МП

Sheet Нормативная прибыль
G1: Приложение Т
A2: Расчет нормативной прибыли
A4: № п/п | B4: Наименование | C4: Ед. изм. | D4: 2014 | F4: 2014 факт РЭК | G4: 2015 | H4: 2016 | I4: 2016 факт РЭК | J4: 2016 | K4: 2016
D5: план | E5: факт | G5: утверждено РЭК | H5: факт ОКК | J5: план | K5: утверждено РЭК
A6: 1 | B6: 2 | C6: 3 | D6: 4 | E6: 5 | F6: 5* | G6: 6 | H6: 7 | I6: 7* | J6: 8 | K6: 8*
A7: 1 | B7: Средства на возврат займов и кредитов | C7: тыс. руб. | M7: для реализации инвестиционной программы и пополнения оборотных средств
A8: 2 | B8: Средства на уплату процентов | C8: тыс. руб.
A9: 3 | B9: Расходы на капитальные вложения | C9: тыс. руб. | M9: на основании инвестиционных программ
A10: 4 | B10: Расходы на социальные нужды, предусмотренные коллективными договорами, в соответствии с подпунктом 3 пункта 31 Методических указаний | C10: тыс. руб. | M10: по кол. Договору
A11: 5 | B11: Величина нормативной прибыли, определенная в соответствии с пунктом 31 настоящих Методических указаний | C11: тыс. руб. | D11: =SUM(D7:D10) -> 0 | E11: 0 | F11: 0 | G11: 0 | H11: 0 | I11: 0 | J11: 0 | K11: 0
C12: % | D12: =D11*100/'Смета расходов'!D87 ->  | E12: =E11*100/'Смета расходов'!E87 ->  | F12: =F11*100/'Смета расходов'!F87 ->  | G12: =G11*100/'Смета расходов'!H87 ->  | H12: =H11*100/'Смета расходов'!I87 ->  | I12: =I11*100/'Смета расходов'!J87 ->  | J12: =J11*100/'Смета расходов'!K87 ->  | K12: =K11*100/'Смета расходов'!L87 -> 0 | M12: не более 7% от НВВ
A13: 6 | B13: Расчетная предпринимательская прибыль гарантирующей организации | C13: тыс. руб.
C14: % | D14: =D13*100/'Смета расходов'!D87 ->  | E14: =E13*100/'Смета расходов'!E87 ->  | F14: =F13*100/'Смета расходов'!F87 ->  | G14: =G13*100/'Смета расходов'!H87 ->  | H14: =H13*100/'Смета расходов'!I87 ->  | I14: =I13*100/'Смета расходов'!J87 ->  | J14: =J13*100/'Смета расходов'!K87 ->  | K14: =K13*100/'Смета расходов'!L87 -> 0 | M14: 0.05
A15: 7 | B15: Фактическая прибыль / убыток | C15: тыс. руб. | H15: 0 | I15: ='Смета расходов'!N101-'Смета расходов'!N87 -> -1055.72779
B16: ИТОГО | C16: тыс. руб. | D16: =D11+D13+D15 -> 0 | E16: =E11+E13+E15 -> 0 | F16: 0 | G16: 0 | H16: 0 | I16: -1055.72779 | J16: 0 | K16: 0
A18: Руководитель организации ____________________________________
A20: Ответственный за составление формы ______________________________________
C21: МП

Sheet Охр.труда и Авто
G1: Приложение Ф
A2: Охрана труда основного производственного персонала
A4: № п/п | B4: Наименование | C4: Ед. изм. | D4: 2014 | F4: 2014 факт РЭК | G4: 2015 | H4: 2016 | I4: 2016 факт РЭК | J4: 2016 | K4: 2016
D5: план | E5: факт | G5: утверждено РЭК | H5: факт ОКК | J5: план | K5: утверждено РЭК
A6: 1 | B6: 2 | C6: 3 | D6: 4 | E6: 5 | F6: 5* | G6: 6 | H6: 7 | I6: 7* | J6: 8 | K6: 8*
A7: 1 | B7: спец. одежда | C7: тыс. руб. | H7: 2.21 | I7: 2.21 | K7: 21.55
A8: 2 | B8: молоко | C8: тыс. руб.
A9: 3 | B9: средства гигиены | C9: тыс. руб. | H9: 0.14 | I9: 0.14
A10: 4 | B10: аттестация рабочих мест | C10: тыс. руб.
A11: 5 | B11: иное | C11: тыс. руб.
B12: Добавить
B13: ИТОГО | C13: тыс. руб. | D13: =SUM(D7:D12) -> 0 | E13: 0 | F13: 0 | G13: 0 | H13: 2.35 | I13: 2.35 | J13: 0 | K13: 21.55
A16: приложить расчет по каждому наименованию расходов, копии договоров и обоснование плановых цен
A18: Расходы на эксплуатацию, техническое обслуживание и ремонт автотранспорта
A20: № п/п | B20: Наименование | C20: Ед. изм. | D20: 2014 | F20: 2014 факт РЭК | G20: 2015 | H20: 2016 | I20: 2016 факт РЭК | J20: 2016 | K20: 2016
D21: план | E21: факт | G21: утверждено РЭК | H21: факт ОКК | J21: план | K21: утверждено РЭК
A22: 1 | B22: 2 | C22: 3 | D22: 4 | E22: 5 | F22: 5* | G22: 6 | H22: 7 | I22: 7* | J22: 8 | K22: 8*
A23: 1 | B23: ОСАГО | C23: тыс. руб.
A24: 2 | B24: ремонт и ТО | C24: тыс. руб.
A25: 3 | B25: мойка | C25: тыс. руб.
A26: 4 | B26: аптечка | C26: тыс. руб.
A27: 5 | B27: огнетушитель | C27: тыс. руб.
A28: 6 | B28: иное | C28: тыс. руб.
B29: Добавить
B30: ИТОГО | C30: тыс. руб. | D30: =SUM(D23:D29) -> 0 | E30: 0 | F30: 0 | G30: 0 | H30: 0 | I30: 0 | J30: 0 | K30: 0
A32: Руководитель организации ____________________________________
A34: Ответственный за составление формы ______________________________________
C35: МП

Sheet Налоги
G1: Приложение Х
A2: Расходы, связанные с уплатой налогов и сборов
A4: № п/п | B4: Наименование | C4: Ед. изм. | D4: 2014 | F4: 2014 факт РЭК | G4: 2015 | H4: 2016 | I4: 2016 факт РЭК | J4: 2016 | K4: 2016
D5: план | E5: факт | G5: утверждено РЭК | H5: факт ОКК | J5: план | K5: утверждено РЭК
A6: 1 | B6: 2 | C6: 3 | D6: 4 | E6: 5 | F6: 5* | G6: 6 | H6: 7 | I6: 7* | J6: 8 | K6: 8*
A7: 1 | B7: Налог на прибыль | C7: тыс. руб.
A8: 2 | B8: Налог на имущество организаций | C8: тыс. руб.
A9: 3 | B9: Плата за негативное воздействие на окружающую среду | C9: тыс. руб.
A10: 4 | B10: Водный налог и плата за пользование водным объектом | C10: тыс. руб. | H10: 32.19 | I10: 16.129 | K10: 41.34 | L10: д.б.
A11: 5 | B11: Земельный налог | C11: тыс. руб.
A12: 6 | B12: Транспортный налог | C12: тыс. руб.
A13: 7 | B13: Прочие налоги и сборы, за исключением налогов и сборов с ФОТ, учитываемых в составе производственных, ремонтных и административных расходов | C13: тыс. руб.
B14: ИТОГО | C14: тыс. руб. | D14: =SUM(D7:D13) -> 0 | E14: =SUM(E7:E13) -> 0 | F14: 0 | G14: 0 | H14: 32.19 | I14: 16.129 | J14: 0 | K14: 41.34
A16: Руководитель организации ____________________________________
A18: Ответственный за составление формы ______________________________________
C19: МП

Sheet Динамика
L1: Приложение Ц
A2: Динамика финансовых потребностей и фактических расходов по услугам холодного водоснабжения
A4: Показатели | D4: Ед. изм. | E4: 2013 | G4: 2014 | I4: 2015 | K4: 2014 факт РЭК | L4: 2016 | N4: 2016 факт РЭК | O4: 2016 | P4: 2017 план РЭК
E5: план РЭК | F5: факт ОКК | G5: план РЭК | H5: факт ОКК | I5: план РЭК | J5: факт ОКК | L5: план РЭК | M5: факт ОКК | O5: план ОКК
A6: Финансовые потребности (НВВ) | D6: тыс. руб. | E6: 1767.33 | F6: 2591.68 | G6: 2241.09 | H6: 2144.89 | I6: 2376.4 | J6: 2807.35 | L6: 2773.51 | M6: 3467.97 | P6: 2773.51
A7: Реализация (по отгрузке) | D7: тыс. куб. м. | E7: 91.69 | F7: 59.89 | G7: 108.87 | H7: 71.57 | I7: 108.46 | J7: 71.26 | L7: 119.45 | M7: 77.13 | P7: 119.45
A8: Тариф без НДС (среднегодовой) | D8: руб./куб.м. | E8: =E6/E7 -> 19.27505726 | F8: =E8 -> 19.27505726 | G8: =G6/G7 -> 20.58500964 | H8: =G8 -> 20.58500964 | I8: 21.91038171 | J8: =I8 -> 21.91038171 | L8: 23.21900377 | M8: =L8 -> 23.21900377 | P8: 23.21900377
A9: Фактическая себестоимость | D9: руб./куб.м. | F9: =F6/F7 -> 43.27400234 | H9: =H6/H7 -> 29.96912114 | J9: =J6/J7 -> 39.39587426 | M9: =M6/M7 -> 44.96266044
A12: Динамика финансовых потребностей и фактических расходов по услугам водоотведения
A14: Показатели | D14: Ед. изм. | E14: 2013 | G14: 2014 | I14: 2015 | K14: 2014 факт РЭК | L14: 2016 | N14: 2015 факт РЭК | O14: 2016 | P14: 2017 план РЭК
E15: план РЭК | F15: факт ОКК | G15: план РЭК | H15: факт ОКК | I15: план РЭК | J15: факт ОКК | L15: план РЭК | M15: факт ОКК | O15: план
A16: Финансовые потребности (НВВ) | D16: тыс. руб.
A17: Реализация (по отгрузке) | D17: тыс. куб. м.
A18: Тариф без НДС (среднегодовой) | D18: руб./куб.м. | E18: =E16/E17 ->  | F18: =E18 ->  | G18: =G16/G17 ->  | H18: =G18 ->  | J18: =I18 ->  | M18: =L18 -> 
A19: Фактическая себестоимость | D19: руб./куб.м. | F19: =F16/F17 ->  | H19: =H16/H17 ->  | J19: =J16/J17 ->  | M19: =M16/M17 -> 
A21: Динамика полученной выручки и расходов
B23: 2014 | E23: 2015 | H23: 2016
B24: Выручка | C24: Расходы | D24: Фин. результат | E24: Выручка | F24: Расходы | G24: Фин. результат | H24: Выручка | I24: Расходы | J24: Фин. результат
A25: Всего по предприятию*, в том числе: | B25: =SUM(B26:B30) -> 3650.86 | C25: 3585.61 | D25: 65.26 | E25: 4047.47 | F25: 4024.96 | G25: 22.51 | H25: 4962.42 | I25: 4956.7 | J25: 5.72
A26: холодное водоснабжение | B26: 1477.47 | C26: 2144.89 | D26: -667.42 | E26: 1563.92 | F26: 2807.35 | G26: -1243.43 | H26: 1784.53 | I26: 3467.97 | J26: -1683.44
A27: Услуги | B27: 2033.39 | C27: 1364.72 | D27: 668.68 | E27: 2107.55 | F27: 1148.05 | G27: 959.5 | H27: 2553.89 | I27: 1314.73 | J27: 1239.16
A28: Доходы и расходы | B28: 140 | C28: 76 | D28: 64 | E28: 376 | F28: 32.9 | G28: 343.1 | H28: 624 | I28: 131 | J28: 493 | K28: О | U28: 1
A29: прочие (расшифровать) | F29: 36.66 | G29: -36.66 | I29: 43 | J29: -43 | K29: О | U29: 2
A30: Добавить
A32: * показатели должны быть равны данным из приложения к балансу форма 2 с учетом прочих доходов
A34: Руководитель организации ____________________________________
A36: Ответственный за составление формы ______________________________________
C37: МП
A39: Необходимо представить все подтверждающие бухгалтерские регистры по счетам 20, 23, 25, 26, 29, 62, 90, 91

Sheet Отчет по исп ПП
G1: Приложение Ч
A2: Отчет по исполнению производственной программы
A4: № п/п | B4: Наименование расходов с указанием адреса проведенных мероприятий, объема работ | C4: ед. изм. | D4: 2013 | F4: 2014 | H4: 2015
D5: план | E5: факт | F5: план | G5: факт | H5: план | I5: факт
A6: 1 | B6: 2 | C6: 3 | D6: 4 | E6: 5 | F6: 6 | G6: 7 | H6: 8 | I6: 9
A7: А | B7: За счет ремонтного фонда
A8: 1 | B8: Перечень плановых мероприятий по ремонту объектов централизованной системы водоснабжения, мероприятий, направленных на улучшение качества питьевой воды
A9: 1.1 | B9: Замена трубопровода по ул. Южной хут. Бейсужек Второй 3100м ДУ100мм | C9: тыс. руб. | H9: 652 | I9: 0
A10: 1.2 | B10: Ремонт водопроводной сети по ул. Октябрьской хут. Бейсужек Второй1380м ДУ100мм | J10: О
A11: 1.3 | B11: Замена2 насосов ЭЦВ 6-16-140 | J11: О
A12: 1.4 | B12: Установка станции управления глубинными насосами ШУН 075-15 | J12: О
A13: 1.5 | B13: Ремонт водопроводной сети протяженностью1030м ДУ 100мм по ул. Южной от 110 до 156 дома хут Бейсужек Второй | J13: О
A14: 1.6 | B14: Мероприятия по ликвидации аварий и иных технологических повреждений объектов централизованной системы водоснабжения | H14: 0 | I14: 223.34 | J14: О
A15: 1.7 | B15: Реконструкция сетей водоснабжения (монтаж колодца по ул. Степной | H15: 0 | I15: 44.2 | J15: О
A16: 1.8 | B16: Замена водопровода по ул. Степной3200м | D16: 184.37 | E16: 176.02 | J16: О
A17: 1.9 | B17: Мероприятия по ликвидации аварий и иных технологических повреждений объектов централизованной системы водоснабжения | F17: 28.21 | G17: 107.99 | J17: О
A18: 1.10 | B18: Замена водопровода по ул. Восточной1400м | G18: 273.82 | J18: О
A19: 1.11 | B19: Замена водопровода по ул. Октябрьской 1104мм | G19: 85.9 | J19: О
A20: 1.12 | B20: Покупка насосоного оборудования | F20: 105.6 | G20: 0 | H20: =SUM(H9:H19) -> 652 | I20: =SUM(I9:I19) -> 267.54 | J20: О
A21: 1.13 | B21: Преобразователь частоты | F21: 214.88 | G21: 0 | J21: О
A22: 1.14 | B22: Итого | F22: =SUM(F9:F21) -> 348.69 | G22: =SUM(G9:G21) -> 467.71 | J22: О
B23: Добавить
A24: 2 | B24: Перечень плановых мероприятий по энергосбережению и повышению энергетической эффективности, в том числе снижению потерь воды при транспортировке
A25: 2.1 | B25: наимаенование | C25: тыс. руб.
B26: Добавить
A27: 3 | B27: Мероприятия, направленные на повышение качества обслуживания абонентов
A28: 3.1 | B28: наимаенование | C28: тыс. руб.
B29: Добавить
A30: Б | B30: За счет амортизации
A31: 1 | B31: Перечень плановых мероприятий по ремонту объектов централизованной системы водоснабжения, мероприятий, направленных на улучшение качества питьевой воды
A32: 1.1 | B32: наимаенование | C32: тыс. руб.
B33: Добавить
A34: 2 | B34: Перечень плановых мероприятий по энергосбережению и повышению энергетической эффективности, в том числе снижению потерь воды при транспортировке
A35: 2.1 | B35: наимаенование | C35: тыс. руб.
B36: Добавить
A37: 3 | B37: Мероприятия, направленные на повышение качества обслуживания абонентов
A38: 3.1 | B38: наимаенование | C38: тыс. руб.
B39: Добавить
A40: В | B40: За счет прибыли
A41: 1 | B41: Перечень плановых мероприятий по ремонту объектов централизованной системы водоснабжения, мероприятий, направленных на улучшение качества питьевой воды
A42: 1.1 | B42: наимаенование | C42: тыс. руб.
A43: 1.2 | B43: наимаенование | J43: О
B44: Добавить
A45: 2 | B45: Перечень плановых мероприятий по энергосбережению и повышению энергетической эффективности, в том числе снижению потерь воды при транспортировке
A46: 2.1 | B46: наимаенование | C46: тыс. руб.
A48: 3 | B48: Мероприятия, направленные на повышение качества обслуживания абонентов
A49: 3.1 | B49: наимаенование | C49: тыс. руб.
B50: Добавить
A51: Г | B51: За счет иных источников финансирования (бюджет и др.)
A52: 1 | B52: Перечень плановых мероприятий по ремонту объектов централизованной системы водоснабжения, мероприятий, направленных на улучшение качества питьевой воды
A53: 1.1 | B53: наимаенование | C53: тыс. руб.
B54: Добавить
A55: 2 | B55: Перечень плановых мероприятий по энергосбережению и повышению энергетической эффективности, в том числе снижению потерь воды при транспортировке
A56: 2.1 | B56: наимаенование | C56: тыс. руб.
B57: Добавить
A58: 3 | B58: Мероприятия, направленные на повышение качества обслуживания абонентов
A59: 3.1 | B59: наимаенование | C59: тыс. руб.
B60: Добавить
A62: Руководитель организации ____________________________________
A64: Ответственный за составление формы ______________________________________
C65: МП
G66: Приложение Ш
A67: План мероприятий, включаемый в производственную программу на 2016-2018
A69: № п/п | B69: Наименование расходов с указанием адреса проведенных мероприятий, объема работ | C69: утверждено на 2015 год, тыс. руб. | D69: 2016 | F69: 2017 | H69: 2018
D70: финансовые потребности (тыс. руб.) | E70: График реализации мероприятий (период) | F70: финансовые потребности (тыс. руб.) | G70: График реализации мероприятий (период) | H70: финансовые потребности (тыс. руб.) | I70: График реализации мероприятий (период)
A71: 1 | B71: 2 | C71: 3 | D71: 4 | E71: 5 | F71: 6 | G71: 7 | H71: 8 | I71: 9
A72: А | B72: За счет ремонтного фонда
A73: 1 | B73: Перечень плановых мероприятий по ремонту объектов централизованной системы водоснабжения, мероприятий, направленных на улучшение качества питьевой воды
A74: 1.1 | B74: Ремонт водопроводной сети протяженностью 1030м, ДУ100мм по ул. Южная от 23до 45 и от91 до 117 домовхут. Бейсужек Второй | F74: 469.42 | G74: 2017г
A75: 1.2 | B75: Ремонт водопроводной сети протяженностью 1180м, ДУ100мм по ул. Южная от 110 до 156 дома хут. Бейсужек Второй | H75: 533.63 | I75: 2018г | J75: О
A76: 1.3 | B76: Мероприятия по ликвидации аварий и иных технологических повреждений объектов централизованной системы водоснабжения | F76: 393.56 | G76: 2017г | H76: 370.28 | I76: 2018г | J76: О
A77: 1.4 | B77: Замена трубопровода по ул. Южной хут. Бейсужек Второй 3100м ДУ100мм | C77: 652 | J77: О
A78: 1.5 | B78: Ремонт водопроводной сети по ул. Октябрьской хут. Бейсужек Второй1360м ДУ100мм | D78: 581.85 | E78: 2016 | J78: О
A79: 1.6 | B79: Замена двух насосов ЭЦВ 6-16--140 | D79: 87.31 | E79: 2016 | J79: О
A80: 1.7 | B80: Установления станции управления глубинным насосом ШУН 075-15 | D80: 142.48 | E80: 2016 | J80: О
A81: 1.8 | B81: ИТОГО | D81: =SUM(D78:D80) -> 811.64 | F81: =SUM(F74:F80) -> 862.98 | H81: =SUM(H74:H80) -> 903.91 | J81: О
B82: Добавить
A83: 2 | B83: Перечень плановых мероприятий по энергосбережению и повышению энергетической эффективности, в том числе снижению потерь воды при транспортировке
A84: 2.1
B85: Добавить
A86: 3 | B86: Мероприятия, направленные на повышение качества обслуживания абонентов
A87: 3.1 | B87: наимаенование | E87: 0
B88: Добавить
A89: Б | B89: За счет амортизации
A90: 1 | B90: Перечень плановых мероприятий по ремонту объектов централизованной системы водоснабжения, мероприятий, направленных на улучшение качества питьевой воды
A91: 1.1 | B91: наимаенование
B92: Добавить
A93: 2 | B93: Перечень плановых мероприятий по энергосбережению и повышению энергетической эффективности, в том числе снижению потерь воды при транспортировке
A94: 2.1 | B94: наимаенование
B95: Добавить
A96: 3 | B96: Мероприятия, направленные на повышение качества обслуживания абонентов
A97: 3.1 | B97: наимаенование
B98: Добавить
A99: В | B99: За счет прибыли
A100: 1 | B100: Перечень плановых мероприятий по ремонту объектов централизованной системы водоснабжения, мероприятий, направленных на улучшение качества питьевой воды
A101: 1.1 | B101: наимаенование
B102: Добавить
A103: 2 | B103: Перечень плановых мероприятий по энергосбережению и повышению энергетической эффективности, в том числе снижению потерь воды при транспортировке
A104: 2.1 | B104: наимаенование
B105: Добавить
A106: 3 | B106: Мероприятия, направленные на повышение качества обслуживания абонентов
A107: 3.1 | B107: наимаенование
B108: Добавить
A109: Г | B109: За счет иных источников финансирования (бюджет и др.)
A110: 1 | B110: Перечень плановых мероприятий по ремонту объектов централизованной системы водоснабжения, мероприятий, направленных на улучшение качества питьевой воды
A111: 1.1 | B111: наимаенование
B112: Добавить
A113: 2 | B113: Перечень плановых мероприятий по энергосбережению и повышению энергетической эффективности, в том числе снижению потерь воды при транспортировке
A114: 2.1 | B114: наимаенование
B115: Добавить
A116: 3 | B116: Мероприятия, направленные на повышение качества обслуживания абонентов
A117: 3.1 | B117: наимаенование
B118: Добавить
A120: Руководитель организации ____________________________________
A122: Ответственный за составление формы ______________________________________
C123: МП

Sheet Расходы на ремонт и ТО
G1: Приложение Щ
A2: Расчет расходов по ремонту и техническому обслуживанию, учтенных при расчете тарифа на холодную воду на 2016 год
A4: № п/п | B4: Наименование расходов с указанием адреса проведенных мероприятий, объема работ | C4: подрядчик/хозспособ | D4: 2014 | F4: 2014 факт РЭК | G4: 2015 | H4: 2016 | I4: 2016 факт РЭК | J4: 2016 | K4: 2016
D5: план | E5: факт | G5: утверждено РЭК | H5: факт ОКК | J5: план | K5: утверждено РЭК
A6: 1 | B6: 2 | C6: 3 | D6: 4 | E6: 5 | F6: 5* | G6: 6 | H6: 7 | I6: 7* | J6: 8 | K6: 8*
B7: АВР | C7: хозспособ | G7: 163.18 | H7: 82.74 | K7: 393.56
B8: Текущий ремонт, в том числе
A9: 1 | B9: Перечень плановых мероприятий по ремонту объектов централизованной системы водоснабжения, мероприятий, направленных на улучшение качества питьевой воды
A10: 1.1 | B10: Ремонт водопроводной сети по ул. Октябрьской хут. Бейсужек Второй1360м ДУ100мм | C10: хозспособ | G10: 652 | H10: 0 | K10: 581.85
A11: 1.2 | B11: Замена2 насосов ЭЦВ 6-16-140 | C11: хозспособ | H11: 51.75 | K11: 87.31 | L11: О
A12: 1.3 | B12: Установка станции управления глубинными насосами ШУН 075-15 | C12: хозспособ | H12: 0 | K12: 142.48 | L12: О
A13: 1.4 | B13: ИТОГОпо текущему ремонту | C13: хозспособ | H13: =SUM(H10:H12) -> 51.75 | K13: =SUM(K10:K12) -> 811.64 | L13: О
B14: Добавить
A15: 2 | B15: Перечень плановых мероприятий по энергосбережению и повышению энергетической эффективности, в том числе снижению потерь воды при транспортировке
A16: 2.1
B17: Добавить
A18: 3 | B18: Мероприятия, направленные на повышение качества обслуживания абонентов
A19: 3.1 | B19: наимаенование
B20: Добавить
B21: Капитальный ремонт, в том числе
A22: 1 | B22: Перечень плановых мероприятий по ремонту объектов централизованной системы водоснабжения, мероприятий, направленных на улучшение качества питьевой воды
A23: 1.1 | B23: наимаенование
B24: Добавить
A25: 2 | B25: Перечень плановых мероприятий по энергосбережению и повышению энергетической эффективности, в том числе снижению потерь воды при транспортировке
A26: 2.1 | B26: наимаенование
B27: Добавить
A28: 3 | B28: Мероприятия, направленные на повышение качества обслуживания абонентов
A29: 3.1 | B29: наимаенование
B30: Добавить
B31: Мероприятия по программе энергосбережения, в том числе
A32: 1 | B32: Перечень плановых мероприятий по ремонту объектов централизованной системы водоснабжения, мероприятий, направленных на улучшение качества питьевой воды
A33: 1.1 | B33: наимаенование
B34: Добавить
A35: 2 | B35: Перечень плановых мероприятий по энергосбережению и повышению энергетической эффективности, в том числе снижению потерь воды при транспортировке
A36: 2.1 | B36: наимаенование
B37: Добавить
A38: 3 | B38: Мероприятия, направленные на повышение качества обслуживания абонентов
A39: 3.1 | B39: наимаенование
B40: Добавить
B41: Мероприятия за счет бюджетных средств, в том числе
A42: 1 | B42: Перечень плановых мероприятий по ремонту объектов централизованной системы водоснабжения, мероприятий, направленных на улучшение качества питьевой воды
A43: 1.1 | B43: наимаенование
B44: Добавить
A45: 2 | B45: Перечень плановых мероприятий по энергосбережению и повышению энергетической эффективности, в том числе снижению потерь воды при транспортировке
A46: 2.1 | B46: наимаенование
B47: Добавить
A48: 3 | B48: Мероприятия, направленные на повышение качества обслуживания абонентов
A49: 3.1 | B49: наимаенование
B50: Добавить
B51: Мероприятия за счет амортизации, в том числе
A52: 1 | B52: Перечень плановых мероприятий по ремонту объектов централизованной системы водоснабжения, мероприятий, направленных на улучшение качества питьевой воды
A53: 1.1 | B53: наимаенование
B54: Добавить
A55: 2 | B55: Перечень плановых мероприятий по энергосбережению и повышению энергетической эффективности, в том числе снижению потерь воды при транспортировке
A56: 2.1 | B56: наимаенование
B57: Добавить
A58: 3 | B58: Мероприятия, направленные на повышение качества обслуживания абонентов
A59: 3.1 | B59: наимаенование
B60: Добавить
B61: Мероприятия за счет прибыли, в том числе
A62: 1 | B62: Перечень плановых мероприятий по ремонту объектов централизованной системы водоснабжения, мероприятий, направленных на улучшение качества питьевой воды
A63: 1.1 | B63: наимаенование
B64: Добавить
A65: 2 | B65: Перечень плановых мероприятий по энергосбережению и повышению энергетической эффективности, в том числе снижению потерь воды при транспортировке
A66: 2.1 | B66: наимаенование
B67: Добавить
A68: 3 | B68: Мероприятия, направленные на повышение качества обслуживания абонентов
A69: 3.1 | B69: наимаенование
B70: Добавить
A72: Руководитель организации ____________________________________
A74: Ответственный за составление формы ______________________________________
C75: МП

Sheet Сомнительные долги
B1: Приложение Э
A3: Сбытовые расходы гарантирующих организаций (расходы по сомнительным долгам)
B4: ед.изм. | C4: По данным ОКК | D4: По данным РЭК
A6: Объем валовой выручки от реализации населению по регулиремому виду деятельности по факту 2016 года | B6: тыс.руб. | C6: 1461.48
A7: Резерв по сомнительным долгам на 2018 год (не более 2%) | B7: %
B8: тыс.руб. | C8: =C6*C7% -> 0 | D8: =D6*D7% -> 0
A10: Руководитель организации ____________________________________
A12: Ответственный за составление формы ______________________________________
B13: МП

Sheet Штатка (hidden)
A1: на 2016 | E1: 7501.42 | H1: 0.4
B2: числ | C2: числ | D2: коэф | E2: оклад | G2: надбавки | H2: премия | I2: в мес/чел | J2: итого в мес | K2: итого в год
A3: ОПП ВС
A11: итого | B11: =SUM(B4:B10) -> 0 | C11: =SUM(C4:C10) -> 0 | J11: =SUM(J4:J10) -> 0 | K11: =SUM(K4:K10) -> 0
A12: ОПП ВО
A20: итого | B20: =SUM(B13:B19) -> 0 | C20: =SUM(C13:C19) -> 0 | J20: =SUM(J13:J19) -> 0 | K20: =SUM(K13:K19) -> 0
A21: АУП
A28: итого | B28: =SUM(B22:B27) -> 0 | C28: =SUM(C22:C27) -> 0 | J28: =SUM(J22:J27) -> 0 | K28: =SUM(K22:K27) -> 0
A30: Цех
A37: итого | B37: =SUM(B31:B36) -> 0 | C37: =SUM(C31:C36) -> 0 | J37: =SUM(J31:J36) -> 0 | K37: =SUM(K31:K36) -> 0
A40: на 2015
C41: кол-во | D41: коэф | E41: ставка | F41: ночные | G41: премия | H41: премия | I41: итого в месяц | J41: итого в год

Sheet Объекты (hidden)
B1: объекты ВКХ | C1: право использования | D1: реквизиты | E1: собственник имущества | F1: период | G1: арендная плата в год, тыс. руб. | H1: в год с учетом НДС | J1: примечания
B6: объекты
B10: автомобили | C10: гос. номер | D10: право использования | E10: год изготовления ТС | F10: цвет | G10: мощность двигателя, л.с. | H10: объем двигателя, куб. см | I10: вид топлива | J10: собственник | K10: ПТС/ПСМ | L10: св-во о рег ТС | M10: Участок закрепления | N10: Примечание

Sheet Лист1
